{"text_format":"1","workbook":"xlsx","n_sheets":3,"sheets":["自己評価書作成メニュー","自己評価書","マスターシート"],"not_rendered":{"charts":0,"images":2,"macros":1,"external_links":0,"defined_names":250,"comments":0,"pivot_tables":0},"unopened":[],"bounds":{"document_bytes":16777216,"sheet_cells":100000,"rows_first":2000,"rows_last":500,"rows_between":2000,"halvings":0,"cell_chars":16384,"cell_head_chars":4096},"cells_cut":0,"cells_raw":0,"read":"whole","date_system":"1900"}

{"sheet":"自己評価書作成メニュー","index":0,"n_rows":14,"n_cols":7,"rows_kept":14,"cut":false,"hidden":false,"merged":[]}
[]
[]
[]
[]
[]
[null,null,null,null,null,null,"住宅性能評価 自己評価書 読込用ファイル"]
[]
[null,null,null,null,null,null,"マクロを有効にしてご利用下さい。"]
[]
[]
[]
[]
[]
[null,null,null,null,null,null,"評価する住宅の種類のボタンをクリックして下さい。"]

{"sheet":"自己評価書","index":1,"n_rows":234,"n_cols":247,"rows_kept":234,"cut":false,"hidden":true,"merged":[[229,85,229,86],[229,87,229,88],[230,85,230,86],[230,87,230,88],[231,85,231,86],[231,87,231,88],[232,85,232,86],[232,87,232,88],[233,85,233,86],[233,87,233,88],[218,85,218,86],[218,87,218,88],[219,85,219,86],[219,87,219,88],[220,85,220,86],[220,87,220,88],[221,85,221,86],[221,87,221,88],[222,85,222,86],[222,87,222,88],[223,85,223,86],[223,87,223,88],[224,85,224,86],[224,87,224,88],[225,85,225,86],[225,87,225,88],[226,85,226,86],[226,87,226,88],[207,85,207,86],[207,87,207,88],[208,85,208,86],[208,87,208,88],[209,85,209,86],[209,87,209,88],[210,85,210,86],[210,87,210,88],[211,85,211,86],[211,87,211,88],[212,85,212,86],[212,87,212,88],[213,85,213,86],[213,87,213,88],[214,85,214,86],[214,87,214,88],[215,85,215,86],[215,87,215,88],[196,85,196,86],[196,87,196,88],[197,85,197,86],[197,87,197,88],[198,85,198,86],[198,87,198,88],[199,85,199,86],[199,87,199,88],[200,85,200,86],[200,87,200,88],[201,85,201,86],[201,87,201,88],[202,85,202,86],[202,87,202,88],[203,85,203,86],[203,87,203,88],[204,85,204,86],[204,87,204,88],[185,85,185,86],[185,87,185,88],[186,85,186,86],[186,87,186,88],[187,85,187,86],[187,87,187,88],[188,85,188,86],[188,87,188,88],[189,85,189,86],[189,87,189,88],[190,85,190,86],[190,87,190,88],[191,85,191,86],[191,87,191,88],[192,85,192,86],[192,87,192,88],[193,85,193,86],[193,87,193,88],[174,85,174,86],[174,87,174,88],[175,85,175,86],[175,87,175,88],[176,85,176,86],[176,87,176,88],[177,85,177,86],[177,87,177,88],[178,85,178,86],[178,87,178,88],[179,85,179,86],[179,87,179,88],[180,85,180,86],[180,87,180,88],[181,85,181,86],[181,87,181,88],[182,85,182,86],[182,87,182,88],[163,85,163,86],[163,87,163,88],[164,85,164,86],[164,87,164,88],[165,85,165,86],[165,87,165,88],[166,85,166,86],[166,87,166,88],[167,85,167,86],[167,87,167,88],[168,85,168,86],[168,87,168,88],[169,85,169,86],[169,87,169,88],[170,85,170,86],[170,87,170,88],[171,85,171,86],[171,87,171,88],[152,85,152,86],[152,87,152,88],[153,85,153,86],[153,87,153,88],[154,85,154,86],[154,87,154,88],[155,85,155,86],[155,87,155,88],[156,85,156,86],[156,87,156,88],[157,85,157,86],[157,87,157,88],[158,85,158,86],[158,87,158,88],[159,85,159,86],[159,87,159,88],[160,85,160,86],[160,87,160,88],[141,85,141,86],[141,87,141,88],[142,85,142,86],[142,87,142,88],[143,85,143,86],[143,87,143,88],[144,85,144,86],[144,87,144,88],[145,85,145,86],[145,87,145,88],[146,85,146,86],[146,87,146,88],[147,85,147,86],[147,87,147,88],[148,85,148,86],[148,87,148,88],[149,85,149,86],[149,87,149,88],[130,85,130,86],[130,87,130,88],[131,85,131,86],[131,87,131,88],[132,85,132,86],[132,87,132,88],[133,85,133,86],[133,87,133,88],[134,85,134,86],[134,87,134,88],[135,85,135,86],[135,87,135,88],[136,85,136,86],[136,87,136,88],[137,85,137,86],[137,87,137,88],[138,85,138,86],[138,87,138,88],[119,85,119,86],[119,87,119,88],[121,85,121,86],[121,87,121,88],[122,85,122,86],[122,87,122,88],[123,85,123,86],[123,87,123,88],[124,85,124,86],[124,87,124,88],[125,85,125,86],[125,87,125,88],[126,85,126,86],[126,87,126,88],[127,85,127,86],[127,87,127,88],[128,85,128,86],[128,87,128,88],[108,85,108,86],[108,87,108,88],[109,85,109,86],[109,87,109,88],[110,85,110,86],[110,87,110,88],[111,85,111,86],[111,87,111,88],[112,85,112,86],[112,87,112,88],[113,85,113,86],[113,87,113,88],[114,85,114,86],[114,87,114,88],[115,85,115,86],[115,87,115,88],[116,85,116,86],[116,87,116,88],[97,85,97,86],[97,87,97,88],[98,85,98,86],[98,87,98,88],[99,85,99,86],[99,87,99,88],[100,85,100,86],[100,87,100,88],[102,85,102,86],[102,87,102,88],[103,85,103,86],[103,87,103,88],[104,85,104,86],[104,87,104,88],[105,85,105,86],[105,87,105,88],[106,85,106,86],[106,87,106,88],[86,85,86,86],[86,87,86,88],[87,85,87,86],[87,87,87,88],[88,85,88,86],[88,87,88,88],[89,85,89,86],[89,87,89,88],[90,85,90,86],[90,87,90,88],[91,85,91,86],[91,87,91,88],[92,85,92,86],[92,87,92,88],[93,85,93,86],[93,87,93,88],[94,85,94,86],[94,87,94,88],[77,85,77,86],[77,87,77,88],[78,85,78,86],[78,87,78,88],[79,85,79,86],[79,87,79,88],[80,85,80,86],[80,87,80,88],[81,85,81,86],[81,87,81,88],[82,85,82,86],[82,87,82,88],[83,85,83,86],[83,87,83,88],[84,85,84,86],[84,87,84,88],[85,85,85,86],[85,87,85,88],[65,85,65,86],[65,87,65,88],[66,85,66,86],[66,87,66,88],[67,85,67,86],[67,87,67,88],[68,85,68,86],[68,87,68,88],[69,85,69,86],[69,87,69,88],[70,85,70,86],[70,87,70,88],[71,85,71,86],[71,87,71,88],[72,85,72,86],[72,87,72,88],[73,85,73,86],[73,87,73,88],[56,85,56,86],[56,87,56,88],[57,85,57,86],[57,87,57,88],[58,85,58,86],[58,87,58,88],[59,85,59,86],[59,87,59,88],[60,85,60,86],[60,87,60,88],[61,85,61,86],[61,87,61,88],[62,85,62,86],[62,87,62,88],[63,85,63,86],[63,87,63,88],[64,85,64,86],[64,87,64,88],[47,85,47,86],[47,87,47,88],[48,85,48,86],[48,87,48,88],[49,85,49,86],[49,87,49,88],[50,85,50,86],[50,87,50,88],[51,85,51,86],[51,87,51,88],[52,85,52,86],[52,87,52,88],[53,85,53,86],[53,87,53,88],[54,85,54,86],[54,87,54,88],[55,85,55,86],[55,87,55,88],[37,85,37,86],[37,87,37,88],[38,85,38,86],[38,87,38,88],[39,85,39,86],[39,87,39,88],[40,85,40,86],[40,87,40,88],[41,85,41,86],[41,87,41,88],[42,85,42,86],[42,87,42,88],[43,85,43,86],[43,87,43,88],[44,85,44,86],[44,87,44,88],[45,85,45,86],[45,87,45,88],[18,89,18,93],[17,89,17,110],[19,80,19,88],[18,80,18,88],[17,74,17,88],[20,85,26,88],[27,85,31,86],[27,87,31,88],[32,85,32,88],[33,85,33,86],[33,87,33,88],[34,85,34,86],[34,87,34,88],[25,81,32,81],[35,85,35,86],[35,87,35,88],[36,85,36,86],[36,87,36,88],[35,96,35,98],[0,0,0,7],[19,228,32,228],[83,173,83,174],[83,175,83,176],[83,177,83,178],[83,179,83,180],[83,184,83,185],[83,186,83,187],[83,188,83,189],[83,190,83,191],[80,173,80,174],[80,175,80,176],[80,177,80,178],[80,179,80,180],[80,184,80,185],[80,186,80,187],[80,188,80,189],[80,190,80,191],[81,173,81,174],[81,175,81,176],[81,177,81,178],[81,179,81,180],[81,184,81,185],[81,186,81,187],[81,188,81,189],[81,190,81,191],[82,173,82,174],[82,175,82,176],[82,177,82,178],[82,179,82,180],[82,184,82,185],[82,186,82,187],[82,188,82,189],[82,190,82,191],[77,173,77,174],[77,175,77,176],[77,177,77,178],[77,179,77,180],[77,184,77,185],[77,186,77,187],[77,188,77,189],[77,190,77,191],[78,173,78,174],[78,175,78,176],[78,177,78,178],[78,179,78,180],[78,184,78,185],[78,186,78,187],[78,188,78,189],[78,190,78,191],[79,173,79,174],[79,175,79,176],[79,177,79,178],[79,179,79,180],[79,184,79,185],[79,186,79,187],[79,188,79,189],[79,190,79,191],[74,173,74,174],[74,175,74,176],[74,177,74,178],[74,179,74,180],[74,184,74,185],[74,186,74,187],[74,188,74,189],[74,190,74,191],[75,173,75,174],[75,175,75,176],[75,177,75,178],[75,179,75,180],[75,184,75,185],[75,186,75,187],[75,188,75,189],[75,190,75,191],[76,173,76,174],[76,175,76,176],[76,177,76,178],[76,179,76,180],[76,184,76,185],[76,186,76,187],[76,188,76,189],[76,190,76,191],[71,173,71,174],[71,175,71,176],[71,177,71,178],[71,179,71,180],[71,184,71,185],[71,186,71,187],[71,188,71,189],[71,190,71,191],[72,173,72,174],[72,175,72,176],[72,177,72,178],[72,179,72,180],[72,184,72,185],[72,186,72,187],[72,188,72,189],[72,190,72,191],[73,173,73,174],[73,175,73,176],[73,177,73,178],[73,179,73,180],[73,184,73,185],[73,186,73,187],[73,188,73,189],[73,190,73,191],[68,173,68,174],[68,175,68,176],[68,177,68,178],[68,179,68,180],[68,184,68,185],[68,186,68,187],[68,188,68,189],[68,190,68,191],[69,173,69,174],[69,175,69,176],[69,177,69,178],[69,179,69,180],[69,184,69,185],[69,186,69,187],[69,188,69,189],[69,190,69,191],[70,173,70,174],[70,175,70,176],[70,177,70,178],[70,179,70,180],[70,184,70,185],[70,186,70,187],[70,188,70,189],[70,190,70,191],[65,173,65,174],[65,175,65,176],[65,177,65,178],[65,179,65,180],[65,184,65,185],[65,186,65,187],[65,188,65,189],[65,190,65,191],[66,173,66,174],[66,175,66,176],[66,177,66,178],[66,179,66,180],[66,184,66,185],[66,186,66,187],[66,188,66,189],[66,190,66,191],[67,173,67,174],[67,175,67,176],[67,177,67,178],[67,179,67,180],[67,184,67,185],[67,186,67,187],[67,188,67,189],[67,190,67,191],[62,173,62,174],[62,175,62,176],[62,177,62,178],[62,179,62,180],[62,184,62,185],[62,186,62,187],[62,188,62,189],[62,190,62,191],[63,173,63,174],[63,175,63,176],[63,177,63,178],[63,179,63,180],[63,184,63,185],[63,186,63,187],[63,188,63,189],[63,190,63,191],[64,173,64,174],[64,175,64,176],[64,177,64,178],[64,179,64,180],[64,184,64,185],[64,186,64,187],[64,188,64,189],[64,190,64,191],[59,173,59,174],[59,175,59,176],[59,177,59,178],[59,179,59,180],[59,184,59,185],[59,186,59,187],[59,188,59,189],[59,190,59,191],[60,173,60,174],[60,175,60,176],[60,177,60,178],[60,179,60,180],[60,184,60,185],[60,186,60,187],[60,188,60,189],[60,190,60,191],[61,173,61,174],[61,175,61,176],[61,177,61,178],[61,179,61,180],[61,184,61,185],[61,186,61,187],[61,188,61,189],[61,190,61,191],[56,173,56,174],[56,175,56,176],[56,177,56,178],[56,179,56,180],[56,184,56,185],[56,186,56,187],[56,188,56,189],[56,190,56,191],[57,173,57,174],[57,175,57,176],[57,177,57,178],[57,179,57,180],[57,184,57,185],[57,186,57,187],[57,188,57,189],[57,190,57,191],[58,173,58,174],[58,175,58,176],[58,177,58,178],[58,179,58,180],[58,184,58,185],[58,186,58,187],[58,188,58,189],[58,190,58,191],[53,173,53,174],[53,175,53,176],[53,177,53,178],[53,179,53,180],[53,184,53,185],[53,186,53,187],[53,188,53,189],[53,190,53,191],[54,173,54,174],[54,175,54,176],[54,177,54,178],[54,179,54,180],[54,184,54,185],[54,186,54,187],[54,188,54,189],[54,190,54,191],[55,173,55,174],[55,175,55,176],[55,177,55,178],[55,179,55,180],[55,184,55,185],[55,186,55,187],[55,188,55,189],[55,190,55,191],[50,173,50,174],[50,175,50,176],[50,177,50,178],[50,179,50,180],[50,184,50,185],[50,186,50,187],[50,188,50,189],[50,190,50,191],[51,173,51,174],[51,175,51,176],[51,177,51,178],[51,179,51,180],[51,184,51,185],[51,186,51,187],[51,188,51,189],[51,190,51,191],[52,173,52,174],[52,175,52,176],[52,177,52,178],[52,179,52,180],[52,184,52,185],[52,186,52,187],[52,188,52,189],[52,190,52,191],[47,173,47,174],[47,175,47,176],[47,177,47,178],[47,179,47,180],[47,184,47,185],[47,186,47,187],[47,188,47,189],[47,190,47,191],[48,173,48,174],[48,175,48,176],[48,177,48,178],[48,179,48,180],[48,184,48,185],[48,186,48,187],[48,188,48,189],[48,190,48,191],[49,173,49,174],[49,175,49,176],[49,177,49,178],[49,179,49,180],[49,184,49,185],[49,186,49,187],[49,188,49,189],[49,190,49,191],[44,173,44,174],[44,175,44,176],[44,177,44,178],[44,179,44,180],[44,184,44,185],[44,186,44,187],[44,188,44,189],[44,190,44,191],[45,173,45,174],[45,175,45,176],[45,177,45,178],[45,179,45,180],[45,184,45,185],[45,186,45,187],[45,188,45,189],[45,190,45,191],[46,173,46,174],[46,175,46,176],[46,177,46,178],[46,179,46,180],[46,184,46,185],[46,186,46,187],[46,188,46,189],[46,190,46,191],[41,173,41,174],[41,175,41,176],[41,177,41,178],[41,179,41,180],[41,184,41,185],[41,186,41,187],[41,188,41,189],[41,190,41,191],[42,173,42,174],[42,175,42,176],[42,177,42,178],[42,179,42,180],[42,184,42,185],[42,186,42,187],[42,188,42,189],[42,190,42,191],[43,173,43,174],[43,175,43,176],[43,177,43,178],[43,179,43,180],[43,184,43,185],[43,186,43,187],[43,188,43,189],[43,190,43,191],[38,173,38,174],[38,175,38,176],[38,177,38,178],[38,179,38,180],[38,184,38,185],[38,186,38,187],[38,188,38,189],[38,190,38,191],[39,173,39,174],[39,175,39,176],[39,177,39,178],[39,179,39,180],[39,184,39,185],[39,186,39,187],[39,188,39,189],[39,190,39,191],[40,173,40,174],[40,175,40,176],[40,177,40,178],[40,179,40,180],[40,184,40,185],[40,186,40,187],[40,188,40,189],[40,190,40,191],[35,173,35,174],[35,175,35,176],[35,177,35,178],[35,179,35,180],[35,184,35,185],[35,186,35,187],[35,188,35,189],[35,190,35,191],[36,173,36,174],[36,175,36,176],[36,177,36,178],[36,179,36,180],[36,184,36,185],[36,186,36,187],[36,188,36,189],[36,190,36,191],[37,173,37,174],[37,175,37,176],[37,177,37,178],[37,179,37,180],[37,184,37,185],[37,186,37,187],[37,188,37,189],[37,190,37,191],[33,173,33,174],[33,175,33,176],[33,177,33,178],[33,179,33,180],[33,184,33,185],[33,186,33,187],[33,188,33,189],[33,190,33,191],[20,181,32,181],[34,173,34,174],[34,175,34,176],[34,177,34,178],[34,179,34,180],[34,184,34,185],[34,186,34,187],[34,188,34,189],[34,190,34,191],[17,170,17,191],[18,170,18,180],[18,181,18,191],[19,170,19,172],[19,173,19,174],[19,175,19,176],[19,177,19,178],[20,171,32,171],[20,172,32,172],[20,173,32,174],[20,175,32,176],[20,177,32,178],[20,184,32,185],[20,182,32,182],[20,183,32,183],[20,186,32,187],[20,188,32,189],[19,186,19,187],[19,188,19,189],[20,190,32,191],[19,190,19,191],[19,179,19,180],[19,181,19,183],[19,184,19,185],[61,64,61,65],[61,66,61,67],[61,68,61,71],[61,76,61,77],[61,78,61,79],[61,82,61,84],[61,96,61,98],[61,117,61,120],[61,129,61,132],[61,151,61,152],[61,155,61,156],[61,153,61,154],[20,170,32,170],[61,157,61,158],[61,162,61,163],[61,164,61,165],[61,166,61,167],[61,168,61,169],[59,157,59,158],[59,162,59,163],[60,157,60,158],[60,162,60,163],[60,129,60,132],[60,151,60,152],[60,155,60,156],[60,153,60,154],[59,96,59,98],[59,117,59,120],[57,68,57,71],[57,76,57,77],[57,78,57,79],[57,82,57,84],[60,61,60,63],[60,64,60,65],[60,66,60,67],[60,68,60,71],[60,76,60,77],[60,164,60,165],[60,166,60,167],[60,168,60,169],[61,1,61,2],[61,3,61,4],[61,5,61,6],[61,7,61,8],[61,9,61,10],[60,82,60,84],[60,96,60,98],[61,11,61,12],[61,13,61,14],[61,15,61,16],[61,21,61,23],[61,27,61,31],[61,32,61,34],[61,40,61,41],[61,43,61,44],[61,50,61,51],[61,52,61,54],[61,55,61,56],[61,59,61,60],[61,61,61,63],[60,3,60,4],[60,5,60,6],[60,7,60,8],[60,9,60,10],[60,11,60,12],[60,13,60,14],[60,15,60,16],[60,21,60,23],[60,27,60,31],[60,32,60,34],[60,78,60,79],[60,40,60,41],[60,43,60,44],[60,50,60,51],[60,52,60,54],[60,55,60,56],[60,59,60,60],[60,117,60,120],[58,168,58,169],[59,1,59,2],[59,3,59,4],[59,5,59,6],[59,7,59,8],[59,9,59,10],[59,11,59,12],[59,13,59,14],[59,15,59,16],[59,21,59,23],[59,27,59,31],[59,32,59,34],[59,40,59,41],[59,43,59,44],[59,50,59,51],[59,52,59,54],[59,55,59,56],[59,59,59,60],[59,61,59,63],[59,129,59,132],[59,151,59,152],[59,155,59,156],[59,64,59,65],[59,66,59,67],[59,68,59,71],[59,76,59,77],[59,78,59,79],[59,82,59,84],[59,153,59,154],[59,164,59,165],[59,166,59,167],[59,168,59,169],[58,61,58,63],[58,64,58,65],[58,66,58,67],[58,68,58,71],[58,76,58,77],[58,78,58,79],[58,82,58,84],[58,96,58,98],[58,117,58,120],[58,129,58,132],[58,151,58,152],[58,155,58,156],[58,157,58,158],[58,162,58,163],[58,153,58,154],[58,164,58,165],[58,166,58,167],[57,96,57,98],[57,117,57,120],[57,129,57,132],[57,151,57,152],[57,155,57,156],[57,157,57,158],[57,162,57,163],[57,153,57,154],[57,164,57,165],[57,166,57,167],[57,168,57,169],[58,1,58,2],[58,3,58,4],[58,5,58,6],[58,7,58,8],[58,9,58,10],[58,11,58,12],[58,13,58,14],[58,15,58,16],[58,21,58,23],[58,27,58,31],[58,32,58,34],[58,40,58,41],[58,43,58,44],[58,50,58,51],[58,52,58,54],[58,55,58,56],[58,59,58,60],[56,82,56,84],[56,96,56,98],[56,117,56,120],[56,129,56,132],[56,151,56,152],[56,155,56,156],[56,157,56,158],[56,162,56,163],[56,153,56,154],[56,164,56,165],[56,166,56,167],[56,168,56,169],[57,1,57,2],[57,3,57,4],[57,5,57,6],[57,7,57,8],[57,9,57,10],[57,11,57,12],[57,13,57,14],[57,15,57,16],[57,21,57,23],[57,27,57,31],[57,32,57,34],[57,40,57,41],[57,43,57,44],[57,50,57,51],[57,52,57,54],[57,55,57,56],[57,59,57,60],[57,61,57,63],[57,64,57,65],[57,66,57,67],[55,129,55,132],[55,151,55,152],[55,155,55,156],[55,157,55,158],[55,162,55,163],[55,153,55,154],[55,164,55,165],[55,166,55,167],[55,168,55,169],[56,1,56,2],[56,3,56,4],[56,5,56,6],[56,7,56,8],[56,9,56,10],[56,11,56,12],[56,13,56,14],[56,15,56,16],[56,21,56,23],[56,27,56,31],[56,32,56,34],[56,40,56,41],[56,43,56,44],[56,50,56,51],[56,52,56,54],[56,55,56,56]],"merged_total":9413,"flags":["merged_cut"]}
["2024-08-06"]
[null,null,null,null,null,"件名："]
[]
["（住棟部分）"]
[]
[null,null,null,null,null,null,null,null,null,null,null,null,null,null,null,null,null,"１構造の安定",null,null,null,null,null,null,null,null,null,null,null,null,null,null,"1-6.",null,"地盤又は杭の許容支持力等及びその設定方法",null,null,null,null,null,null,null,null,null,null,null,null,null,null,null,"1-7.",null,"基礎の構造方法及び形式等",null,null,null,null,null,null,null,null,null,null,null,null,null,null,null,null,null,null,null,null,null,null,2,"火災時の安全",null,null,null,null,null,null,null,null,null,null,null,null,null,null,null,null,4,"維持管理への配慮",null,null,null,null,null,null,null,null,null,null,null,null,null,null,null,null,null,null,null,null,null,null,null,null,null,null,null,null,null,null,null,null,null,null,null,null,null,null,null,null,null,null,null,null,null,null,null,null,null,null,null,null,null,null,null,null,null,null,null,null,null,null,null,null,null,null,null,null,null,null,null,null,null,null,null,null,null,null,null,null,null,null,null,null,null,null,null,null,null,null,null,null,null,null,null,null,null,null,null,null,null,null,null,null,null,null,null,null,null,null,null,null,null,null,null,null,null,null,null,null,null,null,null,null,null,null,null,null,null,null,null,null,null,null,null,null,null,null,null,null,null,null,null,"読込種類","読込判定に使用（1: 概要、2: 等級）",2]
[null,null,null,null,null,null,null,null,null,null,null,null,null,null,null,null,null,"1-1.",null,"耐震等級(倒壊等防止)",null,null,null,null,null,null,"[0-3]",null,null,null,null,null,null,"地盤の許容応力度",null,null,null,null,null,{"$f":"IF(AO7=\"\",\"□\",\"■\")","v":"□"},null,null,null,null,null,null,"kN/㎡",null,null,null,"a.",null,"直接基礎",null,null,"構造方法",null,{"$f":"IF(BG7=\"\",\"□\",\"■\")","v":"□"},null,null,null,null,null,null,null,null,null,null,null,null,null,null,null,null,null,"2-5.",null,null,"耐火等級(開口部)",null,null,null,null,null,null,null,null,null,"[0-3]",null,null,null,null,"4-2.",null,"維持管理対策等級(共用配管)",null,null,null,null,null,null,null,null,null,null,"[0-3]",null,null,null,null,null,null,null,null,null,null,null,null,null,null,null,null,null,null,null,null,null,null,null,null,null,null,null,null,null,null,null,null,null,null,null,null,null,null,null,null,null,null,null,null,null,null,null,null,null,null,null,null,null,null,null,null,null,null,null,null,null,null,null,null,null,null,null,null,null,null,null,null,null,null,null,null,null,null,null,null,null,null,null,null,null,null,null,null,null,null,null,null,null,null,null,null,null,null,null,null,null,null,null,null,null,null,null,null,null,null,null,null,null,null,null,null,null,null,null,null,null,null,null,null,null,null,null,null,null,null,null,"評価の種類","〃",1]
[null,null,null,null,null,null,null,null,null,null,null,null,null,null,null,null,null,"1-2.",null,"耐震等級(損傷防止)",null,null,null,null,null,null,"[0-3]",null,null,null,null,null,null,null,null,null,null,null,null,"□","地盤改良後の数値とする",null,null,null,null,null,null,null,null,null,null,null,null,null,null,"形式",null,null,null,null,null,null,null,null,null,null,null,null,null,null,null,null,null,null,null,"2-6.",null,null,"耐火等級(開口部以外)",null,null,null,null,null,null,null,null,null,"[0-4]",null,null,null,null,"4-3.",null,"更新対策等級(共用排水管)",null,null,null,null,null,null,null,null,null,null,"[0-3]",null,null,null,null,null,null,null,null,null,null,null,null,null,null,null,null,null,null,null,null,null,null,null,null,null,null,null,null,null,null,null,null,null,null,null,null,null,null,null,null,null,null,null,null,null,null,null,null,null,null,null,null,null,null,null,null,null,null,null,null,null,null,null,null,null,null,null,null,null,null,null,null,null,null,null,null,null,null,null,null,null,null,null,null,null,null,null,null,null,null,null,null,null,null,null,null,null,null,null,null,null,null,null,null,null,null,null,null,null,null,null,null,null,null,null,null,null,null,null,null,null,null,null,null,null,null,null,null,null,null,null,"住宅の種類","〃",1]
[null,null,null,null,null,null,null,null,null,null,null,null,null,null,null,null,null,"1-3.",null,"免震構造物",null,null,null,null,null,null,null,null,null,null,null,null,null,"杭の許容支持力",null,null,null,null,null,{"$f":"IF(AO9=\"\",\"□\",\"■\")","v":"□"},null,null,null,null,null,null,"kN/本",null,null,null,"b.",null,"杭基礎",null,null,"杭種",null,{"$f":"IF(BG9=\"\",\"□\",\"■\")","v":"□"},null,null,null,null,null,null,null,null,null,null,null,null,null,null,null,null,null,3,"劣化の軽減",null,null,null,null,null,null,null,null,null,null,null,null,null,null,null,null,null,null,"共用排水立管の位置",null,null,null,null,null,"□","共用廊下に面する共用部分",null,null,null,null,null,null,null,null,null,null,null,null,null,null,null,null,null,null,null,null,null,null,null,null,null,null,null,null,null,null,null,null,null,null,null,null,null,null,null,null,null,null,null,null,null,null,null,null,null,null,null,null,null,null,null,null,null,null,null,null,null,null,null,null,null,null,null,null,null,null,null,null,null,null,null,null,null,null,null,null,null,null,null,null,null,null,null,null,null,null,null,null,null,null,null,null,null,null,null,null,null,null,null,null,null,null,null,null,null,null,null,null,null,null,null,null,null,null,null,null,null,null,null,null,null,null,null,null,null,null,null,null,null,null,null,"1.3 免震構造物 免震建築物","読込データとして使用",{"$f":"IF(work_tower_N01_3=マスターシート!C4, \"○\", \"\")","v":""}]
[null,null,null,null,null,null,null,null,null,null,null,null,null,null,null,null,null,"1-4.",null,"耐風等級",null,null,null,null,null,null,"[1-2]",null,null,null,null,null,null,"杭状改良地盤の許容支持力度",null,null,null,null,null,{"$f":"IF(AO10=\"\",\"□\",\"■\")","v":"□"},null,null,null,null,null,null,"kN/㎡",null,null,null,null,null,null,null,null,null,null,null,null,null,null,null,null,null,null,null,null,null,null,null,null,null,null,null,null,null,null,"3-1.","劣化対策等級",null,null,null,null,null,null,null,null,null,"[1-3]",null,null,null,null,null,null,null,null,null,null,null,null,"□","外壁面、吹き抜け等の住戸外周部",null,null,null,null,null,null,null,null,null,null,null,null,null,null,null,null,null,null,null,null,null,null,null,null,null,null,null,null,null,null,null,null,null,null,null,null,null,null,null,null,null,null,null,null,null,null,null,null,null,null,null,null,null,null,null,null,null,null,null,null,null,null,null,null,null,null,null,null,null,null,null,null,null,null,null,null,null,null,null,null,null,null,null,null,null,null,null,null,null,null,null,null,null,null,null,null,null,null,null,null,null,null,null,null,null,null,null,null,null,null,null,null,null,null,null,null,null,null,null,null,null,null,null,null,null,null,null,null,null,null,null,null,null,null,null,"1.3 免震構造物 その他","〃",{"$f":"IF(work_tower_N01_3=マスターシート!C5, \"○\", \"\")","v":""}]
[null,null,null,null,null,null,null,null,null,null,null,null,null,null,null,null,null,"1-5.",null,"耐積雪等級",null,null,null,null,null,null,"[0-2]",null,null,null,null,null,null,"杭状改良地盤の許容支持力",null,null,null,null,null,{"$f":"IF(AO11=\"\",\"□\",\"■\")","v":"□"},null,null,null,null,null,null,"kN/本",null,null,null,null,null,null,null,null,"杭径",null,null,null,null,null,null,null,null,null,null,"cm",null,null,null,null,null,null,null,null,null,null,null,null,null,null,null,null,null,null,null,null,null,null,null,null,null,null,null,null,null,null,null,null,null,null,"□","バルコニー",null,null,null,null,null,null,null,null,null,null,null,null,null,null,null,null,null,null,null,null,null,null,null,null,null,null,null,null,null,null,null,null,null,null,null,null,null,null,null,null,null,null,null,null,null,null,null,null,null,null,null,null,null,null,null,null,null,null,null,null,null,null,null,null,null,null,null,null,null,null,null,null,null,null,null,null,null,null,null,null,null,null,null,null,null,null,null,null,null,null,null,null,null,null,null,null,null,null,null,null,null,null,null,null,null,null,null,null,null,null,null,null,null,null,null,null,null,null,null,null,null,null,null,null,null,null,null,null,null,null,null,null,null,null,null,"1.6 地盤調査方法等","〃",{"$f":"work_tower_N01_6_JIBAN_TYOUSA_1 & work_tower_N01_6_JIBAN_TYOUSA_2 & work_tower_N01_6_JIBAN_TYOUSA_3 & work_tower_N01_6_JIBAN_TYOUSA_4","v":""}]
[null,null,null,null,null,null,null,null,null,null,null,null,null,null,null,null,null,null,null,null,null,null,null,null,null,null,null,null,null,null,null,null,null,"地盤調査方法等",null,null,null,null,null,null,null,null,null,null,null,null,null,null,null,null,null,null,null,null,null,"杭長",null,null,null,null,null,null,null,null,null,null,"ｍ",null,null,null,null,null,null,null,null,null,null,null,null,null,null,null,null,null,null,null,null,null,null,null,null,null,null,null,null,null,null,null,null,null,null,"□","住戸専用部",null,null,null,null,null,null,null,null,null,null,null,null,null,null,null,null,null,null,null,null,null,null,null,null,null,null,null,null,null,null,null,null,null,null,null,null,null,null,null,null,null,null,null,null,null,null,null,null,null,null,null,null,null,null,null,null,null,null,null,null,null,null,null,null,null,null,null,null,null,null,null,null,null,null,null,null,null,null,null,null,null,null,null,null,null,null,null,null,null,null,null,null,null,null,null,null,null,null,null,null,null,null,null,null,null,null,null,null,null,null,null,null,null,null,null,null,null,null,null,null,null,null,null,null,null,null,null,null,null,null,null,null,null,null,null,"1.7 杭径","〃",{"$f":"IF(work_tower_N01_7_KUI_KEI_max <> \"\", work_tower_N01_7_KUI_KEI_max, \"\") & IF(work_tower_N01_7_KUI_KEI_max <> \"\", IF(work_tower_N01_7_KUI_KEI_max <> \"\", \" \", \"\"), \"\") & IF(work_tower_N01_7_KUI_KEI_min <> \"\", work_tower_N01_7_KUI_KEI_min, \"\")","v":""},{"$f":"IF(work_tower_N01_7_KUI_KEI_max <> \"\", \"最大値：\" & work_tower_N01_7_KUI_KEI_max, \"\") & IF(work_tower_N01_7_KUI_KEI_max <> \"\", IF(work_tower_N01_7_KUI_KEI_max <> \"\", \" \", \"\"), \"\") & IF(work_tower_N01_7_KUI_KEI_min <> \"\", \"最小値：\" & work_tower_N01_7_KUI_KEI_min, \"\")","v":""}]
[null,null,null,null,null,null,null,null,null,null,null,null,null,null,null,null,null,null,null,null,null,null,null,null,null,null,null,null,null,null,null,null,null,null,null,null,null,null,null,null,null,null,null,null,null,null,null,null,null,null,null,null,null,null,null,null,null,null,null,null,null,null,null,null,null,null,null,null,null,null,null,null,null,null,null,null,null,null,null,null,null,null,null,null,null,null,null,null,null,null,null,null,null,null,null,null,null,null,null,null,null,"□","その他",null,null,null,null,null,null,null,null,null,null,null,null,null,null,null,null,null,null,null,null,null,null,null,null,null,null,null,null,null,null,null,null,null,null,null,null,null,null,null,null,null,null,null,null,null,null,null,null,null,null,null,null,null,null,null,null,null,null,null,null,null,null,null,null,null,null,null,null,null,null,null,null,null,null,null,null,null,null,null,null,null,null,null,null,null,null,null,null,null,null,null,null,null,null,null,null,null,null,null,null,null,null,null,null,null,null,null,null,null,null,null,null,null,null,null,null,null,null,null,null,null,null,null,null,null,null,null,null,null,null,null,null,null,null,null,"1.7 杭長","〃",{"$f":"IF(work_tower_N01_7_KUI_TYOU_max <> \"\", work_tower_N01_7_KUI_TYOU_max, \"\") & IF(work_tower_N01_7_KUI_TYOU_max <> \"\", IF(work_tower_N01_7_KUI_TYOU_min <> \"\", \" \", \"\"), \"\") & IF(work_tower_N01_7_KUI_TYOU_min <> \"\", work_tower_N01_7_KUI_TYOU_min, \"\")","v":""},{"$f":"IF(work_tower_N01_7_KUI_TYOU_max <> \"\", \"最大値：\" & work_tower_N01_7_KUI_TYOU_max, \"\") & IF(work_tower_N01_7_KUI_TYOU_max <> \"\", IF(work_tower_N01_7_KUI_TYOU_min <> \"\", \" \", \"\"), \"\") & IF(work_tower_N01_7_KUI_TYOU_min <> \"\", \"最小値：\" & work_tower_N01_7_KUI_TYOU_min, \"\")","v":""}]
[null,null,null,null,null,null,null,null,null,null,null,null,null,null,null,null,null,null,null,null,null,null,null,null,null,null,null,null,null,null,null,null,null,"地盤改良方法",null,null,null,null,null,null,null,null,null,null,null,null,null,null,null,null,null,null,null,null,null,null,null,null,null,null,null,null,null,null,null,null,null,null,null,null,null,null,null,null,null,null,null,null,null,null,null,null,null,null,null,null,null,null,null,null,null,null,null,null,null,"その他備考",null,null,null,null,null,""]
[]
[null,null,null,null,null,null,null,null,null,null,null,null,null,null,null,null,null,null,null,null,null,null,null,null,null,null,null,null,null,null,null,null,null,null,null,null,null,null,null,null,null,null,null,null,null,null,null,null,null,null,null,null,null,null,null,null,null,null,null,null,null,"※その２：メゾネットの場合",null,null,null,null,null,null,null,null,null,null,null,null,null,null,null,null,null,null,null,null,null,null,null,null,null,null,null,null,null,null,null,null,null,null,null,null,null,null,null,null,null,null,null,null,null,null,"※方位別開口比の値が100の場合には、[%以上]を[%]と読み替える。",null,null,null,null,null,null,null,null,null,null,null,null,null,null,null,null,null,null,"相当スラブ厚：0:該当なし　a:27cm以上　b:20cm以上　c:15cm以上　d:11cm以上　e:その他"]
["（住戸部分）",null,null,null,null,null,null,null,null,null,null,null,null,null,null,null,null,null,null,null,null,null,null,null,null,null,null,null,null,null,null,null,null,null,null,null,null,null,null,null,null,null,null,null,null,null,null,null,null,null,null,null,null,null,null,null,null,null,null,null,null,null,null,null,null,null,null,null,null,null,null,null,null,null,null,null,null,null,null,null,null,null,null,null,null,null,null,null,null,null,null,null,null,null,null,null,null,null,null,null,null,null,null,null,null,null,null,null,"※方位別開口比の値が[-]の場合には、[0%]と読み替える。",null,null,null,null,null,null,null,null,null,null,null,null,null,null,null,null,null,null,"レベル低減量：0:該当なし　a:30db　b:25db　c:20db　d:15db　e:その他"]
["通し番号","住戸番号　新",null,"住戸番号",null,"階",null,"タイプ",null,"居室の床面積",null,"専用部分の面積",null,"バルコニー等専用使用部分の面積",null,"合計床面積",null,"住戸への経路（共用階段）","住戸への経路（共用廊下）","住戸への経路（エレベーター）","界壁","界床",null,null,"2.火災時の安全",null,null,null,null,null,null,null,null,null,null,null,null,null,null,null,null,null,null,null,null,null,"4.維持管理・更新対策",null,null,null,null,null,null,null,null,null,null,null,null,null,null,null,null,null,null,null,null,null,null,null,null,null,null,null,"5.温熱",null,null,null,null,null,null,null,null,null,null,null,null,null,null,"6.空気環境",null,null,null,null,null,null,null,null,null,null,null,null,null,null,null,null,null,null,null,null,null,"7.光・視環境",null,null,null,null,null,"　8.音環境",null,null,null,null,null,null,null,null,null,null,null,null,null,null,null,null,null,null,null,null,null,null,null,null,null,null,null,null,"9.高齢",null,"10.防犯",null,null,null,null,null,null,null,null,null,null,null,null,null,null,null,null,null,null,null,null,null,"10.防犯"]
[null,null,null,null,null,null,null,null,null,null,null,null,null,null,null,null,null,null,null,null,null,null,null,null,1,2,"3.避難安全対策",null,null,null,null,null,null,null,null,null,"4.脱出対策",null,null,null,null,null,null,null,null,7,1,"4.更新対策",null,null,null,null,null,null,null,null,null,null,null,null,null,null,null,null,null,null,null,null,null,null,null,null,null,null,1,null,null,null,null,null,2,null,null,null,null,null,null,null,null,"1.ホルムアルデヒドﾞ対策",null,null,null,null,"2.換気対策",null,null,null,null,null,null,null,null,null,null,null,null,null,null,null,null,1,"2.方位別開口比",null,null,null,null,"1.重量床衝撃音対策",null,null,null,null,null,null,null,null,null,null,null,null,"2．軽量床衝撃音対策",null,null,null,null,null,null,null,null,null,null,"透過損失等級",null,null,null,null,1,2,"建物出入り口の階",null,null,null,null,null,null,null,null,null,null,"建物出入り口の以外の階",null,null,null,null,null,null,null,null,null,null,"1.開口部の侵入防止対策（３）",null,null,null,null,null,null,null,null,null,null,"1.開口部の侵入防止対策（４）"]
[null,null,null,null,null,null,null,null,null,null,null,null,null,null,null,null,null,null,null,null,null,null,null,null,"感知警報装置（自住戸）","感知警報装置（他住戸）","該当なし","排煙形式",null,null,null,null,"平面形状",null,null,"隔壁開口部等級","該当なし","直通バルコニー","隣戸バルコニー","避難器具",null,null,"その他",null,null,"界壁及び界床","維持管理（専用配管）","該当なし","（その１）",null,null,null,null,null,null,null,null,"（その２）",null,null,null,null,null,null,null,null,"間取りの変更の障害",null,"計算方法",null,null,null,"省エネルギー対策",null,"断熱等性能",null,null,null,null,null,"一次エネルギー消費量",null,null,null,null,null,null,null,null,"使用建材",null,null,"等級",null,"居室",null,null,null,null,"便所",null,null,null,"浴室",null,null,null,"台所",null,null,null,"単純開口率","北","東","南","西","真上","対策等級・相当スラブ厚の区別",null,null,null,"対策等級",null,null,null,"相当スラブ厚",null,null,null,"対策等級・レベル低減量の区別",null,null,null,"対策等級",null,null,null,"ﾚﾍﾞﾙ低減量",null,null,null,3,"4.外壁開口部",null,null,null,"高齢者等配慮(専用部分)","高齢者等配慮(共用部分)","住戸位置",null,null,"a",null,"b",null,"b",null,"c",null,"住戸位置",null,null,"a",null,"b(bⅰ)",null,"bⅱ",null,"c",null,"住戸位置",null,null,"a",null,"b(bⅰ)",null,"bⅱ",null,"c",null,"住戸位置",null,null,"a",null,"b(bⅰ)",null,"bⅱ",null,"c",null,"2-1選択","2-2選択","2-3選択","2-4選択","2-7選択","4-1選択","4-4選択","5-1選択","5-2選択","6-1選択","6-2選択","7-1選択","7-2選択","8-1選択","対策等級",null,null,null,"相当スラブ厚",null,null,null,"8-2選択","対策等級",null,null,null,"ﾚﾍﾞﾙ低減量",null,null,null,"8-3選択","8-4選択","9-1選択","9-2選択","10-1選択","10-2建物出入口の以外の階×表記","前処理（出入り口","前処理（開口部（共用部等）","前処理（開口部（バルコニー等）","前処理（その他開口部",null,null,null,null,null,null,null,null,null,"※通常非表示読込項目"]
[null,null,null,null,null,null,null,null,null,null,null,null,null,null,null,null,null,null,null,null,null,null,null,null,null,null,null,null,null,null,null,null,null,null,null,null,null,null,null,null,"種類",null,null,"種類",null,null,null,null,"地上･地下･その他","階","躯体天井高",null,"最も低い部分",null,null,null,null,"地上･地下･その他","階","躯体天井高",null,"最も低い部分",null,null,null,null,null,null,null,null,null,null,null,null,null,null,"外皮平均熱貫流率",null,"冷房期の平均日射熱取得率",null,null,null,"床面積当たりの設計一次エネルギー消費量",null,null,"一次エネルギー\n消費量の削減率",null,null,null,"製材等","特定建材","その他","内装材","天井裏等","機械換気","その他","その他内容",null,null,"該当なし","機械換気設備","換気のできる窓","なし","該当なし","機械換気設備","換気のできる窓","なし","該当なし","機械換気設備","換気のできる窓","なし",null,null,null,null,null,null,null,null,null,null,"上階",null,"下階",null,"上階",null,"下階",null,null,null,null,null,"上階",null,"下階",null,"上階",null,"下階",null,"界壁","北","東","南","西",null,null,"建物出入口の存する階","地下･地上･屋上","階数","出入口",null,"開口部（共用部等）",null,"開口部（バルコニー等）",null,"その他開口部",null,"建物出入口の存する階","地下･地上･屋上","階数","出入口",null,"開口部（共用部等）",null,"開口部（バルコニー等）",null,"その他開口部",null,"建物出入口の存する階","地下･地上･屋上","階数","出入口",null,"開口部（共用部等）",null,"開口部（バルコニー等）",null,"その他開口部",null,"建物出入口の存する階","地下･地上･屋上","階数","出入口",null,"開口部（共用部等）",null,"開口部（バルコニー等）",null,"その他開口部",null,null,null,null,null,null,null,null,null,null,null,null,null,null,null,"上階",null,"下階",null,"上階",null,"下階",null,null,"上階",null,"下階",null,"上階",null,"下階",null,null,null,null,null,null,null,null,null,null,null,null,null,null,null,null,null,null,null,null,"住棟の選択・非選択のチェックボックスの作成場所（必須のチェックボックスも含む）"]
[null,null,null,null,null,null,null,null,null,null,null,null,null,null,null,null,null,null,null,null,null,null,null,null,null,null,null,null,null,null,null,null,null,null,null,null,null,null,null,null,null,null,null,null,null,null,null,null,null,null,null,null,"部位",null,null,"内法高さ",null,null,null,null,null,"部位",null,null,"内法高さ",null,null,null,null,null,null,null,null,null,null,null,null,null,null,null,null,null,null,null,null,null,null,null,null,null,null,null,null,null,null,null,null,null,null,null,null,null,null,null,null,null,null,null,null,null,null,null,null,null,null,null,null,null,null,null,null,"最高","最低","最高","最低","最高","最低","最高","最低",null,null,null,null,"最高","最低","最高","最低","最高","最低","最高","最低",null,null,null,null,null,null,null,null,null,null,null,null,null,null,null,null,null,null,null,null,null,null,null,null,null,null,null,null,null,null,null,null,null,null,null,null,null,null,null,null,null,null,null,null,null,null,null,null,null,null,null,null,null,null,null,null,null,null,null,null,null,null,null,null,null,"最高","最低","最高","最低","最高","最低","最高","最低",null,"最高","最低","最高","最低","最高","最低","最高","最低",null,null,null,null,null,null,null,null,null,null,null,null,null,null,null,null,null,null,null,1,"1-1.",null,{"$f":"IF(OR(CL7=\"\"),\"\",1)","v":""},"2-5."]
[null,null,null,null,null,null,null,null,null,null,null,null,null,null,null,null,null,null,null,null,null,null,null,null,null,null,null,null,null,null,null,null,null,null,null,null,null,null,null,null,null,null,null,null,null,null,null,null,null,null,null,null,null,null,null,null,null,null,null,null,null,null,null,null,null,null,null,null,null,null,null,null,null,null,null,null,null,null,null,null,null,null,null,null,null,null,null,null,null,null,null,null,null,null,null,null,null,null,null,null,null,null,null,null,null,null,null,null,null,null,null,null,null,null,null,null,null,null,null,null,null,null,null,null,null,null,null,null,null,null,null,null,null,null,null,null,null,null,null,null,null,null,null,null,null,null,null,null,null,null,null,null,null,null,null,null,null,null,null,null,null,null,null,null,null,null,null,null,null,null,null,null,null,null,null,null,null,null,null,null,null,null,null,null,null,null,null,null,null,null,null,null,null,null,null,null,null,null,null,null,null,null,null,null,null,null,null,null,null,null,null,null,null,null,null,null,null,null,null,null,null,null,null,null,null,null,null,null,null,null,null,null,null,null,null,null,null,null,null,null,null,null,{"$f":"IF(OR(AB8=\"\"),\"\",1)","v":""},"1-2.",null,{"$f":"IF(OR(CL8=\"\"),\"\",1)","v":""},"2-6."]
[null,null,null,null,null,null,null,null,null,null,null,null,null,null,null,null,null,null,null,null,null,null,null,null,null,null,null,null,null,null,null,null,null,null,null,null,null,null,null,null,null,null,null,null,null,null,null,null,null,null,null,null,null,null,null,null,null,null,null,null,null,null,null,null,null,null,null,null,null,null,null,null,null,null,null,null,null,null,null,null,null,null,null,null,null,null,null,null,null,null,null,null,null,null,null,null,null,null,null,null,null,null,null,null,null,null,null,null,null,null,null,null,null,null,null,null,null,null,null,null,null,null,null,null,null,null,null,null,null,null,null,null,null,null,null,null,null,null,null,null,null,null,null,null,null,null,null,null,null,null,null,null,null,null,null,null,null,null,null,null,null,null,null,null,null,null,null,null,null,null,null,null,null,null,null,null,null,null,null,null,null,null,null,null,null,null,null,null,null,null,null,null,null,null,null,null,null,null,null,null,null,null,null,null,null,null,null,null,null,null,null,null,null,null,null,null,null,null,null,null,null,null,null,null,null,null,null,null,null,null,null,null,null,null,null,null,null,null,null,null,null,null,1,"1-3."]
[null,null,null,null,null,null,null,null,null,null,null,null,null,null,null,null,null,null,null,null,null,null,null,null,null,null,null,null,null,null,null,null,null,null,null,null,null,null,null,null,null,null,null,null,null,null,null,null,null,null,null,null,null,null,null,null,null,null,null,null,null,null,null,null,null,null,null,null,null,null,null,null,null,null,null,null,null,null,null,null,null,null,null,null,null,null,null,null,null,null,null,null,null,null,null,null,null,null,null,null,null,null,null,null,null,null,null,null,null,null,null,null,null,null,null,null,null,null,null,null,null,null,null,null,null,null,null,null,null,null,null,null,null,null,null,null,null,null,null,null,null,null,null,null,null,null,null,null,null,null,null,null,null,null,null,null,null,null,null,null,null,null,null,null,null,null,null,null,null,null,null,null,null,null,null,null,null,null,null,null,null,null,null,null,null,null,null,null,null,null,null,null,null,null,null,null,null,null,null,null,null,null,null,null,null,null,null,null,null,null,null,null,null,null,null,null,null,null,null,null,null,null,null,null,null,null,null,null,null,null,null,null,null,null,null,null,null,null,null,null,null,null,{"$f":"IF(OR(AB10=\"\"),\"\",1)","v":""},"1-4.",null,1,"3-1."]
[null,null,null,null,null,null,null,null,null,null,null,null,null,null,null,null,null,null,null,null,null,null,null,null,null,null,null,null,null,null,null,null,null,null,null,null,null,null,null,null,null,null,null,null,null,null,null,null,null,null,null,null,null,null,null,null,null,null,null,null,null,null,null,null,null,null,null,null,null,null,null,null,null,null,null,null,null,null,null,null,null,"[145678]",null,null,null,null,null,null,null,null,null,null,null,null,null,null,null,null,null,null,null,null,null,null,null,null,null,null,null,null,null,null,null,null,null,null,null,null,null,null,null,null,null,null,null,null,null,null,null,null,null,null,null,null,null,null,null,null,null,null,null,null,null,null,null,null,null,null,null,null,null,null,null,null,null,null,null,null,null,null,null,null,null,null,null,null,null,null,null,null,null,null,null,null,null,null,null,null,null,null,null,null,null,null,null,null,null,null,null,null,null,null,null,null,null,null,null,null,null,null,null,null,null,null,null,null,null,null,null,null,null,null,null,null,null,null,null,null,null,null,null,null,null,null,null,null,null,null,null,null,null,null,null,null,null,null,null,null,null,null,null,null,{"$f":"IF(AB11=\"\",\"\",1)","v":""},"1-5."]
[null,null,null,null,null,null,null,null,null,null,null,null,null,null,null,null,null,null,null,null,null,null,null,null,null,null,null,null,null,null,null,null,null,null,null,null,null,null,null,null,null,null,null,null,null,null,null,null,null,null,null,null,null,null,null,null,null,null,null,null,null,null,null,null,null,null,null,null,null,null,null,null,null,null,null,null,null,null,null,null,null,null,null,null,null,null,null,null,null,null,null,null,null,null,null,null,null,null,null,null,null,null,null,null,null,null,null,null,null,null,null,null,null,null,null,null,null,null,null,null,null,null,null,null,null,null,null,null,null,null,null,null,null,null,null,null,null,null,null,null,null,null,null,null,null,null,null,null,null,null,null,null,null,null,null,null,null,null,null,null,null,null,null,null,null,null,null,null,null,null,null,null,null,null,null,null,null,null,null,null,null,null,null,null,null,null,null,null,null,null,null,null,null,null,null,null,null,null,null,null,null,null,null,null,null,null,null,null,null,null,null,null,null,null,null,null,null,null,null,null,null,null,null,null,null,null,null,null,null,null,null,null,null,null,null,null,null,null,null,null,null,null,1,"1-6.",null,{"$f":"IF(OR(DD7=\"\"),\"\",1)","v":""},"4-2."]
[null,null,null,null,null,null,null,null,null,null,null,null,null,null,null,null,null,null,null,null,null,null,null,null,null,null,null,null,null,null,null,null,null,null,null,null,null,null,null,null,null,null,null,null,null,null,null,null,null,null,null,null,null,null,null,null,null,null,null,null,null,null,null,null,null,null,null,null,null,null,null,null,null,null,null,null,null,null,null,null,null,null,null,null,null,"売電率を\n含む",null,"売電率を\n含まない",null,null,null,null,null,null,null,null,null,null,null,null,null,null,null,null,null,null,null,null,null,null,null,null,null,null,null,null,null,null,null,null,null,null,null,null,null,null,null,null,null,null,null,null,null,null,null,null,null,null,null,null,null,null,null,null,null,null,null,null,null,null,null,null,null,null,null,null,null,null,null,null,null,null,null,null,null,null,null,null,null,null,null,null,null,null,null,null,null,null,null,null,null,null,null,null,null,null,null,null,null,null,null,null,null,null,null,null,null,null,null,null,null,null,null,null,null,null,null,null,null,null,null,null,null,null,null,null,null,null,null,null,null,null,null,null,null,null,null,null,null,null,null,null,null,null,null,null,null,null,null,null,null,null,1,"1-7.",null,{"$f":"IF(OR(DD8=\"\"),\"\",1)","v":""},"4-3."]
[null,null,null,null,null,null,null,null,null,null,null,null,null,null,null,null,null,null,null,null,null,null,null,null,null,null,null,null,null,null,null,null,null,null,null,null,null,null,null,null,null,null,null,null,null,null,null,null,null,null,null,null,null,null,null,null,null,null,null,null,null,null,null,null,null,null,null,null,null,null,null,null,null,null,null,null,null,null,null,null,null,null,null,null,null,null,null,null,null,null,null,null,null,null,null,null,null,null,null,null,null,null,null,null,null,null,null,null,null,null,null,null,null,null,null,null,null,null,null,null,null,null,null,null,null,"[0a|e]","[0a|e]","[0a|e]","[0a|e]",null,null,null,null,null,null,null,null,"[0a|e]","[0a|e]","[0a|e]","[0a|e]",null,null,null,null,null,null,null,null,null,null,null,null,null,null,null,null,null,null,null,null,null,null,null,null,null,null,null,null,null,null,null,null,null,null,null,null,null,null,null,null,null,null,null,null,null,null,null,null,null,null,null,null,null,null,null,null,null,null,null,null,null,null,null,null,null,null,null,null,null,"[0a|e]","[0a|e]","[0a|e]","[0a|e]",null,null,null,null,null,"[0a|e]","[0a|e]","[0a|e]","[0a|e]"]
[null,null,null,null,null,null,null,null,null,null,null,null,null,null,null,null,null,null,null,null,null,null,null,null,"[1|4]","[0|4]",null,null,null,null,null,null,null,null,null,"[1|3]",null,null,null,null,null,null,null,null,null,"[0|4]","[0|3]",null,null,null,null,null,null,null,null,null,null,null,null,null,null,null,null,null,null,null,null,null,null,null,null,null,"地域区分","[1|4]","地域区分","[1|7]",null,null,null,null,"地域区分",null,null,null,null,null,null,null,null,null,null,null,"[0|3]","[023]",null,null,null,null,null,null,null,null,null,null,null,null,null,null,null,null,null,"％以上","％以上","％以上","％以上","％以上","％以上",null,null,null,null,"[0|5]","[0|5]","[0|5]","[0|5]",null,null,null,null,null,null,null,null,"[0|5]","[0|5]","[0|5]","[0|5]",null,null,null,null,"[0|4]","[0|3]","[0|3]","[0|3]","[0|3]","[1|5]","[0|5]",null,null,null,null,null,null,null,null,null,null,null,null,null,null,null,null,null,null,null,null,null,null,null,null,null,null,null,null,null,null,null,null,null,null,null,null,null,null,null,null,null,null,null,null,null,null,null,null,null,null,null,null,null,null,null,null,null,null,"[0|5]","[0|5]","[0|5]","[0|5]",null,null,null,null,null,"[0|5]","[0|5]","[0|5]","[0|5]"]
[]
[null,null,null,null,null,null,null,null,null,null,null,null,null,null,null,null,null,null,null,null,null,null,null,null,null,null,null,null,null,null,null,null,null,null,null,null,null,null,null,null,null,null,null,null,null,null,null,null,null,null,null,null,null,null,null,null,null,null,null,null,null,null,null,null,null,null,null,null,null,null,null,null,null,null,null,null,"ＵＡ",null,"ηＡ",null,null,null,"MJ/㎡・年"]
[null,null,null,null,null,null,null,null,null,null,null,null,null,null,null,null,null,null,null,null,null,null,null,null,null,null,null,null,null,null,null,null,null,null,null,null,null,null,null,null,null,null,null,null,null,null,null,null,null,null,null,null,null,null,null,null,null,null,null,null,null,null,null,null,null,null,null,null,null,null,null,null,null,null,null,null,null,null,null,null,null,null,null,null,null,"%"]
[{"$f":" ROW(A34) - ROW(_row) + 1","v":0},null,null,{"$f":"IF(B34=\"\",\"\",B34)","v":""},null,null,null,null,null,null,null,null,null,null,null,null,null,null,null,null,null,null,null,null,null,null,null,null,null,null,null,null,null,null,null,null,null,null,null,null,null,null,null,null,null,null,null,null,null,{"$f":"IF(GQ34=1,IF(F34=\"\",\"\",F34),\"\")","v":""},null,null,null,null,null,null,null,null,null,null,null,null,null,null,null,null,null,null,null,null,null,null,null,null,null,null,null,null,null,null,null,null,null,null,null,null,null,null,null,null,null,null,null,null,null,null,null,null,null,null,null,null,null,null,null,null,null,null,null,null,null,null,null,null,null,null,null,null,null,null,null,null,null,null,null,null,null,null,null,null,null,null,null,null,null,null,null,null,null,null,null,null,null,null,null,null,null,null,null,null,{"$f":"IF(F34=\"\",\"\",F34)","v":""},null,null,null,null,null,null,null,null,{"$f":"IF(HU34=\"\",\"\",HU34)","v":""},null,{"$f":"IF(OR(IF(OR(FG34=\"\",FG34=\"無し\"),\"\",1)=1,IF(OR(FI34=\"\",FI34=\"無し\"),\"\",1)=1,IF(OR(FK34=\"\",FK34=\"無し\"),\"\",1)=1,IF(OR(FM34=\"\",FM34=\"無し\"),\"\",1)=1),IF(F34=\"\",\"\",F34),\"\")","v":""},null,null,null,null,null,null,null,null,null,null,{"$f":"IF(OR(IF(OR(FR34=\"\",FR34=\"無し\"),\"\",1)=1,IF(OR(FT34=\"\",FT34=\"無し\"),\"\",1)=1,IF(OR(FV34=\"\",FV34=\"無し\"),\"\",1)=1,IF(OR(FX34=\"\",FX34=\"無し\"),\"\",1)=1),IF(F34=\"\",\"\",F34),\"\")","v":""},null,null,null,null,null,null,null,null,null,null,{"$f":"IF(OR(IF(OR(GC34=\"\",GC34=\"無し\"),\"\",1)=1,IF(OR(GE34=\"\",GE34=\"無し\"),\"\",1)=1,IF(OR(GG34=\"\",GG34=\"無し\"),\"\",1)=1,IF(OR(GI34=\"\",GI34=\"無し\"),\"\",1)=1),IF(F34=\"\",\"\",F34),\"\")","v":""},null,null,null,null,null,null,null,null,{"$f":"IF(Y34<>\"\",1,\"\")","v":""},{"$f":"IF(Z34<>\"\",1,\"\")","v":""},{"$f":"IF(OR(AA34=\"○\",AB34<>\"\",AG34<>\"\",AJ34<>\"\"),1,\"\")","v":""},{"$f":"IF(OR(AK34=\"○\",AL34=\"○\",AM34=\"○\",AN34=\"○\",AQ34=\"○\"),1,\"\")","v":""},{"$f":"IF(AT34<>\"\",1,\"\")","v":""},1,{"$f":"IF(OR(AV34=\"○\",AY34<>\"\",BA34=\"はり\",BA34=\"傾斜屋根\",BA34=\"その他\",BD34<>\"\"),1,\"\")","v":""},1,1,{"$f":"IF(OR(CL34=\"○\",CM34=\"○\",CN34=\"○\",CO34=1,CO34=2,CO34=3,CP34=1,CP34=2,CP34=3),1,\"\")","v":""},{"$f":"IF(OR(CQ34=\"○\",CR34=\"○\",CW34=\"○\",CX34=\"○\",DA34=\"○\",DB34=\"○\",DE34=\"○\",DF34=\"○\"),1,\"\")","v":""},{"$f":"IF(DH34=\"\",\"\",1)","v":""},{"$f":"IF(OR(DI34<>\"\",DJ34<>\"\",DK34<>\"\",DL34<>\"\",DM34<>\"\"),1,\"\")","v":""},{"$f":"IF(OR(GY34=1,GZ34=1,HA34=1,HB34=1,HC34=1,HD34=1,HE34=1,HF34=1),\"○\",\"\")","v":""},{"$f":"IF(OR(DR34=\"\",DR34=0),\"\",1)","v":""},{"$f":"IF(OR(DS34=\"\",DS34=0),\"\",1)","v":""},{"$f":"IF(OR(DT34=\"\",DT34=0),\"\",1)","v":""},{"$f":"IF(OR(DU34=\"\",DU34=0),\"\",1)","v":""},{"$f":"IF(OR(DV34=\"\",DV34=0),\"\",1)","v":""},{"$f":"IF(OR(DW34=\"\",DW34=0),\"\",1)","v":""},{"$f":"IF(OR(DX34=\"\",DX34=0),\"\",1)","v":""},{"$f":"IF(OR(DY34=\"\",DY34=0),\"\",1)","v":""},{"$f":"IF(OR(HH34=1,HI34=1,HJ34=1,HK34=1,HM34=1,HL34=1,HN34=1,HO34=1),\"○\",\"\")","v":""},{"$f":"IF(OR(ED34=\"\",ED34=0),\"\",1)","v":""},{"$f":"IF(OR(EE34=\"\",EE34=0),\"\",1)","v":""},{"$f":"IF(OR(EF34=\"\",EF34=0),\"\",1)","v":""},{"$f":"IF(OR(EG34=\"\",EG34=0),\"\",1)","v":""},{"$f":"IF(OR(EH34=\"\",EH34=0),\"\",1)","v":""},{"$f":"IF(OR(EI34=\"\",EI34=0),\"\",1)","v":""},{"$f":"IF(OR(EJ34=\"\",EJ34=0),\"\",1)","v":""},{"$f":"IF(OR(EK34=\"\",EK34=0),\"\",1)","v":""},{"$f":"IF(OR(EL34=4,EL34=3,EL34=2,EL34=1),\"○\",\"\")","v":""},{"$f":"IF(OR(EM34=1,EM34=2,EM34=3),\"○\",IF(OR(EN34=1,EN34=2,EN34=3),\"○\",IF(OR(EO34=1,EO34=2,EO34=3),\"○\",IF(OR(EP34=1,EP34=2,EP34=3),\"○\",\"\"))))","v":""},{"$f":"IF(EQ34=\"\",\"\",1)","v":""},{"$f":"IF(OR(ER34=\"\"),\"\",1)","v":""},{"$f":"IF(OR(HV34=1,HW34=1,HX34=1,HY34=1),1,\"\")","v":""},{"$f":"IF(AND(FE34=\"\",FF34=\"\",FG34=\"\",FI34=\"\",FK34=\"\",FM34=\"\"),\"\",\"×\")","v":""},{"$f":"IF(AND(OR(EV34=\"\",EV34=\"無し\"),OR(FG34=\"\",FG34=\"無し\")),\"\",1)","v":""},{"$f":"IF(AND(OR(EX34=\"\",EX34=\"無し\"),OR(FI34=\"\",FI34=\"無し\")),\"\",1)","v":""},{"$f":"IF(OR(FK34=\"\",FK34=\"無し\"),\"\",1)","v":""},{"$f":"IF(AND(OR(FB34=\"\",FB34=\"無し\"),OR(FM34=\"\",FM34=\"無し\")),\"\",1)","v":""}]
[1,null,null,{"$f":"IF(B35=\"\",\"\",B35)","v":""},null,null,null,null,null,null,null,null,null,null,null,null,null,null,null,null,null,null,null,null,null,null,null,null,null,null,null,null,null,null,null,null,null,null,null,null,null,null,null,null,null,null,null,null,null,"",null,null,null,null,null,null,null,null,null,null,null,null,null,null,null,null,null,null,null,null,null,null,null,null,null,null,null,null,null,null,null,null,null,null,null,null,null,null,null,null,null,null,null,null,null,null,null,null,null,null,null,null,null,null,null,null,null,null,null,null,null,null,null,null,null,null,null,null,null,null,null,null,null,null,null,null,null,null,null,null,null,null,null,null,null,null,null,null,null,null,null,null,null,null,null,null,null,null,null,null,"",null,null,null,null,null,null,null,null,{"$f":"IF(HU35=\"\",\"\",HU35)","v":""},null,"",null,null,null,null,null,null,null,null,null,null,"",null,null,null,null,null,null,null,null,null,null,"",null,null,null,null,null,null,null,null,"","","","","",1,"",1,1,{"$f":"IF(OR(CL35=\"○\",CM35=\"○\",CN35=\"○\",CO35=1,CO35=2,CO35=3,CP35=1,CP35=2,CP35=3),1,\"\")","v":""},{"$f":"IF(OR(CQ35=\"○\",CR35=\"○\",CW35=\"○\",CX35=\"○\",DA35=\"○\",DB35=\"○\",DE35=\"○\",DF35=\"○\"),1,\"\")","v":""},{"$f":"IF(DH35=\"\",\"\",1)","v":""},{"$f":"IF(OR(DI35<>\"\",DJ35<>\"\",DK35<>\"\",DL35<>\"\",DM35<>\"\"),1,\"\")","v":""},{"$f":"IF(OR(GY35=1,GZ35=1,HA35=1,HB35=1,HC35=1,HD35=1,HE35=1,HF35=1),\"○\",\"\")","v":""},{"$f":"IF(OR(DR35=\"\",DR35=0),\"\",1)","v":""},"","","","","","","",{"$f":"IF(OR(HH35=1,HI35=1,HJ35=1,HK35=1,HM35=1,HL35=1,HN35=1,HO35=1),\"○\",\"\")","v":""},{"$f":"IF(OR(ED35=\"\",ED35=0),\"\",1)","v":""},{"$f":"IF(OR(EE35=\"\",EE35=0),\"\",1)","v":""},"","","","","","",{"$f":"IF(OR(EL35=4,EL35=3,EL35=2,EL35=1),\"○\",\"\")","v":""},{"$f":"IF(OR(EM35=1,EM35=2,EM35=3),\"○\",IF(OR(EN35=1,EN35=2,EN35=3),\"○\",IF(OR(EO35=1,EO35=2,EO35=3),\"○\",IF(OR(EP35=1,EP35=2,EP35=3),\"○\",\"\"))))","v":""},{"$f":"IF(EQ35=\"\",\"\",1)","v":""},{"$f":"IF(OR(ER35=\"\"),\"\",1)","v":""},{"$f":"IF(OR(HV35=1,HW35=1,HX35=1,HY35=1),1,\"\")","v":""},{"$f":"IF(AND(FE35=\"\",FF35=\"\",FG35=\"\",FI35=\"\",FK35=\"\",FM35=\"\"),\"\",\"×\")","v":""},{"$f":"IF(AND(OR(EV35=\"\",EV35=\"無し\"),OR(FG35=\"\",FG35=\"無し\")),\"\",1)","v":""},{"$f":"IF(AND(OR(EX35=\"\",EX35=\"無し\"),OR(FI35=\"\",FI35=\"無し\")),\"\",1)","v":""},{"$f":"IF(OR(FK35=\"\",FK35=\"無し\"),\"\",1)","v":""},{"$f":"IF(AND(OR(FB35=\"\",FB35=\"無し\"),OR(FM35=\"\",FM35=\"無し\")),\"\",1)","v":""}]
[2,null,null,{"$f":"IF(B36=\"\",\"\",B36)","v":""},null,null,null,null,null,null,null,null,null,null,null,null,null,null,null,null,null,null,null,null,null,null,null,null,null,null,null,null,null,null,null,null,null,null,null,null,null,null,null,null,null,null,null,null,null,"",null,null,null,null,null,null,null,null,null,null,null,null,null,null,null,null,null,null,null,null,null,null,null,null,null,null,null,null,null,null,null,null,null,null,null,null,null,null,null,null,null,null,null,null,null,null,null,null,null,null,null,null,null,null,null,null,null,null,null,null,null,null,null,null,null,null,null,null,null,null,null,null,null,null,null,null,null,null,null,null,null,null,null,null,null,null,null,null,null,null,null,null,null,null,null,null,null,null,null,null,"",null,null,null,null,null,null,null,null,{"$f":"IF(HU36=\"\",\"\",HU36)","v":""},null,"",null,null,null,null,null,null,null,null,null,null,"",null,null,null,null,null,null,null,null,null,null,"",null,null,null,null,null,null,null,null,"","","","","",1,"",1,1,{"$f":"IF(OR(CL36=\"○\",CM36=\"○\",CN36=\"○\",CO36=1,CO36=2,CO36=3,CP36=1,CP36=2,CP36=3),1,\"\")","v":""},{"$f":"IF(OR(CQ36=\"○\",CR36=\"○\",CW36=\"○\",CX36=\"○\",DA36=\"○\",DB36=\"○\",DE36=\"○\",DF36=\"○\"),1,\"\")","v":""},{"$f":"IF(DH36=\"\",\"\",1)","v":""},{"$f":"IF(OR(DI36<>\"\",DJ36<>\"\",DK36<>\"\",DL36<>\"\",DM36<>\"\"),1,\"\")","v":""},{"$f":"IF(OR(GY36=1,GZ36=1,HA36=1,HB36=1,HC36=1,HD36=1,HE36=1,HF36=1),\"○\",\"\")","v":""},{"$f":"IF(OR(DR36=\"\",DR36=0),\"\",1)","v":""},{"$f":"IF(OR(DS36=\"\",DS36=0),\"\",1)","v":""},{"$f":"IF(OR(DT36=\"\",DT36=0),\"\",1)","v":""},{"$f":"IF(OR(DU36=\"\",DU36=0),\"\",1)","v":""},{"$f":"IF(OR(DV36=\"\",DV36=0),\"\",1)","v":""},{"$f":"IF(OR(DW36=\"\",DW36=0),\"\",1)","v":""},{"$f":"IF(OR(DX36=\"\",DX36=0),\"\",1)","v":""},{"$f":"IF(OR(DY36=\"\",DY36=0),\"\",1)","v":""},{"$f":"IF(OR(HH36=1,HI36=1,HJ36=1,HK36=1,HM36=1,HL36=1,HN36=1,HO36=1),\"○\",\"\")","v":""},{"$f":"IF(OR(ED36=\"\",ED36=0),\"\",1)","v":""},{"$f":"IF(OR(EE36=\"\",EE36=0),\"\",1)","v":""},{"$f":"IF(OR(EF36=\"\",EF36=0),\"\",1)","v":""},{"$f":"IF(OR(EG36=\"\",EG36=0),\"\",1)","v":""},{"$f":"IF(OR(EH36=\"\",EH36=0),\"\",1)","v":""},{"$f":"IF(OR(EI36=\"\",EI36=0),\"\",1)","v":""},{"$f":"IF(OR(EJ36=\"\",EJ36=0),\"\",1)","v":""},{"$f":"IF(OR(EK36=\"\",EK36=0),\"\",1)","v":""},{"$f":"IF(OR(EL36=4,EL36=3,EL36=2,EL36=1),\"○\",\"\")","v":""},{"$f":"IF(OR(EM36=1,EM36=2,EM36=3),\"○\",IF(OR(EN36=1,EN36=2,EN36=3),\"○\",IF(OR(EO36=1,EO36=2,EO36=3),\"○\",IF(OR(EP36=1,EP36=2,EP36=3),\"○\",\"\"))))","v":""},{"$f":"IF(EQ36=\"\",\"\",1)","v":""},{"$f":"IF(OR(ER36=\"\"),\"\",1)","v":""},{"$f":"IF(OR(HV36=1,HW36=1,HX36=1,HY36=1),1,\"\")","v":""},{"$f":"IF(AND(FE36=\"\",FF36=\"\",FG36=\"\",FI36=\"\",FK36=\"\",FM36=\"\"),\"\",\"×\")","v":""},{"$f":"IF(AND(OR(EV36=\"\",EV36=\"無し\"),OR(FG36=\"\",FG36=\"無し\")),\"\",1)","v":""},{"$f":"IF(AND(OR(EX36=\"\",EX36=\"無し\"),OR(FI36=\"\",FI36=\"無し\")),\"\",1)","v":""},{"$f":"IF(OR(FK36=\"\",FK36=\"無し\"),\"\",1)","v":""},{"$f":"IF(AND(OR(FB36=\"\",FB36=\"無し\"),OR(FM36=\"\",FM36=\"無し\")),\"\",1)","v":""}]
[3,null,null,{"$f":"IF(B37=\"\",\"\",B37)","v":""},null,null,null,null,null,null,null,null,null,null,null,null,null,null,null,null,null,null,null,null,null,null,null,null,null,null,null,null,null,null,null,null,null,null,null,null,null,null,null,null,null,null,null,null,null,"",null,null,null,null,null,null,null,null,null,null,null,null,null,null,null,null,null,null,null,null,null,null,null,null,null,null,null,null,null,null,null,null,null,null,null,null,null,null,null,null,null,null,null,null,null,null,null,null,null,null,null,null,null,null,null,null,null,null,null,null,null,null,null,null,null,null,null,null,null,null,null,null,null,null,null,null,null,null,null,null,null,null,null,null,null,null,null,null,null,null,null,null,null,null,null,null,null,null,null,null,"",null,null,null,null,null,null,null,null,"",null,"",null,null,null,null,null,null,null,null,null,null,"",null,null,null,null,null,null,null,null,null,null,"",null,null,null,null,null,null,null,null,"","","","","",1,"",1,1,{"$f":"IF(OR(CL37=\"○\",CM37=\"○\",CN37=\"○\",CO37=1,CO37=2,CO37=3,CP37=1,CP37=2,CP37=3),1,\"\")","v":""},"","","","","","","","","","","","","","","","","","","","","","","","","","","","","","",""]
[4,null,null,"",null,null,null,null,null,null,null,null,null,null,null,null,null,null,null,null,null,null,null,null,null,null,null,null,null,null,null,null,null,null,null,null,null,null,null,null,null,null,null,null,null,null,null,null,null,"",null,null,null,null,null,null,null,null,null,null,null,null,null,null,null,null,null,null,null,null,null,null,null,null,null,null,null,null,null,null,null,null,null,null,null,null,null,null,null,null,null,null,null,null,null,null,null,null,null,null,null,null,null,null,null,null,null,null,null,null,null,null,null,null,null,null,null,null,null,null,null,null,null,null,null,null,null,null,null,null,null,null,null,null,null,null,null,null,null,null,null,null,null,null,null,null,null,null,null,null,"",null,null,null,null,null,null,null,null,"",null,"",null,null,null,null,null,null,null,null,null,null,"",null,null,null,null,null,null,null,null,null,null,"",null,null,null,null,null,null,null,null,"","","","","",1,"",1,1,"","","","","","","","","","","","","","","","","","","","","","","","","","","","","","","",""]
[5,null,null,"",null,null,null,null,null,null,null,null,null,null,null,null,null,null,null,null,null,null,null,null,null,null,null,null,null,null,null,null,null,null,null,null,null,null,null,null,null,null,null,null,null,null,null,null,null,"",null,null,null,null,null,null,null,null,null,null,null,null,null,null,null,null,null,null,null,null,null,null,null,null,null,null,null,null,null,null,null,null,null,null,null,null,null,null,null,null,null,null,null,null,null,null,null,null,null,null,null,null,null,null,null,null,null,null,null,null,null,null,null,null,null,null,null,null,null,null,null,null,null,null,null,null,null,null,null,null,null,null,null,null,null,null,null,null,null,null,null,null,null,null,null,null,null,null,null,null,"",null,null,null,null,null,null,null,null,"",null,"",null,null,null,null,null,null,null,null,null,null,"",null,null,null,null,null,null,null,null,null,null,"",null,null,null,null,null,null,null,null,"","","","","",1,"",1,1,"","","","","","","","","","","","","","","","","","","","","","","","","","","","","","","",""]
[6,null,null,"",null,null,null,null,null,null,null,null,null,null,null,null,null,null,null,null,null,null,null,null,null,null,null,null,null,null,null,null,null,null,null,null,null,null,null,null,null,null,null,null,null,null,null,null,null,"",null,null,null,null,null,null,null,null,null,null,null,null,null,null,null,null,null,null,null,null,null,null,null,null,null,null,null,null,null,null,null,null,null,null,null,null,null,null,null,null,null,null,null,null,null,null,null,null,null,null,null,null,null,null,null,null,null,null,null,null,null,null,null,null,null,null,null,null,null,null,null,null,null,null,null,null,null,null,null,null,null,null,null,null,null,null,null,null,null,null,null,null,null,null,null,null,null,null,null,null,"",null,null,null,null,null,null,null,null,"",null,"",null,null,null,null,null,null,null,null,null,null,"",null,null,null,null,null,null,null,null,null,null,"",null,null,null,null,null,null,null,null,"","","","","",1,"",1,1,"","","","","","","","","","","","","","","","","","","","","","","","","","","","","","","",""]
[7,null,null,"",null,null,null,null,null,null,null,null,null,null,null,null,null,null,null,null,null,null,null,null,null,null,null,null,null,null,null,null,null,null,null,null,null,null,null,null,null,null,null,null,null,null,null,null,null,"",null,null,null,null,null,null,null,null,null,null,null,null,null,null,null,null,null,null,null,null,null,null,null,null,null,null,null,null,null,null,null,null,null,null,null,null,null,null,null,null,null,null,null,null,null,null,null,null,null,null,null,null,null,null,null,null,null,null,null,null,null,null,null,null,null,null,null,null,null,null,null,null,null,null,null,null,null,null,null,null,null,null,null,null,null,null,null,null,null,null,null,null,null,null,null,null,null,null,null,null,"",null,null,null,null,null,null,null,null,"",null,"",null,null,null,null,null,null,null,null,null,null,"",null,null,null,null,null,null,null,null,null,null,"",null,null,null,null,null,null,null,null,"","","","","",1,"",1,1,"","","","","","","","","","","","","","","","","","","","","","","","","","","","","","","",""]
[8,null,null,"",null,null,null,null,null,null,null,null,null,null,null,null,null,null,null,null,null,null,null,null,null,null,null,null,null,null,null,null,null,null,null,null,null,null,null,null,null,null,null,null,null,null,null,null,null,"",null,null,null,null,null,null,null,null,null,null,null,null,null,null,null,null,null,null,null,null,null,null,null,null,null,null,null,null,null,null,null,null,null,null,null,null,null,null,null,null,null,null,null,null,null,null,null,null,null,null,null,null,null,null,null,null,null,null,null,null,null,null,null,null,null,null,null,null,null,null,null,null,null,null,null,null,null,null,null,null,null,null,null,null,null,null,null,null,null,null,null,null,null,null,null,null,null,null,null,null,"",null,null,null,null,null,null,null,null,"",null,"",null,null,null,null,null,null,null,null,null,null,"",null,null,null,null,null,null,null,null,null,null,"",null,null,null,null,null,null,null,null,"","","","","",1,"",1,1,"","","","","","","","","","","","","","","","","","","","","","","","","","","","","","","",""]
[9,null,null,"",null,null,null,null,null,null,null,null,null,null,null,null,null,null,null,null,null,null,null,null,null,null,null,null,null,null,null,null,null,null,null,null,null,null,null,null,null,null,null,null,null,null,null,null,null,"",null,null,null,null,null,null,null,null,null,null,null,null,null,null,null,null,null,null,null,null,null,null,null,null,null,null,null,null,null,null,null,null,null,null,null,null,null,null,null,null,null,null,null,null,null,null,null,null,null,null,null,null,null,null,null,null,null,null,null,null,null,null,null,null,null,null,null,null,null,null,null,null,null,null,null,null,null,null,null,null,null,null,null,null,null,null,null,null,null,null,null,null,null,null,null,null,null,null,null,null,"",null,null,null,null,null,null,null,null,"",null,"",null,null,null,null,null,null,null,null,null,null,"",null,null,null,null,null,null,null,null,null,null,"",null,null,null,null,null,null,null,null,"","","","","",1,"",1,1,"","","","","","","","","","","","","","","","","","","","","","","","","","","","","","","",""]
[10,null,null,"",null,null,null,null,null,null,null,null,null,null,null,null,null,null,null,null,null,null,null,null,null,null,null,null,null,null,null,null,null,null,null,null,null,null,null,null,null,null,null,null,null,null,null,null,null,"",null,null,null,null,null,null,null,null,null,null,null,null,null,null,null,null,null,null,null,null,null,null,null,null,null,null,null,null,null,null,null,null,null,null,null,null,null,null,null,null,null,null,null,null,null,null,null,null,null,null,null,null,null,null,null,null,null,null,null,null,null,null,null,null,null,null,null,null,null,null,null,null,null,null,null,null,null,null,null,null,null,null,null,null,null,null,null,null,null,null,null,null,null,null,null,null,null,null,null,null,"",null,null,null,null,null,null,null,null,"",null,"",null,null,null,null,null,null,null,null,null,null,"",null,null,null,null,null,null,null,null,null,null,"",null,null,null,null,null,null,null,null,"","","","","",1,"",1,1,"","","","","","","","","","","","","","","","","","","","","","","","","","","","","","","",""]
[11,null,null,"",null,null,null,null,null,null,null,null,null,null,null,null,null,null,null,null,null,null,null,null,null,null,null,null,null,null,null,null,null,null,null,null,null,null,null,null,null,null,null,null,null,null,null,null,null,"",null,null,null,null,null,null,null,null,null,null,null,null,null,null,null,null,null,null,null,null,null,null,null,null,null,null,null,null,null,null,null,null,null,null,null,null,null,null,null,null,null,null,null,null,null,null,null,null,null,null,null,null,null,null,null,null,null,null,null,null,null,null,null,null,null,null,null,null,null,null,null,null,null,null,null,null,null,null,null,null,null,null,null,null,null,null,null,null,null,null,null,null,null,null,null,null,null,null,null,null,"",null,null,null,null,null,null,null,null,"",null,"",null,null,null,null,null,null,null,null,null,null,"",null,null,null,null,null,null,null,null,null,null,"",null,null,null,null,null,null,null,null,"","","","","",1,"",1,1,"","","","","","","","","","","","","","","","","","","","","","","","","","","","","","","",""]
[12,null,null,"",null,null,null,null,null,null,null,null,null,null,null,null,null,null,null,null,null,null,null,null,null,null,null,null,null,null,null,null,null,null,null,null,null,null,null,null,null,null,null,null,null,null,null,null,null,"",null,null,null,null,null,null,null,null,null,null,null,null,null,null,null,null,null,null,null,null,null,null,null,null,null,null,null,null,null,null,null,null,null,null,null,null,null,null,null,null,null,null,null,null,null,null,null,null,null,null,null,null,null,null,null,null,null,null,null,null,null,null,null,null,null,null,null,null,null,null,null,null,null,null,null,null,null,null,null,null,null,null,null,null,null,null,null,null,null,null,null,null,null,null,null,null,null,null,null,null,"",null,null,null,null,null,null,null,null,"",null,"",null,null,null,null,null,null,null,null,null,null,"",null,null,null,null,null,null,null,null,null,null,"",null,null,null,null,null,null,null,null,"","","","","",1,"",1,1,"","","","","","","","","","","","","","","","","","","","","","","","","","","","","","","",""]
[13,null,null,"",null,null,null,null,null,null,null,null,null,null,null,null,null,null,null,null,null,null,null,null,null,null,null,null,null,null,null,null,null,null,null,null,null,null,null,null,null,null,null,null,null,null,null,null,null,"",null,null,null,null,null,null,null,null,null,null,null,null,null,null,null,null,null,null,null,null,null,null,null,null,null,null,null,null,null,null,null,null,null,null,null,null,null,null,null,null,null,null,null,null,null,null,null,null,null,null,null,null,null,null,null,null,null,null,null,null,null,null,null,null,null,null,null,null,null,null,null,null,null,null,null,null,null,null,null,null,null,null,null,null,null,null,null,null,null,null,null,null,null,null,null,null,null,null,null,null,"",null,null,null,null,null,null,null,null,"",null,"",null,null,null,null,null,null,null,null,null,null,"",null,null,null,null,null,null,null,null,null,null,"",null,null,null,null,null,null,null,null,"","","","","",1,"",1,1,"","","","","","","","","","","","","","","","","","","","","","","","","","","","","","","",""]
[14,null,null,"",null,null,null,null,null,null,null,null,null,null,null,null,null,null,null,null,null,null,null,null,null,null,null,null,null,null,null,null,null,null,null,null,null,null,null,null,null,null,null,null,null,null,null,null,null,"",null,null,null,null,null,null,null,null,null,null,null,null,null,null,null,null,null,null,null,null,null,null,null,null,null,null,null,null,null,null,null,null,null,null,null,null,null,null,null,null,null,null,null,null,null,null,null,null,null,null,null,null,null,null,null,null,null,null,null,null,null,null,null,null,null,null,null,null,null,null,null,null,null,null,null,null,null,null,null,null,null,null,null,null,null,null,null,null,null,null,null,null,null,null,null,null,null,null,null,null,"",null,null,null,null,null,null,null,null,"",null,"",null,null,null,null,null,null,null,null,null,null,"",null,null,null,null,null,null,null,null,null,null,"",null,null,null,null,null,null,null,null,"","","","","",1,"",1,1,"","","","","","","","","","","","","","","","","","","","","","","","","","","","","","","",""]
[15,null,null,"",null,null,null,null,null,null,null,null,null,null,null,null,null,null,null,null,null,null,null,null,null,null,null,null,null,null,null,null,null,null,null,null,null,null,null,null,null,null,null,null,null,null,null,null,null,"",null,null,null,null,null,null,null,null,null,null,null,null,null,null,null,null,null,null,null,null,null,null,null,null,null,null,null,null,null,null,null,null,null,null,null,null,null,null,null,null,null,null,null,null,null,null,null,null,null,null,null,null,null,null,null,null,null,null,null,null,null,null,null,null,null,null,null,null,null,null,null,null,null,null,null,null,null,null,null,null,null,null,null,null,null,null,null,null,null,null,null,null,null,null,null,null,null,null,null,null,"",null,null,null,null,null,null,null,null,"",null,"",null,null,null,null,null,null,null,null,null,null,"",null,null,null,null,null,null,null,null,null,null,"",null,null,null,null,null,null,null,null,"","","","","",1,"",1,1,"","","","","","","","","","","","","","","","","","","","","","","","","","","","","","","",""]
[16,null,null,"",null,null,null,null,null,null,null,null,null,null,null,null,null,null,null,null,null,null,null,null,null,null,null,null,null,null,null,null,null,null,null,null,null,null,null,null,null,null,null,null,null,null,null,null,null,"",null,null,null,null,null,null,null,null,null,null,null,null,null,null,null,null,null,null,null,null,null,null,null,null,null,null,null,null,null,null,null,null,null,null,null,null,null,null,null,null,null,null,null,null,null,null,null,null,null,null,null,null,null,null,null,null,null,null,null,null,null,null,null,null,null,null,null,null,null,null,null,null,null,null,null,null,null,null,null,null,null,null,null,null,null,null,null,null,null,null,null,null,null,null,null,null,null,null,null,null,"",null,null,null,null,null,null,null,null,"",null,"",null,null,null,null,null,null,null,null,null,null,"",null,null,null,null,null,null,null,null,null,null,"",null,null,null,null,null,null,null,null,"","","","","",1,"",1,1,"","","","","","","","","","","","","","","","","","","","","","","","","","","","","","","",""]
[17,null,null,"",null,null,null,null,null,null,null,null,null,null,null,null,null,null,null,null,null,null,null,null,null,null,null,null,null,null,null,null,null,null,null,null,null,null,null,null,null,null,null,null,null,null,null,null,null,"",null,null,null,null,null,null,null,null,null,null,null,null,null,null,null,null,null,null,null,null,null,null,null,null,null,null,null,null,null,null,null,null,null,null,null,null,null,null,null,null,null,null,null,null,null,null,null,null,null,null,null,null,null,null,null,null,null,null,null,null,null,null,null,null,null,null,null,null,null,null,null,null,null,null,null,null,null,null,null,null,null,null,null,null,null,null,null,null,null,null,null,null,null,null,null,null,null,null,null,null,"",null,null,null,null,null,null,null,null,"",null,"",null,null,null,null,null,null,null,null,null,null,"",null,null,null,null,null,null,null,null,null,null,"",null,null,null,null,null,null,null,null,"","","","","",1,"",1,1,"","","","","","","","","","","","","","","","","","","","","","","","","","","","","","","",""]
[18,null,null,"",null,null,null,null,null,null,null,null,null,null,null,null,null,null,null,null,null,null,null,null,null,null,null,null,null,null,null,null,null,null,null,null,null,null,null,null,null,null,null,null,null,null,null,null,null,"",null,null,null,null,null,null,null,null,null,null,null,null,null,null,null,null,null,null,null,null,null,null,null,null,null,null,null,null,null,null,null,null,null,null,null,null,null,null,null,null,null,null,null,null,null,null,null,null,null,null,null,null,null,null,null,null,null,null,null,null,null,null,null,null,null,null,null,null,null,null,null,null,null,null,null,null,null,null,null,null,null,null,null,null,null,null,null,null,null,null,null,null,null,null,null,null,null,null,null,null,"",null,null,null,null,null,null,null,null,"",null,"",null,null,null,null,null,null,null,null,null,null,"",null,null,null,null,null,null,null,null,null,null,"",null,null,null,null,null,null,null,null,"","","","","",1,"",1,1,"","","","","","","","","","","","","","","","","","","","","","","","","","","","","","","",""]
[19,null,null,"",null,null,null,null,null,null,null,null,null,null,null,null,null,null,null,null,null,null,null,null,null,null,null,null,null,null,null,null,null,null,null,null,null,null,null,null,null,null,null,null,null,null,null,null,null,"",null,null,null,null,null,null,null,null,null,null,null,null,null,null,null,null,null,null,null,null,null,null,null,null,null,null,null,null,null,null,null,null,null,null,null,null,null,null,null,null,null,null,null,null,null,null,null,null,null,null,null,null,null,null,null,null,null,null,null,null,null,null,null,null,null,null,null,null,null,null,null,null,null,null,null,null,null,null,null,null,null,null,null,null,null,null,null,null,null,null,null,null,null,null,null,null,null,null,null,null,"",null,null,null,null,null,null,null,null,"",null,"",null,null,null,null,null,null,null,null,null,null,"",null,null,null,null,null,null,null,null,null,null,"",null,null,null,null,null,null,null,null,"","","","","",1,"",1,1,"","","","","","","","","","","","","","","","","","","","","","","","","","","","","","","",""]
[20,null,null,"",null,null,null,null,null,null,null,null,null,null,null,null,null,null,null,null,null,null,null,null,null,null,null,null,null,null,null,null,null,null,null,null,null,null,null,null,null,null,null,null,null,null,null,null,null,"",null,null,null,null,null,null,null,null,null,null,null,null,null,null,null,null,null,null,null,null,null,null,null,null,null,null,null,null,null,null,null,null,null,null,null,null,null,null,null,null,null,null,null,null,null,null,null,null,null,null,null,null,null,null,null,null,null,null,null,null,null,null,null,null,null,null,null,null,null,null,null,null,null,null,null,null,null,null,null,null,null,null,null,null,null,null,null,null,null,null,null,null,null,null,null,null,null,null,null,null,"",null,null,null,null,null,null,null,null,"",null,"",null,null,null,null,null,null,null,null,null,null,"",null,null,null,null,null,null,null,null,null,null,"",null,null,null,null,null,null,null,null,"","","","","",1,"",1,1,"","","","","","","","","","","","","","","","","","","","","","","","","","","","","","","",""]
[21,null,null,"",null,null,null,null,null,null,null,null,null,null,null,null,null,null,null,null,null,null,null,null,null,null,null,null,null,null,null,null,null,null,null,null,null,null,null,null,null,null,null,null,null,null,null,null,null,"",null,null,null,null,null,null,null,null,null,null,null,null,null,null,null,null,null,null,null,null,null,null,null,null,null,null,null,null,null,null,null,null,null,null,null,null,null,null,null,null,null,null,null,null,null,null,null,null,null,null,null,null,null,null,null,null,null,null,null,null,null,null,null,null,null,null,null,null,null,null,null,null,null,null,null,null,null,null,null,null,null,null,null,null,null,null,null,null,null,null,null,null,null,null,null,null,null,null,null,null,"",null,null,null,null,null,null,null,null,"",null,"",null,null,null,null,null,null,null,null,null,null,"",null,null,null,null,null,null,null,null,null,null,"",null,null,null,null,null,null,null,null,"","","","","",1,"",1,1,"","","","","","","","","","","","","","","","","","","","","","","","","","","","","","","",""]
[22,null,null,"",null,null,null,null,null,null,null,null,null,null,null,null,null,null,null,null,null,null,null,null,null,null,null,null,null,null,null,null,null,null,null,null,null,null,null,null,null,null,null,null,null,null,null,null,null,"",null,null,null,null,null,null,null,null,null,null,null,null,null,null,null,null,null,null,null,null,null,null,null,null,null,null,null,null,null,null,null,null,null,null,null,null,null,null,null,null,null,null,null,null,null,null,null,null,null,null,null,null,null,null,null,null,null,null,null,null,null,null,null,null,null,null,null,null,null,null,null,null,null,null,null,null,null,null,null,null,null,null,null,null,null,null,null,null,null,null,null,null,null,null,null,null,null,null,null,null,"",null,null,null,null,null,null,null,null,"",null,"",null,null,null,null,null,null,null,null,null,null,"",null,null,null,null,null,null,null,null,null,null,"",null,null,null,null,null,null,null,null,"","","","","",1,"",1,1,"","","","","","","","","","","","","","","","","","","","","","","","","","","","","","","",""]
[23,null,null,"",null,null,null,null,null,null,null,null,null,null,null,null,null,null,null,null,null,null,null,null,null,null,null,null,null,null,null,null,null,null,null,null,null,null,null,null,null,null,null,null,null,null,null,null,null,"",null,null,null,null,null,null,null,null,null,null,null,null,null,null,null,null,null,null,null,null,null,null,null,null,null,null,null,null,null,null,null,null,null,null,null,null,null,null,null,null,null,null,null,null,null,null,null,null,null,null,null,null,null,null,null,null,null,null,null,null,null,null,null,null,null,null,null,null,null,null,null,null,null,null,null,null,null,null,null,null,null,null,null,null,null,null,null,null,null,null,null,null,null,null,null,null,null,null,null,null,"",null,null,null,null,null,null,null,null,"",null,"",null,null,null,null,null,null,null,null,null,null,"",null,null,null,null,null,null,null,null,null,null,"",null,null,null,null,null,null,null,null,"","","","","",1,"",1,1,"","","","","","","","","","","","","","","","","","","","","","","","","","","","","","","",""]
[24,null,null,"",null,null,null,null,null,null,null,null,null,null,null,null,null,null,null,null,null,null,null,null,null,null,null,null,null,null,null,null,null,null,null,null,null,null,null,null,null,null,null,null,null,null,null,null,null,"",null,null,null,null,null,null,null,null,null,null,null,null,null,null,null,null,null,null,null,null,null,null,null,null,null,null,null,null,null,null,null,null,null,null,null,null,null,null,null,null,null,null,null,null,null,null,null,null,null,null,null,null,null,null,null,null,null,null,null,null,null,null,null,null,null,null,null,null,null,null,null,null,null,null,null,null,null,null,null,null,null,null,null,null,null,null,null,null,null,null,null,null,null,null,null,null,null,null,null,null,"",null,null,null,null,null,null,null,null,"",null,"",null,null,null,null,null,null,null,null,null,null,"",null,null,null,null,null,null,null,null,null,null,"",null,null,null,null,null,null,null,null,"","","","","",1,"",1,1,"","","","","","","","","","","","","","","","","","","","","","","","","","","","","","","",""]
[25,null,null,"",null,null,null,null,null,null,null,null,null,null,null,null,null,null,null,null,null,null,null,null,null,null,null,null,null,null,null,null,null,null,null,null,null,null,null,null,null,null,null,null,null,null,null,null,null,"",null,null,null,null,null,null,null,null,null,null,null,null,null,null,null,null,null,null,null,null,null,null,null,null,null,null,null,null,null,null,null,null,null,null,null,null,null,null,null,null,null,null,null,null,null,null,null,null,null,null,null,null,null,null,null,null,null,null,null,null,null,null,null,null,null,null,null,null,null,null,null,null,null,null,null,null,null,null,null,null,null,null,null,null,null,null,null,null,null,null,null,null,null,null,null,null,null,null,null,null,"",null,null,null,null,null,null,null,null,"",null,"",null,null,null,null,null,null,null,null,null,null,"",null,null,null,null,null,null,null,null,null,null,"",null,null,null,null,null,null,null,null,"","","","","",1,"",1,1,"","","","","","","","","","","","","","","","","","","","","","","","","","","","","","","",""]
[26,null,null,"",null,null,null,null,null,null,null,null,null,null,null,null,null,null,null,null,null,null,null,null,null,null,null,null,null,null,null,null,null,null,null,null,null,null,null,null,null,null,null,null,null,null,null,null,null,"",null,null,null,null,null,null,null,null,null,null,null,null,null,null,null,null,null,null,null,null,null,null,null,null,null,null,null,null,null,null,null,null,null,null,null,null,null,null,null,null,null,null,null,null,null,null,null,null,null,null,null,null,null,null,null,null,null,null,null,null,null,null,null,null,null,null,null,null,null,null,null,null,null,null,null,null,null,null,null,null,null,null,null,null,null,null,null,null,null,null,null,null,null,null,null,null,null,null,null,null,"",null,null,null,null,null,null,null,null,"",null,"",null,null,null,null,null,null,null,null,null,null,"",null,null,null,null,null,null,null,null,null,null,"",null,null,null,null,null,null,null,null,"","","","","",1,"",1,1,"","","","","","","","","","","","","","","","","","","","","","","","","","","","","","","",""]
[27,null,null,"",null,null,null,null,null,null,null,null,null,null,null,null,null,null,null,null,null,null,null,null,null,null,null,null,null,null,null,null,null,null,null,null,null,null,null,null,null,null,null,null,null,null,null,null,null,"",null,null,null,null,null,null,null,null,null,null,null,null,null,null,null,null,null,null,null,null,null,null,null,null,null,null,null,null,null,null,null,null,null,null,null,null,null,null,null,null,null,null,null,null,null,null,null,null,null,null,null,null,null,null,null,null,null,null,null,null,null,null,null,null,null,null,null,null,null,null,null,null,null,null,null,null,null,null,null,null,null,null,null,null,null,null,null,null,null,null,null,null,null,null,null,null,null,null,null,null,"",null,null,null,null,null,null,null,null,"",null,"",null,null,null,null,null,null,null,null,null,null,"",null,null,null,null,null,null,null,null,null,null,"",null,null,null,null,null,null,null,null,"","","","","",1,"",1,1,"","","","","","","","","","","","","","","","","","","","","","","","","","","","","","","",""]
[28,null,null,"",null,null,null,null,null,null,null,null,null,null,null,null,null,null,null,null,null,null,null,null,null,null,null,null,null,null,null,null,null,null,null,null,null,null,null,null,null,null,null,null,null,null,null,null,null,"",null,null,null,null,null,null,null,null,null,null,null,null,null,null,null,null,null,null,null,null,null,null,null,null,null,null,null,null,null,null,null,null,null,null,null,null,null,null,null,null,null,null,null,null,null,null,null,null,null,null,null,null,null,null,null,null,null,null,null,null,null,null,null,null,null,null,null,null,null,null,null,null,null,null,null,null,null,null,null,null,null,null,null,null,null,null,null,null,null,null,null,null,null,null,null,null,null,null,null,null,"",null,null,null,null,null,null,null,null,"",null,"",null,null,null,null,null,null,null,null,null,null,"",null,null,null,null,null,null,null,null,null,null,"",null,null,null,null,null,null,null,null,"","","","","",1,"",1,1,"","","","","","","","","","","","","","","","","","","","","","","","","","","","","","","",""]
[29,null,null,"",null,null,null,null,null,null,null,null,null,null,null,null,null,null,null,null,null,null,null,null,null,null,null,null,null,null,null,null,null,null,null,null,null,null,null,null,null,null,null,null,null,null,null,null,null,"",null,null,null,null,null,null,null,null,null,null,null,null,null,null,null,null,null,null,null,null,null,null,null,null,null,null,null,null,null,null,null,null,null,null,null,null,null,null,null,null,null,null,null,null,null,null,null,null,null,null,null,null,null,null,null,null,null,null,null,null,null,null,null,null,null,null,null,null,null,null,null,null,null,null,null,null,null,null,null,null,null,null,null,null,null,null,null,null,null,null,null,null,null,null,null,null,null,null,null,null,"",null,null,null,null,null,null,null,null,"",null,"",null,null,null,null,null,null,null,null,null,null,"",null,null,null,null,null,null,null,null,null,null,"",null,null,null,null,null,null,null,null,"","","","","",1,"",1,1,"","","","","","","","","","","","","","","","","","","","","","","","","","","","","","","",""]
[30,null,null,"",null,null,null,null,null,null,null,null,null,null,null,null,null,null,null,null,null,null,null,null,null,null,null,null,null,null,null,null,null,null,null,null,null,null,null,null,null,null,null,null,null,null,null,null,null,"",null,null,null,null,null,null,null,null,null,null,null,null,null,null,null,null,null,null,null,null,null,null,null,null,null,null,null,null,null,null,null,null,null,null,null,null,null,null,null,null,null,null,null,null,null,null,null,null,null,null,null,null,null,null,null,null,null,null,null,null,null,null,null,null,null,null,null,null,null,null,null,null,null,null,null,null,null,null,null,null,null,null,null,null,null,null,null,null,null,null,null,null,null,null,null,null,null,null,null,null,"",null,null,null,null,null,null,null,null,"",null,"",null,null,null,null,null,null,null,null,null,null,"",null,null,null,null,null,null,null,null,null,null,"",null,null,null,null,null,null,null,null,"","","","","",1,"",1,1,"","","","","","","","","","","","","","","","","","","","","","","","","","","","","","","",""]
[31,null,null,"",null,null,null,null,null,null,null,null,null,null,null,null,null,null,null,null,null,null,null,null,null,null,null,null,null,null,null,null,null,null,null,null,null,null,null,null,null,null,null,null,null,null,null,null,null,"",null,null,null,null,null,null,null,null,null,null,null,null,null,null,null,null,null,null,null,null,null,null,null,null,null,null,null,null,null,null,null,null,null,null,null,null,null,null,null,null,null,null,null,null,null,null,null,null,null,null,null,null,null,null,null,null,null,null,null,null,null,null,null,null,null,null,null,null,null,null,null,null,null,null,null,null,null,null,null,null,null,null,null,null,null,null,null,null,null,null,null,null,null,null,null,null,null,null,null,null,"",null,null,null,null,null,null,null,null,"",null,"",null,null,null,null,null,null,null,null,null,null,"",null,null,null,null,null,null,null,null,null,null,"",null,null,null,null,null,null,null,null,"","","","","",1,"",1,1,"","","","","","","","","","","","","","","","","","","","","","","","","","","","","","","",""]
[32,null,null,"",null,null,null,null,null,null,null,null,null,null,null,null,null,null,null,null,null,null,null,null,null,null,null,null,null,null,null,null,null,null,null,null,null,null,null,null,null,null,null,null,null,null,null,null,null,"",null,null,null,null,null,null,null,null,null,null,null,null,null,null,null,null,null,null,null,null,null,null,null,null,null,null,null,null,null,null,null,null,null,null,null,null,null,null,null,null,null,null,null,null,null,null,null,null,null,null,null,null,null,null,null,null,null,null,null,null,null,null,null,null,null,null,null,null,null,null,null,null,null,null,null,null,null,null,null,null,null,null,null,null,null,null,null,null,null,null,null,null,null,null,null,null,null,null,null,null,"",null,null,null,null,null,null,null,null,"",null,"",null,null,null,null,null,null,null,null,null,null,"",null,null,null,null,null,null,null,null,null,null,"",null,null,null,null,null,null,null,null,"","","","","",1,"",1,1,"","","","","","","","","","","","","","","","","","","","","","","","","","","","","","","",""]
[33,null,null,"",null,null,null,null,null,null,null,null,null,null,null,null,null,null,null,null,null,null,null,null,null,null,null,null,null,null,null,null,null,null,null,null,null,null,null,null,null,null,null,null,null,null,null,null,null,"",null,null,null,null,null,null,null,null,null,null,null,null,null,null,null,null,null,null,null,null,null,null,null,null,null,null,null,null,null,null,null,null,null,null,null,null,null,null,null,null,null,null,null,null,null,null,null,null,null,null,null,null,null,null,null,null,null,null,null,null,null,null,null,null,null,null,null,null,null,null,null,null,null,null,null,null,null,null,null,null,null,null,null,null,null,null,null,null,null,null,null,null,null,null,null,null,null,null,null,null,"",null,null,null,null,null,null,null,null,"",null,"",null,null,null,null,null,null,null,null,null,null,"",null,null,null,null,null,null,null,null,null,null,"",null,null,null,null,null,null,null,null,"","","","","",1,"",1,1,"","","","","","","","","","","","","","","","","","","","","","","","","","","","","","","",""]
[34,null,null,"",null,null,null,null,null,null,null,null,null,null,null,null,null,null,null,null,null,null,null,null,null,null,null,null,null,null,null,null,null,null,null,null,null,null,null,null,null,null,null,null,null,null,null,null,null,"",null,null,null,null,null,null,null,null,null,null,null,null,null,null,null,null,null,null,null,null,null,null,null,null,null,null,null,null,null,null,null,null,null,null,null,null,null,null,null,null,null,null,null,null,null,null,null,null,null,null,null,null,null,null,null,null,null,null,null,null,null,null,null,null,null,null,null,null,null,null,null,null,null,null,null,null,null,null,null,null,null,null,null,null,null,null,null,null,null,null,null,null,null,null,null,null,null,null,null,null,"",null,null,null,null,null,null,null,null,"",null,"",null,null,null,null,null,null,null,null,null,null,"",null,null,null,null,null,null,null,null,null,null,"",null,null,null,null,null,null,null,null,"","","","","",1,"",1,1,"","","","","","","","","","","","","","","","","","","","","","","","","","","","","","","",""]
[35,null,null,"",null,null,null,null,null,null,null,null,null,null,null,null,null,null,null,null,null,null,null,null,null,null,null,null,null,null,null,null,null,null,null,null,null,null,null,null,null,null,null,null,null,null,null,null,null,"",null,null,null,null,null,null,null,null,null,null,null,null,null,null,null,null,null,null,null,null,null,null,null,null,null,null,null,null,null,null,null,null,null,null,null,null,null,null,null,null,null,null,null,null,null,null,null,null,null,null,null,null,null,null,null,null,null,null,null,null,null,null,null,null,null,null,null,null,null,null,null,null,null,null,null,null,null,null,null,null,null,null,null,null,null,null,null,null,null,null,null,null,null,null,null,null,null,null,null,null,"",null,null,null,null,null,null,null,null,"",null,"",null,null,null,null,null,null,null,null,null,null,"",null,null,null,null,null,null,null,null,null,null,"",null,null,null,null,null,null,null,null,"","","","","",1,"",1,1,"","","","","","","","","","","","","","","","","","","","","","","","","","","","","","","",""]
[36,null,null,"",null,null,null,null,null,null,null,null,null,null,null,null,null,null,null,null,null,null,null,null,null,null,null,null,null,null,null,null,null,null,null,null,null,null,null,null,null,null,null,null,null,null,null,null,null,"",null,null,null,null,null,null,null,null,null,null,null,null,null,null,null,null,null,null,null,null,null,null,null,null,null,null,null,null,null,null,null,null,null,null,null,null,null,null,null,null,null,null,null,null,null,null,null,null,null,null,null,null,null,null,null,null,null,null,null,null,null,null,null,null,null,null,null,null,null,null,null,null,null,null,null,null,null,null,null,null,null,null,null,null,null,null,null,null,null,null,null,null,null,null,null,null,null,null,null,null,"",null,null,null,null,null,null,null,null,"",null,"",null,null,null,null,null,null,null,null,null,null,"",null,null,null,null,null,null,null,null,null,null,"",null,null,null,null,null,null,null,null,"","","","","",1,"",1,1,"","","","","","","","","","","","","","","","","","","","","","","","","","","","","","","",""]
[37,null,null,"",null,null,null,null,null,null,null,null,null,null,null,null,null,null,null,null,null,null,null,null,null,null,null,null,null,null,null,null,null,null,null,null,null,null,null,null,null,null,null,null,null,null,null,null,null,"",null,null,null,null,null,null,null,null,null,null,null,null,null,null,null,null,null,null,null,null,null,null,null,null,null,null,null,null,null,null,null,null,null,null,null,null,null,null,null,null,null,null,null,null,null,null,null,null,null,null,null,null,null,null,null,null,null,null,null,null,null,null,null,null,null,null,null,null,null,null,null,null,null,null,null,null,null,null,null,null,null,null,null,null,null,null,null,null,null,null,null,null,null,null,null,null,null,null,null,null,"",null,null,null,null,null,null,null,null,"",null,"",null,null,null,null,null,null,null,null,null,null,"",null,null,null,null,null,null,null,null,null,null,"",null,null,null,null,null,null,null,null,"","","","","",1,"",1,1,"","","","","","","","","","","","","","","","","","","","","","","","","","","","","","","",""]
[38,null,null,"",null,null,null,null,null,null,null,null,null,null,null,null,null,null,null,null,null,null,null,null,null,null,null,null,null,null,null,null,null,null,null,null,null,null,null,null,null,null,null,null,null,null,null,null,null,"",null,null,null,null,null,null,null,null,null,null,null,null,null,null,null,null,null,null,null,null,null,null,null,null,null,null,null,null,null,null,null,null,null,null,null,null,null,null,null,null,null,null,null,null,null,null,null,null,null,null,null,null,null,null,null,null,null,null,null,null,null,null,null,null,null,null,null,null,null,null,null,null,null,null,null,null,null,null,null,null,null,null,null,null,null,null,null,null,null,null,null,null,null,null,null,null,null,null,null,null,"",null,null,null,null,null,null,null,null,"",null,"",null,null,null,null,null,null,null,null,null,null,"",null,null,null,null,null,null,null,null,null,null,"",null,null,null,null,null,null,null,null,"","","","","",1,"",1,1,"","","","","","","","","","","","","","","","","","","","","","","","","","","","","","","",""]
[39,null,null,"",null,null,null,null,null,null,null,null,null,null,null,null,null,null,null,null,null,null,null,null,null,null,null,null,null,null,null,null,null,null,null,null,null,null,null,null,null,null,null,null,null,null,null,null,null,"",null,null,null,null,null,null,null,null,null,null,null,null,null,null,null,null,null,null,null,null,null,null,null,null,null,null,null,null,null,null,null,null,null,null,null,null,null,null,null,null,null,null,null,null,null,null,null,null,null,null,null,null,null,null,null,null,null,null,null,null,null,null,null,null,null,null,null,null,null,null,null,null,null,null,null,null,null,null,null,null,null,null,null,null,null,null,null,null,null,null,null,null,null,null,null,null,null,null,null,null,"",null,null,null,null,null,null,null,null,"",null,"",null,null,null,null,null,null,null,null,null,null,"",null,null,null,null,null,null,null,null,null,null,"",null,null,null,null,null,null,null,null,"","","","","",1,"",1,1,"","","","","","","","","","","","","","","","","","","","","","","","","","","","","","","",""]
[40,null,null,"",null,null,null,null,null,null,null,null,null,null,null,null,null,null,null,null,null,null,null,null,null,null,null,null,null,null,null,null,null,null,null,null,null,null,null,null,null,null,null,null,null,null,null,null,null,"",null,null,null,null,null,null,null,null,null,null,null,null,null,null,null,null,null,null,null,null,null,null,null,null,null,null,null,null,null,null,null,null,null,null,null,null,null,null,null,null,null,null,null,null,null,null,null,null,null,null,null,null,null,null,null,null,null,null,null,null,null,null,null,null,null,null,null,null,null,null,null,null,null,null,null,null,null,null,null,null,null,null,null,null,null,null,null,null,null,null,null,null,null,null,null,null,null,null,null,null,"",null,null,null,null,null,null,null,null,"",null,"",null,null,null,null,null,null,null,null,null,null,"",null,null,null,null,null,null,null,null,null,null,"",null,null,null,null,null,null,null,null,"","","","","",1,"",1,1,"","","","","","","","","","","","","","","","","","","","","","","","","","","","","","","",""]
[41,null,null,"",null,null,null,null,null,null,null,null,null,null,null,null,null,null,null,null,null,null,null,null,null,null,null,null,null,null,null,null,null,null,null,null,null,null,null,null,null,null,null,null,null,null,null,null,null,"",null,null,null,null,null,null,null,null,null,null,null,null,null,null,null,null,null,null,null,null,null,null,null,null,null,null,null,null,null,null,null,null,null,null,null,null,null,null,null,null,null,null,null,null,null,null,null,null,null,null,null,null,null,null,null,null,null,null,null,null,null,null,null,null,null,null,null,null,null,null,null,null,null,null,null,null,null,null,null,null,null,null,null,null,null,null,null,null,null,null,null,null,null,null,null,null,null,null,null,null,"",null,null,null,null,null,null,null,null,"",null,"",null,null,null,null,null,null,null,null,null,null,"",null,null,null,null,null,null,null,null,null,null,"",null,null,null,null,null,null,null,null,"","","","","",1,"",1,1,"","","","","","","","","","","","","","","","","","","","","","","","","","","","","","","",""]
[42,null,null,"",null,null,null,null,null,null,null,null,null,null,null,null,null,null,null,null,null,null,null,null,null,null,null,null,null,null,null,null,null,null,null,null,null,null,null,null,null,null,null,null,null,null,null,null,null,"",null,null,null,null,null,null,null,null,null,null,null,null,null,null,null,null,null,null,null,null,null,null,null,null,null,null,null,null,null,null,null,null,null,null,null,null,null,null,null,null,null,null,null,null,null,null,null,null,null,null,null,null,null,null,null,null,null,null,null,null,null,null,null,null,null,null,null,null,null,null,null,null,null,null,null,null,null,null,null,null,null,null,null,null,null,null,null,null,null,null,null,null,null,null,null,null,null,null,null,null,"",null,null,null,null,null,null,null,null,"",null,"",null,null,null,null,null,null,null,null,null,null,"",null,null,null,null,null,null,null,null,null,null,"",null,null,null,null,null,null,null,null,"","","","","",1,"",1,1,"","","","","","","","","","","","","","","","","","","","","","","","","","","","","","","",""]
[43,null,null,"",null,null,null,null,null,null,null,null,null,null,null,null,null,null,null,null,null,null,null,null,null,null,null,null,null,null,null,null,null,null,null,null,null,null,null,null,null,null,null,null,null,null,null,null,null,"",null,null,null,null,null,null,null,null,null,null,null,null,null,null,null,null,null,null,null,null,null,null,null,null,null,null,null,null,null,null,null,null,null,null,null,null,null,null,null,null,null,null,null,null,null,null,null,null,null,null,null,null,null,null,null,null,null,null,null,null,null,null,null,null,null,null,null,null,null,null,null,null,null,null,null,null,null,null,null,null,null,null,null,null,null,null,null,null,null,null,null,null,null,null,null,null,null,null,null,null,"",null,null,null,null,null,null,null,null,"",null,"",null,null,null,null,null,null,null,null,null,null,"",null,null,null,null,null,null,null,null,null,null,"",null,null,null,null,null,null,null,null,"","","","","",1,"",1,1,"","","","","","","","","","","","","","","","","","","","","","","","","","","","","","","",""]
[44,null,null,"",null,null,null,null,null,null,null,null,null,null,null,null,null,null,null,null,null,null,null,null,null,null,null,null,null,null,null,null,null,null,null,null,null,null,null,null,null,null,null,null,null,null,null,null,null,"",null,null,null,null,null,null,null,null,null,null,null,null,null,null,null,null,null,null,null,null,null,null,null,null,null,null,null,null,null,null,null,null,null,null,null,null,null,null,null,null,null,null,null,null,null,null,null,null,null,null,null,null,null,null,null,null,null,null,null,null,null,null,null,null,null,null,null,null,null,null,null,null,null,null,null,null,null,null,null,null,null,null,null,null,null,null,null,null,null,null,null,null,null,null,null,null,null,null,null,null,"",null,null,null,null,null,null,null,null,"",null,"",null,null,null,null,null,null,null,null,null,null,"",null,null,null,null,null,null,null,null,null,null,"",null,null,null,null,null,null,null,null,"","","","","",1,"",1,1,"","","","","","","","","","","","","","","","","","","","","","","","","","","","","","","",""]
[45,null,null,"",null,null,null,null,null,null,null,null,null,null,null,null,null,null,null,null,null,null,null,null,null,null,null,null,null,null,null,null,null,null,null,null,null,null,null,null,null,null,null,null,null,null,null,null,null,"",null,null,null,null,null,null,null,null,null,null,null,null,null,null,null,null,null,null,null,null,null,null,null,null,null,null,null,null,null,null,null,null,null,null,null,null,null,null,null,null,null,null,null,null,null,null,null,null,null,null,null,null,null,null,null,null,null,null,null,null,null,null,null,null,null,null,null,null,null,null,null,null,null,null,null,null,null,null,null,null,null,null,null,null,null,null,null,null,null,null,null,null,null,null,null,null,null,null,null,null,"",null,null,null,null,null,null,null,null,"",null,"",null,null,null,null,null,null,null,null,null,null,"",null,null,null,null,null,null,null,null,null,null,"",null,null,null,null,null,null,null,null,"","","","","",1,"",1,1,"","","","","","","","","","","","","","","","","","","","","","","","","","","","","","","",""]
[46,null,null,"",null,null,null,null,null,null,null,null,null,null,null,null,null,null,null,null,null,null,null,null,null,null,null,null,null,null,null,null,null,null,null,null,null,null,null,null,null,null,null,null,null,null,null,null,null,"",null,null,null,null,null,null,null,null,null,null,null,null,null,null,null,null,null,null,null,null,null,null,null,null,null,null,null,null,null,null,null,null,null,null,null,null,null,null,null,null,null,null,null,null,null,null,null,null,null,null,null,null,null,null,null,null,null,null,null,null,null,null,null,null,null,null,null,null,null,null,null,null,null,null,null,null,null,null,null,null,null,null,null,null,null,null,null,null,null,null,null,null,null,null,null,null,null,null,null,null,"",null,null,null,null,null,null,null,null,"",null,"",null,null,null,null,null,null,null,null,null,null,"",null,null,null,null,null,null,null,null,null,null,"",null,null,null,null,null,null,null,null,"","","","","",1,"",1,1,"","","","","","","","","","","","","","","","","","","","","","","","","","","","","","","",""]
[47,null,null,"",null,null,null,null,null,null,null,null,null,null,null,null,null,null,null,null,null,null,null,null,null,null,null,null,null,null,null,null,null,null,null,null,null,null,null,null,null,null,null,null,null,null,null,null,null,"",null,null,null,null,null,null,null,null,null,null,null,null,null,null,null,null,null,null,null,null,null,null,null,null,null,null,null,null,null,null,null,null,null,null,null,null,null,null,null,null,null,null,null,null,null,null,null,null,null,null,null,null,null,null,null,null,null,null,null,null,null,null,null,null,null,null,null,null,null,null,null,null,null,null,null,null,null,null,null,null,null,null,null,null,null,null,null,null,null,null,null,null,null,null,null,null,null,null,null,null,"",null,null,null,null,null,null,null,null,"",null,"",null,null,null,null,null,null,null,null,null,null,"",null,null,null,null,null,null,null,null,null,null,"",null,null,null,null,null,null,null,null,"","","","","",1,"",1,1,"","","","","","","","","","","","","","","","","","","","","","","","","","","","","","","",""]
[48,null,null,"",null,null,null,null,null,null,null,null,null,null,null,null,null,null,null,null,null,null,null,null,null,null,null,null,null,null,null,null,null,null,null,null,null,null,null,null,null,null,null,null,null,null,null,null,null,"",null,null,null,null,null,null,null,null,null,null,null,null,null,null,null,null,null,null,null,null,null,null,null,null,null,null,null,null,null,null,null,null,null,null,null,null,null,null,null,null,null,null,null,null,null,null,null,null,null,null,null,null,null,null,null,null,null,null,null,null,null,null,null,null,null,null,null,null,null,null,null,null,null,null,null,null,null,null,null,null,null,null,null,null,null,null,null,null,null,null,null,null,null,null,null,null,null,null,null,null,"",null,null,null,null,null,null,null,null,"",null,"",null,null,null,null,null,null,null,null,null,null,"",null,null,null,null,null,null,null,null,null,null,"",null,null,null,null,null,null,null,null,"","","","","",1,"",1,1,"","","","","","","","","","","","","","","","","","","","","","","","","","","","","","","",""]
[49,null,null,"",null,null,null,null,null,null,null,null,null,null,null,null,null,null,null,null,null,null,null,null,null,null,null,null,null,null,null,null,null,null,null,null,null,null,null,null,null,null,null,null,null,null,null,null,null,"",null,null,null,null,null,null,null,null,null,null,null,null,null,null,null,null,null,null,null,null,null,null,null,null,null,null,null,null,null,null,null,null,null,null,null,null,null,null,null,null,null,null,null,null,null,null,null,null,null,null,null,null,null,null,null,null,null,null,null,null,null,null,null,null,null,null,null,null,null,null,null,null,null,null,null,null,null,null,null,null,null,null,null,null,null,null,null,null,null,null,null,null,null,null,null,null,null,null,null,null,"",null,null,null,null,null,null,null,null,"",null,"",null,null,null,null,null,null,null,null,null,null,"",null,null,null,null,null,null,null,null,null,null,"",null,null,null,null,null,null,null,null,"","","","","",1,"",1,1,"","","","","","","","","","","","","","","","","","","","","","","","","","","","","","","",""]
[50,null,null,"",null,null,null,null,null,null,null,null,null,null,null,null,null,null,null,null,null,null,null,null,null,null,null,null,null,null,null,null,null,null,null,null,null,null,null,null,null,null,null,null,null,null,null,null,null,"",null,null,null,null,null,null,null,null,null,null,null,null,null,null,null,null,null,null,null,null,null,null,null,null,null,null,null,null,null,null,null,null,null,null,null,null,null,null,null,null,null,null,null,null,null,null,null,null,null,null,null,null,null,null,null,null,null,null,null,null,null,null,null,null,null,null,null,null,null,null,null,null,null,null,null,null,null,null,null,null,null,null,null,null,null,null,null,null,null,null,null,null,null,null,null,null,null,null,null,null,"",null,null,null,null,null,null,null,null,"",null,"",null,null,null,null,null,null,null,null,null,null,"",null,null,null,null,null,null,null,null,null,null,"",null,null,null,null,null,null,null,null,"","","","","",1,"",1,1,"","","","","","","","","","","","","","","","","","","","","","","","","","","","","","","",""]
[51,null,null,{"$f":"IF(B85=\"\",\"\",B85)","v":""},null,null,null,null,null,null,null,null,null,null,null,null,null,null,null,null,null,null,null,null,null,null,null,null,null,null,null,null,null,null,null,null,null,null,null,null,null,null,null,null,null,null,null,null,null,"",null,null,null,null,null,null,null,null,null,null,null,null,null,null,null,null,null,null,null,null,null,null,null,null,null,null,null,null,null,null,null,null,null,null,null,null,null,null,null,null,null,null,null,null,null,null,null,null,null,null,null,null,null,null,null,null,null,null,null,null,null,null,null,null,null,null,null,null,null,null,null,null,null,null,null,null,null,null,null,null,null,null,null,null,null,null,null,null,null,null,null,null,null,null,null,null,null,null,null,null,"",null,null,null,null,null,null,null,null,{"$f":"IF(HU85=\"\",\"\",HU85)","v":""},null,"",null,null,null,null,null,null,null,null,null,null,"",null,null,null,null,null,null,null,null,null,null,"",null,null,null,null,null,null,null,null,"","","","","",1,"",1,1,{"$f":"IF(OR(CL85=\"○\",CM85=\"○\",CN85=\"○\",CO85=1,CO85=2,CO85=3,CP85=1,CP85=2,CP85=3),1,\"\")","v":""},{"$f":"IF(OR(CQ85=\"○\",CR85=\"○\",CW85=\"○\",CX85=\"○\",DA85=\"○\",DB85=\"○\",DE85=\"○\",DF85=\"○\"),1,\"\")","v":""},{"$f":"IF(DH85=\"\",\"\",1)","v":""},{"$f":"IF(OR(DI85<>\"\",DJ85<>\"\",DK85<>\"\",DL85<>\"\",DM85<>\"\"),1,\"\")","v":""},{"$f":"IF(OR(GY85=1,GZ85=1,HA85=1,HB85=1,HC85=1,HD85=1,HE85=1,HF85=1),\"○\",\"\")","v":""},{"$f":"IF(OR(DR85=\"\",DR85=0),\"\",1)","v":""},{"$f":"IF(OR(DS85=\"\",DS85=0),\"\",1)","v":""},{"$f":"IF(OR(DT85=\"\",DT85=0),\"\",1)","v":""},{"$f":"IF(OR(DU85=\"\",DU85=0),\"\",1)","v":""},{"$f":"IF(OR(DV85=\"\",DV85=0),\"\",1)","v":""},{"$f":"IF(OR(DW85=\"\",DW85=0),\"\",1)","v":""},{"$f":"IF(OR(DX85=\"\",DX85=0),\"\",1)","v":""},{"$f":"IF(OR(DY85=\"\",DY85=0),\"\",1)","v":""},{"$f":"IF(OR(HH85=1,HI85=1,HJ85=1,HK85=1,HM85=1,HL85=1,HN85=1,HO85=1),\"○\",\"\")","v":""},{"$f":"IF(OR(ED85=\"\",ED85=0),\"\",1)","v":""},{"$f":"IF(OR(EE85=\"\",EE85=0),\"\",1)","v":""},{"$f":"IF(OR(EF85=\"\",EF85=0),\"\",1)","v":""},{"$f":"IF(OR(EG85=\"\",EG85=0),\"\",1)","v":""},{"$f":"IF(OR(EH85=\"\",EH85=0),\"\",1)","v":""},{"$f":"IF(OR(EI85=\"\",EI85=0),\"\",1)","v":""},{"$f":"IF(OR(EJ85=\"\",EJ85=0),\"\",1)","v":""},{"$f":"IF(OR(EK85=\"\",EK85=0),\"\",1)","v":""},{"$f":"IF(OR(EL85=4,EL85=3,EL85=2,EL85=1),\"○\",\"\")","v":""},{"$f":"IF(OR(EM85=1,EM85=2,EM85=3),\"○\",IF(OR(EN85=1,EN85=2,EN85=3),\"○\",IF(OR(EO85=1,EO85=2,EO85=3),\"○\",IF(OR(EP85=1,EP85=2,EP85=3),\"○\",\"\"))))","v":""},{"$f":"IF(EQ85=\"\",\"\",1)","v":""},{"$f":"IF(OR(ER85=\"\"),\"\",1)","v":""},{"$f":"IF(OR(HV85=1,HW85=1,HX85=1,HY85=1),1,\"\")","v":""},{"$f":"IF(AND(FE85=\"\",FF85=\"\",FG85=\"\",FI85=\"\",FK85=\"\",FM85=\"\"),\"\",\"×\")","v":""},{"$f":"IF(AND(OR(EV85=\"\",EV85=\"無し\"),OR(FG85=\"\",FG85=\"無し\")),\"\",1)","v":""},{"$f":"IF(AND(OR(EX85=\"\",EX85=\"無し\"),OR(FI85=\"\",FI85=\"無し\")),\"\",1)","v":""},{"$f":"IF(OR(FK85=\"\",FK85=\"無し\"),\"\",1)","v":""},{"$f":"IF(AND(OR(FB85=\"\",FB85=\"無し\"),OR(FM85=\"\",FM85=\"無し\")),\"\",1)","v":""}]
[52,null,null,"",null,null,null,null,null,null,null,null,null,null,null,null,null,null,null,null,null,null,null,null,null,null,null,null,null,null,null,null,null,null,null,null,null,null,null,null,null,null,null,null,null,null,null,null,null,"",null,null,null,null,null,null,null,null,null,null,null,null,null,null,null,null,null,null,null,null,null,null,null,null,null,null,null,null,null,null,null,null,null,null,null,null,null,null,null,null,null,null,null,null,null,null,null,null,null,null,null,null,null,null,null,null,null,null,null,null,null,null,null,null,null,null,null,null,null,null,null,null,null,null,null,null,null,null,null,null,null,null,null,null,null,null,null,null,null,null,null,null,null,null,null,null,null,null,null,null,"",null,null,null,null,null,null,null,null,"",null,"",null,null,null,null,null,null,null,null,null,null,"",null,null,null,null,null,null,null,null,null,null,"",null,null,null,null,null,null,null,null,"","","","","",1,"",1,1,"","","","","","","","","","","","","","","","","","","","","","","","","","","","","","","",""]
[53,null,null,"",null,null,null,null,null,null,null,null,null,null,null,null,null,null,null,null,null,null,null,null,null,null,null,null,null,null,null,null,null,null,null,null,null,null,null,null,null,null,null,null,null,null,null,null,null,"",null,null,null,null,null,null,null,null,null,null,null,null,null,null,null,null,null,null,null,null,null,null,null,null,null,null,null,null,null,null,null,null,null,null,null,null,null,null,null,null,null,null,null,null,null,null,null,null,null,null,null,null,null,null,null,null,null,null,null,null,null,null,null,null,null,null,null,null,null,null,null,null,null,null,null,null,null,null,null,null,null,null,null,null,null,null,null,null,null,null,null,null,null,null,null,null,null,null,null,null,"",null,null,null,null,null,null,null,null,"",null,"",null,null,null,null,null,null,null,null,null,null,"",null,null,null,null,null,null,null,null,null,null,"",null,null,null,null,null,null,null,null,"","","","","",1,"",1,1,"","","","","","","","","","","","","","","","","","","","","","","","","","","","","","","",""]
[54,null,null,"",null,null,null,null,null,null,null,null,null,null,null,null,null,null,null,null,null,null,null,null,null,null,null,null,null,null,null,null,null,null,null,null,null,null,null,null,null,null,null,null,null,null,null,null,null,"",null,null,null,null,null,null,null,null,null,null,null,null,null,null,null,null,null,null,null,null,null,null,null,null,null,null,null,null,null,null,null,null,null,null,null,null,null,null,null,null,null,null,null,null,null,null,null,null,null,null,null,null,null,null,null,null,null,null,null,null,null,null,null,null,null,null,null,null,null,null,null,null,null,null,null,null,null,null,null,null,null,null,null,null,null,null,null,null,null,null,null,null,null,null,null,null,null,null,null,null,"",null,null,null,null,null,null,null,null,"",null,"",null,null,null,null,null,null,null,null,null,null,"",null,null,null,null,null,null,null,null,null,null,"",null,null,null,null,null,null,null,null,"","","","","",1,"",1,1,"","","","","","","","","","","","","","","","","","","","","","","","","","","","","","","",""]
[55,null,null,"",null,null,null,null,null,null,null,null,null,null,null,null,null,null,null,null,null,null,null,null,null,null,null,null,null,null,null,null,null,null,null,null,null,null,null,null,null,null,null,null,null,null,null,null,null,"",null,null,null,null,null,null,null,null,null,null,null,null,null,null,null,null,null,null,null,null,null,null,null,null,null,null,null,null,null,null,null,null,null,null,null,null,null,null,null,null,null,null,null,null,null,null,null,null,null,null,null,null,null,null,null,null,null,null,null,null,null,null,null,null,null,null,null,null,null,null,null,null,null,null,null,null,null,null,null,null,null,null,null,null,null,null,null,null,null,null,null,null,null,null,null,null,null,null,null,null,"",null,null,null,null,null,null,null,null,"",null,"",null,null,null,null,null,null,null,null,null,null,"",null,null,null,null,null,null,null,null,null,null,"",null,null,null,null,null,null,null,null,"","","","","",1,"",1,1,"","","","","","","","","","","","","","","","","","","","","","","","","","","","","","","",""]
[56,null,null,"",null,null,null,null,null,null,null,null,null,null,null,null,null,null,null,null,null,null,null,null,null,null,null,null,null,null,null,null,null,null,null,null,null,null,null,null,null,null,null,null,null,null,null,null,null,"",null,null,null,null,null,null,null,null,null,null,null,null,null,null,null,null,null,null,null,null,null,null,null,null,null,null,null,null,null,null,null,null,null,null,null,null,null,null,null,null,null,null,null,null,null,null,null,null,null,null,null,null,null,null,null,null,null,null,null,null,null,null,null,null,null,null,null,null,null,null,null,null,null,null,null,null,null,null,null,null,null,null,null,null,null,null,null,null,null,null,null,null,null,null,null,null,null,null,null,null,"",null,null,null,null,null,null,null,null,"",null,"",null,null,null,null,null,null,null,null,null,null,"",null,null,null,null,null,null,null,null,null,null,"",null,null,null,null,null,null,null,null,"","","","","",1,"",1,1,"","","","","","","","","","","","","","","","","","","","","","","","","","","","","","","",""]
[57,null,null,"",null,null,null,null,null,null,null,null,null,null,null,null,null,null,null,null,null,null,null,null,null,null,null,null,null,null,null,null,null,null,null,null,null,null,null,null,null,null,null,null,null,null,null,null,null,"",null,null,null,null,null,null,null,null,null,null,null,null,null,null,null,null,null,null,null,null,null,null,null,null,null,null,null,null,null,null,null,null,null,null,null,null,null,null,null,null,null,null,null,null,null,null,null,null,null,null,null,null,null,null,null,null,null,null,null,null,null,null,null,null,null,null,null,null,null,null,null,null,null,null,null,null,null,null,null,null,null,null,null,null,null,null,null,null,null,null,null,null,null,null,null,null,null,null,null,null,"",null,null,null,null,null,null,null,null,"",null,"",null,null,null,null,null,null,null,null,null,null,"",null,null,null,null,null,null,null,null,null,null,"",null,null,null,null,null,null,null,null,"","","","","",1,"",1,1,"","","","","","","","","","","","","","","","","","","","","","","","","","","","","","","",""]
[58,null,null,"",null,null,null,null,null,null,null,null,null,null,null,null,null,null,null,null,null,null,null,null,null,null,null,null,null,null,null,null,null,null,null,null,null,null,null,null,null,null,null,null,null,null,null,null,null,"",null,null,null,null,null,null,null,null,null,null,null,null,null,null,null,null,null,null,null,null,null,null,null,null,null,null,null,null,null,null,null,null,null,null,null,null,null,null,null,null,null,null,null,null,null,null,null,null,null,null,null,null,null,null,null,null,null,null,null,null,null,null,null,null,null,null,null,null,null,null,null,null,null,null,null,null,null,null,null,null,null,null,null,null,null,null,null,null,null,null,null,null,null,null,null,null,null,null,null,null,"",null,null,null,null,null,null,null,null,"",null,"",null,null,null,null,null,null,null,null,null,null,"",null,null,null,null,null,null,null,null,null,null,"",null,null,null,null,null,null,null,null,"","","","","",1,"",1,1,"","","","","","","","","","","","","","","","","","","","","","","","","","","","","","","",""]
[59,null,null,"",null,null,null,null,null,null,null,null,null,null,null,null,null,null,null,null,null,null,null,null,null,null,null,null,null,null,null,null,null,null,null,null,null,null,null,null,null,null,null,null,null,null,null,null,null,"",null,null,null,null,null,null,null,null,null,null,null,null,null,null,null,null,null,null,null,null,null,null,null,null,null,null,null,null,null,null,null,null,null,null,null,null,null,null,null,null,null,null,null,null,null,null,null,null,null,null,null,null,null,null,null,null,null,null,null,null,null,null,null,null,null,null,null,null,null,null,null,null,null,null,null,null,null,null,null,null,null,null,null,null,null,null,null,null,null,null,null,null,null,null,null,null,null,null,null,null,"",null,null,null,null,null,null,null,null,"",null,"",null,null,null,null,null,null,null,null,null,null,"",null,null,null,null,null,null,null,null,null,null,"",null,null,null,null,null,null,null,null,"","","","","",1,"",1,1,"","","","","","","","","","","","","","","","","","","","","","","","","","","","","","","",""]
[60,null,null,"",null,null,null,null,null,null,null,null,null,null,null,null,null,null,null,null,null,null,null,null,null,null,null,null,null,null,null,null,null,null,null,null,null,null,null,null,null,null,null,null,null,null,null,null,null,"",null,null,null,null,null,null,null,null,null,null,null,null,null,null,null,null,null,null,null,null,null,null,null,null,null,null,null,null,null,null,null,null,null,null,null,null,null,null,null,null,null,null,null,null,null,null,null,null,null,null,null,null,null,null,null,null,null,null,null,null,null,null,null,null,null,null,null,null,null,null,null,null,null,null,null,null,null,null,null,null,null,null,null,null,null,null,null,null,null,null,null,null,null,null,null,null,null,null,null,null,"",null,null,null,null,null,null,null,null,"",null,"",null,null,null,null,null,null,null,null,null,null,"",null,null,null,null,null,null,null,null,null,null,"",null,null,null,null,null,null,null,null,"","","","","",1,"",1,1,"","","","","","","","","","","","","","","","","","","","","","","","","","","","","","","",""]
[61,null,null,"",null,null,null,null,null,null,null,null,null,null,null,null,null,null,null,null,null,null,null,null,null,null,null,null,null,null,null,null,null,null,null,null,null,null,null,null,null,null,null,null,null,null,null,null,null,"",null,null,null,null,null,null,null,null,null,null,null,null,null,null,null,null,null,null,null,null,null,null,null,null,null,null,null,null,null,null,null,null,null,null,null,null,null,null,null,null,null,null,null,null,null,null,null,null,null,null,null,null,null,null,null,null,null,null,null,null,null,null,null,null,null,null,null,null,null,null,null,null,null,null,null,null,null,null,null,null,null,null,null,null,null,null,null,null,null,null,null,null,null,null,null,null,null,null,null,null,"",null,null,null,null,null,null,null,null,"",null,"",null,null,null,null,null,null,null,null,null,null,"",null,null,null,null,null,null,null,null,null,null,"",null,null,null,null,null,null,null,null,"","","","","",1,"",1,1,"","","","","","","","","","","","","","","","","","","","","","","","","","","","","","","",""]
[62,null,null,"",null,null,null,null,null,null,null,null,null,null,null,null,null,null,null,null,null,null,null,null,null,null,null,null,null,null,null,null,null,null,null,null,null,null,null,null,null,null,null,null,null,null,null,null,null,"",null,null,null,null,null,null,null,null,null,null,null,null,null,null,null,null,null,null,null,null,null,null,null,null,null,null,null,null,null,null,null,null,null,null,null,null,null,null,null,null,null,null,null,null,null,null,null,null,null,null,null,null,null,null,null,null,null,null,null,null,null,null,null,null,null,null,null,null,null,null,null,null,null,null,null,null,null,null,null,null,null,null,null,null,null,null,null,null,null,null,null,null,null,null,null,null,null,null,null,null,"",null,null,null,null,null,null,null,null,"",null,"",null,null,null,null,null,null,null,null,null,null,"",null,null,null,null,null,null,null,null,null,null,"",null,null,null,null,null,null,null,null,"","","","","",1,"",1,1,"","","","","","","","","","","","","","","","","","","","","","","","","","","","","","","",""]
[63,null,null,"",null,null,null,null,null,null,null,null,null,null,null,null,null,null,null,null,null,null,null,null,null,null,null,null,null,null,null,null,null,null,null,null,null,null,null,null,null,null,null,null,null,null,null,null,null,"",null,null,null,null,null,null,null,null,null,null,null,null,null,null,null,null,null,null,null,null,null,null,null,null,null,null,null,null,null,null,null,null,null,null,null,null,null,null,null,null,null,null,null,null,null,null,null,null,null,null,null,null,null,null,null,null,null,null,null,null,null,null,null,null,null,null,null,null,null,null,null,null,null,null,null,null,null,null,null,null,null,null,null,null,null,null,null,null,null,null,null,null,null,null,null,null,null,null,null,null,"",null,null,null,null,null,null,null,null,"",null,"",null,null,null,null,null,null,null,null,null,null,"",null,null,null,null,null,null,null,null,null,null,"",null,null,null,null,null,null,null,null,"","","","","",1,"",1,1,"","","","","","","","","","","","","","","","","","","","","","","","","","","","","","","",""]
[{"$f":" ROW(A98) - ROW(_row) + 1","v":64},null,null,"",null,null,null,null,null,null,null,null,null,null,null,null,null,null,null,null,null,null,null,null,null,null,null,null,null,null,null,null,null,null,null,null,null,null,null,null,null,null,null,null,null,null,null,null,null,{"$f":"IF(GQ98=1,IF(F98=\"\",\"\",F98),\"\")","v":""},null,null,null,null,null,null,null,null,null,null,null,null,null,null,null,null,null,null,null,null,null,null,null,null,null,null,null,null,null,null,null,null,null,null,null,null,null,null,null,null,null,null,null,null,null,null,null,null,null,null,null,null,null,null,null,null,null,null,null,null,null,null,null,null,null,null,null,null,null,null,null,null,null,null,null,null,null,null,null,null,null,null,null,null,null,null,null,null,null,null,null,null,null,null,null,null,null,null,null,null,{"$f":"IF(F98=\"\",\"\",F98)","v":""},null,null,null,null,null,null,null,null,"",null,{"$f":"IF(OR(IF(OR(FG98=\"\",FG98=\"無し\"),\"\",1)=1,IF(OR(FI98=\"\",FI98=\"無し\"),\"\",1)=1,IF(OR(FK98=\"\",FK98=\"無し\"),\"\",1)=1,IF(OR(FM98=\"\",FM98=\"無し\"),\"\",1)=1),IF(F98=\"\",\"\",F98),\"\")","v":""},null,null,null,null,null,null,null,null,null,null,{"$f":"IF(OR(IF(OR(FR98=\"\",FR98=\"無し\"),\"\",1)=1,IF(OR(FT98=\"\",FT98=\"無し\"),\"\",1)=1,IF(OR(FV98=\"\",FV98=\"無し\"),\"\",1)=1,IF(OR(FX98=\"\",FX98=\"無し\"),\"\",1)=1),IF(F98=\"\",\"\",F98),\"\")","v":""},null,null,null,null,null,null,null,null,null,null,{"$f":"IF(OR(IF(OR(GC98=\"\",GC98=\"無し\"),\"\",1)=1,IF(OR(GE98=\"\",GE98=\"無し\"),\"\",1)=1,IF(OR(GG98=\"\",GG98=\"無し\"),\"\",1)=1,IF(OR(GI98=\"\",GI98=\"無し\"),\"\",1)=1),IF(F98=\"\",\"\",F98),\"\")","v":""},null,null,null,null,null,null,null,null,{"$f":"IF(Y98<>\"\",1,\"\")","v":""},{"$f":"IF(Z98<>\"\",1,\"\")","v":""},{"$f":"IF(OR(AA98=\"○\",AB98<>\"\",AG98<>\"\",AJ98<>\"\"),1,\"\")","v":""},{"$f":"IF(OR(AK98=\"○\",AL98=\"○\",AM98=\"○\",AN98=\"○\",AQ98=\"○\"),1,\"\")","v":""},{"$f":"IF(AT98<>\"\",1,\"\")","v":""},1,{"$f":"IF(OR(AV98=\"○\",AY98<>\"\",BA98=\"はり\",BA98=\"傾斜屋根\",BA98=\"その他\",BD98<>\"\"),1,\"\")","v":""},1,1,"","","","","","","","","","","","","","","","","","","","","","","","","","","","","","","",""]
[65,null,null,"",null,null,null,null,null,null,null,null,null,null,null,null,null,null,null,null,null,null,null,null,null,null,null,null,null,null,null,null,null,null,null,null,null,null,null,null,null,null,null,null,null,null,null,null,null,"",null,null,null,null,null,null,null,null,null,null,null,null,null,null,null,null,null,null,null,null,null,null,null,null,null,null,null,null,null,null,null,null,null,null,null,null,null,null,null,null,null,null,null,null,null,null,null,null,null,null,null,null,null,null,null,null,null,null,null,null,null,null,null,null,null,null,null,null,null,null,null,null,null,null,null,null,null,null,null,null,null,null,null,null,null,null,null,null,null,null,null,null,null,null,null,null,null,null,null,null,"",null,null,null,null,null,null,null,null,"",null,"",null,null,null,null,null,null,null,null,null,null,"",null,null,null,null,null,null,null,null,null,null,"",null,null,null,null,null,null,null,null,"","","","","",1,"",1,1,"","","","","","","","","","","","","","","","","","","","","","","","","","","","","","","",""]
[66,null,null,"",null,null,null,null,null,null,null,null,null,null,null,null,null,null,null,null,null,null,null,null,null,null,null,null,null,null,null,null,null,null,null,null,null,null,null,null,null,null,null,null,null,null,null,null,null,"",null,null,null,null,null,null,null,null,null,null,null,null,null,null,null,null,null,null,null,null,null,null,null,null,null,null,null,null,null,null,null,null,null,null,null,null,null,null,null,null,null,null,null,null,null,null,null,null,null,null,null,null,null,null,null,null,null,null,null,null,null,null,null,null,null,null,null,null,null,null,null,null,null,null,null,null,null,null,null,null,null,null,null,null,null,null,null,null,null,null,null,null,null,null,null,null,null,null,null,null,"",null,null,null,null,null,null,null,null,"",null,"",null,null,null,null,null,null,null,null,null,null,"",null,null,null,null,null,null,null,null,null,null,"",null,null,null,null,null,null,null,null,"","","","","",1,"",1,1,"","","","","","","","","","","","","","","","","","","","","","","","","","","","","","","",""]
[67,null,null,"",null,null,null,null,null,null,null,null,null,null,null,null,null,null,null,null,null,null,null,null,null,null,null,null,null,null,null,null,null,null,null,null,null,null,null,null,null,null,null,null,null,null,null,null,null,"",null,null,null,null,null,null,null,null,null,null,null,null,null,null,null,null,null,null,null,null,null,null,null,null,null,null,null,null,null,null,null,null,null,null,null,null,null,null,null,null,null,null,null,null,null,null,null,null,null,null,null,null,null,null,null,null,null,null,null,null,null,null,null,null,null,null,null,null,null,null,null,null,null,null,null,null,null,null,null,null,null,null,null,null,null,null,null,null,null,null,null,null,null,null,null,null,null,null,null,null,"",null,null,null,null,null,null,null,null,"",null,"",null,null,null,null,null,null,null,null,null,null,"",null,null,null,null,null,null,null,null,null,null,"",null,null,null,null,null,null,null,null,"","","","","",1,"",1,1,"","","","","","","","","","","","","","","","","","","","","","","","","","","","","","","",""]
[68,null,null,"",null,null,null,null,null,null,null,null,null,null,null,null,null,null,null,null,null,null,null,null,null,null,null,null,null,null,null,null,null,null,null,null,null,null,null,null,null,null,null,null,null,null,null,null,null,"",null,null,null,null,null,null,null,null,null,null,null,null,null,null,null,null,null,null,null,null,null,null,null,null,null,null,null,null,null,null,null,null,null,null,null,null,null,null,null,null,null,null,null,null,null,null,null,null,null,null,null,null,null,null,null,null,null,null,null,null,null,null,null,null,null,null,null,null,null,null,null,null,null,null,null,null,null,null,null,null,null,null,null,null,null,null,null,null,null,null,null,null,null,null,null,null,null,null,null,null,"",null,null,null,null,null,null,null,null,"",null,"",null,null,null,null,null,null,null,null,null,null,"",null,null,null,null,null,null,null,null,null,null,"",null,null,null,null,null,null,null,null,"","","","","",1,"",1,1,"","","","","","","","","","","","","","","","","","","","","","","","","","","","","","","",""]
[69,null,null,"",null,null,null,null,null,null,null,null,null,null,null,null,null,null,null,null,null,null,null,null,null,null,null,null,null,null,null,null,null,null,null,null,null,null,null,null,null,null,null,null,null,null,null,null,null,"",null,null,null,null,null,null,null,null,null,null,null,null,null,null,null,null,null,null,null,null,null,null,null,null,null,null,null,null,null,null,null,null,null,null,null,null,null,null,null,null,null,null,null,null,null,null,null,null,null,null,null,null,null,null,null,null,null,null,null,null,null,null,null,null,null,null,null,null,null,null,null,null,null,null,null,null,null,null,null,null,null,null,null,null,null,null,null,null,null,null,null,null,null,null,null,null,null,null,null,null,"",null,null,null,null,null,null,null,null,"",null,"",null,null,null,null,null,null,null,null,null,null,"",null,null,null,null,null,null,null,null,null,null,"",null,null,null,null,null,null,null,null,"","","","","",1,"",1,1,"","","","","","","","","","","","","","","","","","","","","","","","","","","","","","","",""]
[70,null,null,"",null,null,null,null,null,null,null,null,null,null,null,null,null,null,null,null,null,null,null,null,null,null,null,null,null,null,null,null,null,null,null,null,null,null,null,null,null,null,null,null,null,null,null,null,null,"",null,null,null,null,null,null,null,null,null,null,null,null,null,null,null,null,null,null,null,null,null,null,null,null,null,null,null,null,null,null,null,null,null,null,null,null,null,null,null,null,null,null,null,null,null,null,null,null,null,null,null,null,null,null,null,null,null,null,null,null,null,null,null,null,null,null,null,null,null,null,null,null,null,null,null,null,null,null,null,null,null,null,null,null,null,null,null,null,null,null,null,null,null,null,null,null,null,null,null,null,"",null,null,null,null,null,null,null,null,"",null,"",null,null,null,null,null,null,null,null,null,null,"",null,null,null,null,null,null,null,null,null,null,"",null,null,null,null,null,null,null,null,"","","","","",1,"",1,1,"","","","","","","","","","","","","","","","","","","","","","","","","","","","","","","",""]
[71,null,null,"",null,null,null,null,null,null,null,null,null,null,null,null,null,null,null,null,null,null,null,null,null,null,null,null,null,null,null,null,null,null,null,null,null,null,null,null,null,null,null,null,null,null,null,null,null,"",null,null,null,null,null,null,null,null,null,null,null,null,null,null,null,null,null,null,null,null,null,null,null,null,null,null,null,null,null,null,null,null,null,null,null,null,null,null,null,null,null,null,null,null,null,null,null,null,null,null,null,null,null,null,null,null,null,null,null,null,null,null,null,null,null,null,null,null,null,null,null,null,null,null,null,null,null,null,null,null,null,null,null,null,null,null,null,null,null,null,null,null,null,null,null,null,null,null,null,null,"",null,null,null,null,null,null,null,null,"",null,"",null,null,null,null,null,null,null,null,null,null,"",null,null,null,null,null,null,null,null,null,null,"",null,null,null,null,null,null,null,null,"","","","","",1,"",1,1,"","","","","","","","","","","","","","","","","","","","","","","","","","","","","","","",""]
[72,null,null,"",null,null,null,null,null,null,null,null,null,null,null,null,null,null,null,null,null,null,null,null,null,null,null,null,null,null,null,null,null,null,null,null,null,null,null,null,null,null,null,null,null,null,null,null,null,"",null,null,null,null,null,null,null,null,null,null,null,null,null,null,null,null,null,null,null,null,null,null,null,null,null,null,null,null,null,null,null,null,null,null,null,null,null,null,null,null,null,null,null,null,null,null,null,null,null,null,null,null,null,null,null,null,null,null,null,null,null,null,null,null,null,null,null,null,null,null,null,null,null,null,null,null,null,null,null,null,null,null,null,null,null,null,null,null,null,null,null,null,null,null,null,null,null,null,null,null,"",null,null,null,null,null,null,null,null,"",null,"",null,null,null,null,null,null,null,null,null,null,"",null,null,null,null,null,null,null,null,null,null,"",null,null,null,null,null,null,null,null,"","","","","",1,"",1,1,"","","","","","","","","","","","","","","","","","","","","","","","","","","","","","","",""]
[73,null,null,"",null,null,null,null,null,null,null,null,null,null,null,null,null,null,null,null,null,null,null,null,null,null,null,null,null,null,null,null,null,null,null,null,null,null,null,null,null,null,null,null,null,null,null,null,null,"",null,null,null,null,null,null,null,null,null,null,null,null,null,null,null,null,null,null,null,null,null,null,null,null,null,null,null,null,null,null,null,null,null,null,null,null,null,null,null,null,null,null,null,null,null,null,null,null,null,null,null,null,null,null,null,null,null,null,null,null,null,null,null,null,null,null,null,null,null,null,null,null,null,null,null,null,null,null,null,null,null,null,null,null,null,null,null,null,null,null,null,null,null,null,null,null,null,null,null,null,"",null,null,null,null,null,null,null,null,"",null,"",null,null,null,null,null,null,null,null,null,null,"",null,null,null,null,null,null,null,null,null,null,"",null,null,null,null,null,null,null,null,"","","","","",1,"",1,1,"","","","","","","","","","","","","","","","","","","","","","","","","","","","","","","",""]
[74,null,null,"",null,null,null,null,null,null,null,null,null,null,null,null,null,null,null,null,null,null,null,null,null,null,null,null,null,null,null,null,null,null,null,null,null,null,null,null,null,null,null,null,null,null,null,null,null,"",null,null,null,null,null,null,null,null,null,null,null,null,null,null,null,null,null,null,null,null,null,null,null,null,null,null,null,null,null,null,null,null,null,null,null,null,null,null,null,null,null,null,null,null,null,null,null,null,null,null,null,null,null,null,null,null,null,null,null,null,null,null,null,null,null,null,null,null,null,null,null,null,null,null,null,null,null,null,null,null,null,null,null,null,null,null,null,null,null,null,null,null,null,null,null,null,null,null,null,null,"",null,null,null,null,null,null,null,null,"",null,"",null,null,null,null,null,null,null,null,null,null,"",null,null,null,null,null,null,null,null,null,null,"",null,null,null,null,null,null,null,null,"","","","","",1,"",1,1,"","","","","","","","","","","","","","","","","","","","","","","","","","","","","","","",""]
[75,null,null,"",null,null,null,null,null,null,null,null,null,null,null,null,null,null,null,null,null,null,null,null,null,null,null,null,null,null,null,null,null,null,null,null,null,null,null,null,null,null,null,null,null,null,null,null,null,"",null,null,null,null,null,null,null,null,null,null,null,null,null,null,null,null,null,null,null,null,null,null,null,null,null,null,null,null,null,null,null,null,null,null,null,null,null,null,null,null,null,null,null,null,null,null,null,null,null,null,null,null,null,null,null,null,null,null,null,null,null,null,null,null,null,null,null,null,null,null,null,null,null,null,null,null,null,null,null,null,null,null,null,null,null,null,null,null,null,null,null,null,null,null,null,null,null,null,null,null,"",null,null,null,null,null,null,null,null,"",null,"",null,null,null,null,null,null,null,null,null,null,"",null,null,null,null,null,null,null,null,null,null,"",null,null,null,null,null,null,null,null,"","","","","",1,"",1,1,"","","","","","","","","","","","","","","","","","","","","","","","","","","","","","","",""]
[76,null,null,"",null,null,null,null,null,null,null,null,null,null,null,null,null,null,null,null,null,null,null,null,null,null,null,null,null,null,null,null,null,null,null,null,null,null,null,null,null,null,null,null,null,null,null,null,null,"",null,null,null,null,null,null,null,null,null,null,null,null,null,null,null,null,null,null,null,null,null,null,null,null,null,null,null,null,null,null,null,null,null,null,null,null,null,null,null,null,null,null,null,null,null,null,null,null,null,null,null,null,null,null,null,null,null,null,null,null,null,null,null,null,null,null,null,null,null,null,null,null,null,null,null,null,null,null,null,null,null,null,null,null,null,null,null,null,null,null,null,null,null,null,null,null,null,null,null,null,"",null,null,null,null,null,null,null,null,"",null,"",null,null,null,null,null,null,null,null,null,null,"",null,null,null,null,null,null,null,null,null,null,"",null,null,null,null,null,null,null,null,"","","","","",1,"",1,1,"","","","","","","","","","","","","","","","","","","","","","","","","","","","","","","",""]
[77,null,null,"",null,null,null,null,null,null,null,null,null,null,null,null,null,null,null,null,null,null,null,null,null,null,null,null,null,null,null,null,null,null,null,null,null,null,null,null,null,null,null,null,null,null,null,null,null,"",null,null,null,null,null,null,null,null,null,null,null,null,null,null,null,null,null,null,null,null,null,null,null,null,null,null,null,null,null,null,null,null,null,null,null,null,null,null,null,null,null,null,null,null,null,null,null,null,null,null,null,null,null,null,null,null,null,null,null,null,null,null,null,null,null,null,null,null,null,null,null,null,null,null,null,null,null,null,null,null,null,null,null,null,null,null,null,null,null,null,null,null,null,null,null,null,null,null,null,null,"",null,null,null,null,null,null,null,null,"",null,"",null,null,null,null,null,null,null,null,null,null,"",null,null,null,null,null,null,null,null,null,null,"",null,null,null,null,null,null,null,null,"","","","","",1,"",1,1,"","","","","","","","","","","","","","","","","","","","","","","","","","","","","","","",""]
[78,null,null,"",null,null,null,null,null,null,null,null,null,null,null,null,null,null,null,null,null,null,null,null,null,null,null,null,null,null,null,null,null,null,null,null,null,null,null,null,null,null,null,null,null,null,null,null,null,"",null,null,null,null,null,null,null,null,null,null,null,null,null,null,null,null,null,null,null,null,null,null,null,null,null,null,null,null,null,null,null,null,null,null,null,null,null,null,null,null,null,null,null,null,null,null,null,null,null,null,null,null,null,null,null,null,null,null,null,null,null,null,null,null,null,null,null,null,null,null,null,null,null,null,null,null,null,null,null,null,null,null,null,null,null,null,null,null,null,null,null,null,null,null,null,null,null,null,null,null,"",null,null,null,null,null,null,null,null,"",null,"",null,null,null,null,null,null,null,null,null,null,"",null,null,null,null,null,null,null,null,null,null,"",null,null,null,null,null,null,null,null,"","","","","",1,"",1,1,"","","","","","","","","","","","","","","","","","","","","","","","","","","","","","","",""]
[79,null,null,"",null,null,null,null,null,null,null,null,null,null,null,null,null,null,null,null,null,null,null,null,null,null,null,null,null,null,null,null,null,null,null,null,null,null,null,null,null,null,null,null,null,null,null,null,null,"",null,null,null,null,null,null,null,null,null,null,null,null,null,null,null,null,null,null,null,null,null,null,null,null,null,null,null,null,null,null,null,null,null,null,null,null,null,null,null,null,null,null,null,null,null,null,null,null,null,null,null,null,null,null,null,null,null,null,null,null,null,null,null,null,null,null,null,null,null,null,null,null,null,null,null,null,null,null,null,null,null,null,null,null,null,null,null,null,null,null,null,null,null,null,null,null,null,null,null,null,"",null,null,null,null,null,null,null,null,"",null,"",null,null,null,null,null,null,null,null,null,null,"",null,null,null,null,null,null,null,null,null,null,"",null,null,null,null,null,null,null,null,"","","","","",1,"",1,1,"","","","","","","","","","","","","","","","","","","","","","","","","","","","","","","",""]
[80,null,null,"",null,null,null,null,null,null,null,null,null,null,null,null,null,null,null,null,null,null,null,null,null,null,null,null,null,null,null,null,null,null,null,null,null,null,null,null,null,null,null,null,null,null,null,null,null,"",null,null,null,null,null,null,null,null,null,null,null,null,null,null,null,null,null,null,null,null,null,null,null,null,null,null,null,null,null,null,null,null,null,null,null,null,null,null,null,null,null,null,null,null,null,null,null,null,null,null,null,null,null,null,null,null,null,null,null,null,null,null,null,null,null,null,null,null,null,null,null,null,null,null,null,null,null,null,null,null,null,null,null,null,null,null,null,null,null,null,null,null,null,null,null,null,null,null,null,null,"",null,null,null,null,null,null,null,null,"",null,"",null,null,null,null,null,null,null,null,null,null,"",null,null,null,null,null,null,null,null,null,null,"",null,null,null,null,null,null,null,null,"","","","","",1,"",1,1,"","","","","","","","","","","","","","","","","","","","","","","","","","","","","","","",""]
[81,null,null,"",null,null,null,null,null,null,null,null,null,null,null,null,null,null,null,null,null,null,null,null,null,null,null,null,null,null,null,null,null,null,null,null,null,null,null,null,null,null,null,null,null,null,null,null,null,"",null,null,null,null,null,null,null,null,null,null,null,null,null,null,null,null,null,null,null,null,null,null,null,null,null,null,null,null,null,null,null,null,null,null,null,null,null,null,null,null,null,null,null,null,null,null,null,null,null,null,null,null,null,null,null,null,null,null,null,null,null,null,null,null,null,null,null,null,null,null,null,null,null,null,null,null,null,null,null,null,null,null,null,null,null,null,null,null,null,null,null,null,null,null,null,null,null,null,null,null,"",null,null,null,null,null,null,null,null,"",null,"",null,null,null,null,null,null,null,null,null,null,"",null,null,null,null,null,null,null,null,null,null,"",null,null,null,null,null,null,null,null,"","","","","",1,"",1,1,"","","","","","","","","","","","","","","","","","","","","","","","","","","","","","","",""]
[82,null,null,"",null,null,null,null,null,null,null,null,null,null,null,null,null,null,null,null,null,null,null,null,null,null,null,null,null,null,null,null,null,null,null,null,null,null,null,null,null,null,null,null,null,null,null,null,null,"",null,null,null,null,null,null,null,null,null,null,null,null,null,null,null,null,null,null,null,null,null,null,null,null,null,null,null,null,null,null,null,null,null,null,null,null,null,null,null,null,null,null,null,null,null,null,null,null,null,null,null,null,null,null,null,null,null,null,null,null,null,null,null,null,null,null,null,null,null,null,null,null,null,null,null,null,null,null,null,null,null,null,null,null,null,null,null,null,null,null,null,null,null,null,null,null,null,null,null,null,"",null,null,null,null,null,null,null,null,"",null,"",null,null,null,null,null,null,null,null,null,null,"",null,null,null,null,null,null,null,null,null,null,"",null,null,null,null,null,null,null,null,"","","","","",1,"",1,1,"","","","","","","","","","","","","","","","","","","","","","","","","","","","","","","",""]
[83,null,null,"",null,null,null,null,null,null,null,null,null,null,null,null,null,null,null,null,null,null,null,null,null,null,null,null,null,null,null,null,null,null,null,null,null,null,null,null,null,null,null,null,null,null,null,null,null,"",null,null,null,null,null,null,null,null,null,null,null,null,null,null,null,null,null,null,null,null,null,null,null,null,null,null,null,null,null,null,null,null,null,null,null,null,null,null,null,null,null,null,null,null,null,null,null,null,null,null,null,null,null,null,null,null,null,null,null,null,null,null,null,null,null,null,null,null,null,null,null,null,null,null,null,null,null,null,null,null,null,null,null,null,null,null,null,null,null,null,null,null,null,null,null,null,null,null,null,null,"",null,null,null,null,null,null,null,null,"",null,"",null,null,null,null,null,null,null,null,null,null,"",null,null,null,null,null,null,null,null,null,null,"",null,null,null,null,null,null,null,null,"","","","","",1,"",1,1,"","","","","","","","","","","","","","","","","","","","","","","","","","","","","","","",""]
[84,null,null,"",null,null,null,null,null,null,null,null,null,null,null,null,null,null,null,null,null,null,null,null,null,null,null,null,null,null,null,null,null,null,null,null,null,null,null,null,null,null,null,null,null,null,null,null,null,"",null,null,null,null,null,null,null,null,null,null,null,null,null,null,null,null,null,null,null,null,null,null,null,null,null,null,null,null,null,null,null,null,null,null,null,null,null,null,null,null,null,null,null,null,null,null,null,null,null,null,null,null,null,null,null,null,null,null,null,null,null,null,null,null,null,null,null,null,null,null,null,null,null,null,null,null,null,null,null,null,null,null,null,null,null,null,null,null,null,null,null,null,null,null,null,null,null,null,null,null,"",null,null,null,null,null,null,null,null,"",null,"",null,null,null,null,null,null,null,null,null,null,"",null,null,null,null,null,null,null,null,null,null,"",null,null,null,null,null,null,null,null,"","","","","",1,"",1,1,"","","","","","","","","","","","","","","","","","","","","","","","","","","","","","","",""]
[85,null,null,"",null,null,null,null,null,null,null,null,null,null,null,null,null,null,null,null,null,null,null,null,null,null,null,null,null,null,null,null,null,null,null,null,null,null,null,null,null,null,null,null,null,null,null,null,null,"",null,null,null,null,null,null,null,null,null,null,null,null,null,null,null,null,null,null,null,null,null,null,null,null,null,null,null,null,null,null,null,null,null,null,null,null,null,null,null,null,null,null,null,null,null,null,null,null,null,null,null,null,null,null,null,null,null,null,null,null,null,null,null,null,null,null,null,null,null,null,null,null,null,null,null,null,null,null,null,null,null,null,null,null,null,null,null,null,null,null,null,null,null,null,null,null,null,null,null,null,"",null,null,null,null,null,null,null,null,"",null,"",null,null,null,null,null,null,null,null,null,null,"",null,null,null,null,null,null,null,null,null,null,"",null,null,null,null,null,null,null,null,"","","","","",1,"",1,1,"","","","","","","","","","","","","","","","","","","","","","","","","","","","","","","",""]
[86,null,null,"",null,null,null,null,null,null,null,null,null,null,null,null,null,null,null,null,null,null,null,null,null,null,null,null,null,null,null,null,null,null,null,null,null,null,null,null,null,null,null,null,null,null,null,null,null,"",null,null,null,null,null,null,null,null,null,null,null,null,null,null,null,null,null,null,null,null,null,null,null,null,null,null,null,null,null,null,null,null,null,null,null,null,null,null,null,null,null,null,null,null,null,null,null,null,null,null,null,null,null,null,null,null,null,null,null,null,null,null,null,null,null,null,null,null,null,null,null,null,null,null,null,null,null,null,null,null,null,null,null,null,null,null,null,null,null,null,null,null,null,null,null,null,null,null,null,null,"",null,null,null,null,null,null,null,null,"",null,"",null,null,null,null,null,null,null,null,null,null,"",null,null,null,null,null,null,null,null,null,null,"",null,null,null,null,null,null,null,null,"","","","","",1,"",1,1,"","","","","","","","","","","","","","","","","","","","","","","","","","","","","","","",""]
[87,null,null,"",null,null,null,null,null,null,null,null,null,null,null,null,null,null,null,null,null,null,null,null,null,null,null,null,null,null,null,null,null,null,null,null,null,null,null,null,null,null,null,null,null,null,null,null,null,"",null,null,null,null,null,null,null,null,null,null,null,null,null,null,null,null,null,null,null,null,null,null,null,null,null,null,null,null,null,null,null,null,null,null,null,null,null,null,null,null,null,null,null,null,null,null,null,null,null,null,null,null,null,null,null,null,null,null,null,null,null,null,null,null,null,null,null,null,null,null,null,null,null,null,null,null,null,null,null,null,null,null,null,null,null,null,null,null,null,null,null,null,null,null,null,null,null,null,null,null,"",null,null,null,null,null,null,null,null,"",null,"",null,null,null,null,null,null,null,null,null,null,"",null,null,null,null,null,null,null,null,null,null,"",null,null,null,null,null,null,null,null,"","","","","",1,"",1,1,"","","","","","","","","","","","","","","","","","","","","","","","","","","","","","","",""]
[88,null,null,"",null,null,null,null,null,null,null,null,null,null,null,null,null,null,null,null,null,null,null,null,null,null,null,null,null,null,null,null,null,null,null,null,null,null,null,null,null,null,null,null,null,null,null,null,null,"",null,null,null,null,null,null,null,null,null,null,null,null,null,null,null,null,null,null,null,null,null,null,null,null,null,null,null,null,null,null,null,null,null,null,null,null,null,null,null,null,null,null,null,null,null,null,null,null,null,null,null,null,null,null,null,null,null,null,null,null,null,null,null,null,null,null,null,null,null,null,null,null,null,null,null,null,null,null,null,null,null,null,null,null,null,null,null,null,null,null,null,null,null,null,null,null,null,null,null,null,"",null,null,null,null,null,null,null,null,"",null,"",null,null,null,null,null,null,null,null,null,null,"",null,null,null,null,null,null,null,null,null,null,"",null,null,null,null,null,null,null,null,"","","","","",1,"",1,1,"","","","","","","","","","","","","","","","","","","","","","","","","","","","","","","",""]
[89,null,null,"",null,null,null,null,null,null,null,null,null,null,null,null,null,null,null,null,null,null,null,null,null,null,null,null,null,null,null,null,null,null,null,null,null,null,null,null,null,null,null,null,null,null,null,null,null,"",null,null,null,null,null,null,null,null,null,null,null,null,null,null,null,null,null,null,null,null,null,null,null,null,null,null,null,null,null,null,null,null,null,null,null,null,null,null,null,null,null,null,null,null,null,null,null,null,null,null,null,null,null,null,null,null,null,null,null,null,null,null,null,null,null,null,null,null,null,null,null,null,null,null,null,null,null,null,null,null,null,null,null,null,null,null,null,null,null,null,null,null,null,null,null,null,null,null,null,null,"",null,null,null,null,null,null,null,null,"",null,"",null,null,null,null,null,null,null,null,null,null,"",null,null,null,null,null,null,null,null,null,null,"",null,null,null,null,null,null,null,null,"","","","","",1,"",1,1,"","","","","","","","","","","","","","","","","","","","","","","","","","","","","","","",""]
[90,null,null,"",null,null,null,null,null,null,null,null,null,null,null,null,null,null,null,null,null,null,null,null,null,null,null,null,null,null,null,null,null,null,null,null,null,null,null,null,null,null,null,null,null,null,null,null,null,"",null,null,null,null,null,null,null,null,null,null,null,null,null,null,null,null,null,null,null,null,null,null,null,null,null,null,null,null,null,null,null,null,null,null,null,null,null,null,null,null,null,null,null,null,null,null,null,null,null,null,null,null,null,null,null,null,null,null,null,null,null,null,null,null,null,null,null,null,null,null,null,null,null,null,null,null,null,null,null,null,null,null,null,null,null,null,null,null,null,null,null,null,null,null,null,null,null,null,null,null,"",null,null,null,null,null,null,null,null,"",null,"",null,null,null,null,null,null,null,null,null,null,"",null,null,null,null,null,null,null,null,null,null,"",null,null,null,null,null,null,null,null,"","","","","",1,"",1,1,"","","","","","","","","","","","","","","","","","","","","","","","","","","","","","","",""]
[91,null,null,"",null,null,null,null,null,null,null,null,null,null,null,null,null,null,null,null,null,null,null,null,null,null,null,null,null,null,null,null,null,null,null,null,null,null,null,null,null,null,null,null,null,null,null,null,null,"",null,null,null,null,null,null,null,null,null,null,null,null,null,null,null,null,null,null,null,null,null,null,null,null,null,null,null,null,null,null,null,null,null,null,null,null,null,null,null,null,null,null,null,null,null,null,null,null,null,null,null,null,null,null,null,null,null,null,null,null,null,null,null,null,null,null,null,null,null,null,null,null,null,null,null,null,null,null,null,null,null,null,null,null,null,null,null,null,null,null,null,null,null,null,null,null,null,null,null,null,"",null,null,null,null,null,null,null,null,"",null,"",null,null,null,null,null,null,null,null,null,null,"",null,null,null,null,null,null,null,null,null,null,"",null,null,null,null,null,null,null,null,"","","","","",1,"",1,1,"","","","","","","","","","","","","","","","","","","","","","","","","","","","","","","",""]
[92,null,null,"",null,null,null,null,null,null,null,null,null,null,null,null,null,null,null,null,null,null,null,null,null,null,null,null,null,null,null,null,null,null,null,null,null,null,null,null,null,null,null,null,null,null,null,null,null,"",null,null,null,null,null,null,null,null,null,null,null,null,null,null,null,null,null,null,null,null,null,null,null,null,null,null,null,null,null,null,null,null,null,null,null,null,null,null,null,null,null,null,null,null,null,null,null,null,null,null,null,null,null,null,null,null,null,null,null,null,null,null,null,null,null,null,null,null,null,null,null,null,null,null,null,null,null,null,null,null,null,null,null,null,null,null,null,null,null,null,null,null,null,null,null,null,null,null,null,null,"",null,null,null,null,null,null,null,null,"",null,"",null,null,null,null,null,null,null,null,null,null,"",null,null,null,null,null,null,null,null,null,null,"",null,null,null,null,null,null,null,null,"","","","","",1,"",1,1,"","","","","","","","","","","","","","","","","","","","","","","","","","","","","","","",""]
[93,null,null,"",null,null,null,null,null,null,null,null,null,null,null,null,null,null,null,null,null,null,null,null,null,null,null,null,null,null,null,null,null,null,null,null,null,null,null,null,null,null,null,null,null,null,null,null,null,"",null,null,null,null,null,null,null,null,null,null,null,null,null,null,null,null,null,null,null,null,null,null,null,null,null,null,null,null,null,null,null,null,null,null,null,null,null,null,null,null,null,null,null,null,null,null,null,null,null,null,null,null,null,null,null,null,null,null,null,null,null,null,null,null,null,null,null,null,null,null,null,null,null,null,null,null,null,null,null,null,null,null,null,null,null,null,null,null,null,null,null,null,null,null,null,null,null,null,null,null,"",null,null,null,null,null,null,null,null,"",null,"",null,null,null,null,null,null,null,null,null,null,"",null,null,null,null,null,null,null,null,null,null,"",null,null,null,null,null,null,null,null,"","","","","",1,"",1,1,"","","","","","","","","","","","","","","","","","","","","","","","","","","","","","","",""]
[94,null,null,"",null,null,null,null,null,null,null,null,null,null,null,null,null,null,null,null,null,null,null,null,null,null,null,null,null,null,null,null,null,null,null,null,null,null,null,null,null,null,null,null,null,null,null,null,null,"",null,null,null,null,null,null,null,null,null,null,null,null,null,null,null,null,null,null,null,null,null,null,null,null,null,null,null,null,null,null,null,null,null,null,null,null,null,null,null,null,null,null,null,null,null,null,null,null,null,null,null,null,null,null,null,null,null,null,null,null,null,null,null,null,null,null,null,null,null,null,null,null,null,null,null,null,null,null,null,null,null,null,null,null,null,null,null,null,null,null,null,null,null,null,null,null,null,null,null,null,"",null,null,null,null,null,null,null,null,"",null,"",null,null,null,null,null,null,null,null,null,null,"",null,null,null,null,null,null,null,null,null,null,"",null,null,null,null,null,null,null,null,"","","","","",1,"",1,1,"","","","","","","","","","","","","","","","","","","","","","","","","","","","","","","",""]
[95,null,null,"",null,null,null,null,null,null,null,null,null,null,null,null,null,null,null,null,null,null,null,null,null,null,null,null,null,null,null,null,null,null,null,null,null,null,null,null,null,null,null,null,null,null,null,null,null,"",null,null,null,null,null,null,null,null,null,null,null,null,null,null,null,null,null,null,null,null,null,null,null,null,null,null,null,null,null,null,null,null,null,null,null,null,null,null,null,null,null,null,null,null,null,null,null,null,null,null,null,null,null,null,null,null,null,null,null,null,null,null,null,null,null,null,null,null,null,null,null,null,null,null,null,null,null,null,null,null,null,null,null,null,null,null,null,null,null,null,null,null,null,null,null,null,null,null,null,null,"",null,null,null,null,null,null,null,null,"",null,"",null,null,null,null,null,null,null,null,null,null,"",null,null,null,null,null,null,null,null,null,null,"",null,null,null,null,null,null,null,null,"","","","","",1,"",1,1,"","","","","","","","","","","","","","","","","","","","","","","","","","","","","","","",""]
[96,null,null,"",null,null,null,null,null,null,null,null,null,null,null,null,null,null,null,null,null,null,null,null,null,null,null,null,null,null,null,null,null,null,null,null,null,null,null,null,null,null,null,null,null,null,null,null,null,"",null,null,null,null,null,null,null,null,null,null,null,null,null,null,null,null,null,null,null,null,null,null,null,null,null,null,null,null,null,null,null,null,null,null,null,null,null,null,null,null,null,null,null,null,null,null,null,null,null,null,null,null,null,null,null,null,null,null,null,null,null,null,null,null,null,null,null,null,null,null,null,null,null,null,null,null,null,null,null,null,null,null,null,null,null,null,null,null,null,null,null,null,null,null,null,null,null,null,null,null,"",null,null,null,null,null,null,null,null,"",null,"",null,null,null,null,null,null,null,null,null,null,"",null,null,null,null,null,null,null,null,null,null,"",null,null,null,null,null,null,null,null,"","","","","",1,"",1,1,"","","","","","","","","","","","","","","","","","","","","","","","","","","","","","","",""]
[97,null,null,"",null,null,null,null,null,null,null,null,null,null,null,null,null,null,null,null,null,null,null,null,null,null,null,null,null,null,null,null,null,null,null,null,null,null,null,null,null,null,null,null,null,null,null,null,null,"",null,null,null,null,null,null,null,null,null,null,null,null,null,null,null,null,null,null,null,null,null,null,null,null,null,null,null,null,null,null,null,null,null,null,null,null,null,null,null,null,null,null,null,null,null,null,null,null,null,null,null,null,null,null,null,null,null,null,null,null,null,null,null,null,null,null,null,null,null,null,null,null,null,null,null,null,null,null,null,null,null,null,null,null,null,null,null,null,null,null,null,null,null,null,null,null,null,null,null,null,"",null,null,null,null,null,null,null,null,"",null,"",null,null,null,null,null,null,null,null,null,null,"",null,null,null,null,null,null,null,null,null,null,"",null,null,null,null,null,null,null,null,"","","","","",1,"",1,1,"","","","","","","","","","","","","","","","","","","","","","","","","","","","","","","",""]
[98,null,null,"",null,null,null,null,null,null,null,null,null,null,null,null,null,null,null,null,null,null,null,null,null,null,null,null,null,null,null,null,null,null,null,null,null,null,null,null,null,null,null,null,null,null,null,null,null,"",null,null,null,null,null,null,null,null,null,null,null,null,null,null,null,null,null,null,null,null,null,null,null,null,null,null,null,null,null,null,null,null,null,null,null,null,null,null,null,null,null,null,null,null,null,null,null,null,null,null,null,null,null,null,null,null,null,null,null,null,null,null,null,null,null,null,null,null,null,null,null,null,null,null,null,null,null,null,null,null,null,null,null,null,null,null,null,null,null,null,null,null,null,null,null,null,null,null,null,null,"",null,null,null,null,null,null,null,null,"",null,"",null,null,null,null,null,null,null,null,null,null,"",null,null,null,null,null,null,null,null,null,null,"",null,null,null,null,null,null,null,null,"","","","","",1,"",1,1,"","","","","","","","","","","","","","","","","","","","","","","","","","","","","","","",""]
[99,null,null,"",null,null,null,null,null,null,null,null,null,null,null,null,null,null,null,null,null,null,null,null,null,null,null,null,null,null,null,null,null,null,null,null,null,null,null,null,null,null,null,null,null,null,null,null,null,"",null,null,null,null,null,null,null,null,null,null,null,null,null,null,null,null,null,null,null,null,null,null,null,null,null,null,null,null,null,null,null,null,null,null,null,null,null,null,null,null,null,null,null,null,null,null,null,null,null,null,null,null,null,null,null,null,null,null,null,null,null,null,null,null,null,null,null,null,null,null,null,null,null,null,null,null,null,null,null,null,null,null,null,null,null,null,null,null,null,null,null,null,null,null,null,null,null,null,null,null,"",null,null,null,null,null,null,null,null,"",null,"",null,null,null,null,null,null,null,null,null,null,"",null,null,null,null,null,null,null,null,null,null,"",null,null,null,null,null,null,null,null,"","","","","",1,"",1,1,"","","","","","","","","","","","","","","","","","","","","","","","","","","","","","","",""]
[100,null,null,"",null,null,null,null,null,null,null,null,null,null,null,null,null,null,null,null,null,null,null,null,null,null,null,null,null,null,null,null,null,null,null,null,null,null,null,null,null,null,null,null,null,null,null,null,null,"",null,null,null,null,null,null,null,null,null,null,null,null,null,null,null,null,null,null,null,null,null,null,null,null,null,null,null,null,null,null,null,null,null,null,null,null,null,null,null,null,null,null,null,null,null,null,null,null,null,null,null,null,null,null,null,null,null,null,null,null,null,null,null,null,null,null,null,null,null,null,null,null,null,null,null,null,null,null,null,null,null,null,null,null,null,null,null,null,null,null,null,null,null,null,null,null,null,null,null,null,"",null,null,null,null,null,null,null,null,"",null,"",null,null,null,null,null,null,null,null,null,null,"",null,null,null,null,null,null,null,null,null,null,"",null,null,null,null,null,null,null,null,"","","","","",1,"",1,1,"","","","","","","","","","","","","","","","","","","","","","","","","","","","","","","",""]
[101,null,null,"",null,null,null,null,null,null,null,null,null,null,null,null,null,null,null,null,null,null,null,null,null,null,null,null,null,null,null,null,null,null,null,null,null,null,null,null,null,null,null,null,null,null,null,null,null,"",null,null,null,null,null,null,null,null,null,null,null,null,null,null,null,null,null,null,null,null,null,null,null,null,null,null,null,null,null,null,null,null,null,null,null,null,null,null,null,null,null,null,null,null,null,null,null,null,null,null,null,null,null,null,null,null,null,null,null,null,null,null,null,null,null,null,null,null,null,null,null,null,null,null,null,null,null,null,null,null,null,null,null,null,null,null,null,null,null,null,null,null,null,null,null,null,null,null,null,null,"",null,null,null,null,null,null,null,null,"",null,"",null,null,null,null,null,null,null,null,null,null,"",null,null,null,null,null,null,null,null,null,null,"",null,null,null,null,null,null,null,null,"","","","","",1,"",1,1,"","","","","","","","","","","","","","","","","","","","","","","","","","","","","","","",""]
[102,null,null,"",null,null,null,null,null,null,null,null,null,null,null,null,null,null,null,null,null,null,null,null,null,null,null,null,null,null,null,null,null,null,null,null,null,null,null,null,null,null,null,null,null,null,null,null,null,"",null,null,null,null,null,null,null,null,null,null,null,null,null,null,null,null,null,null,null,null,null,null,null,null,null,null,null,null,null,null,null,null,null,null,null,null,null,null,null,null,null,null,null,null,null,null,null,null,null,null,null,null,null,null,null,null,null,null,null,null,null,null,null,null,null,null,null,null,null,null,null,null,null,null,null,null,null,null,null,null,null,null,null,null,null,null,null,null,null,null,null,null,null,null,null,null,null,null,null,null,"",null,null,null,null,null,null,null,null,"",null,"",null,null,null,null,null,null,null,null,null,null,"",null,null,null,null,null,null,null,null,null,null,"",null,null,null,null,null,null,null,null,"","","","","",1,"",1,1,"","","","","","","","","","","","","","","","","","","","","","","","","","","","","","","",""]
[103,null,null,"",null,null,null,null,null,null,null,null,null,null,null,null,null,null,null,null,null,null,null,null,null,null,null,null,null,null,null,null,null,null,null,null,null,null,null,null,null,null,null,null,null,null,null,null,null,"",null,null,null,null,null,null,null,null,null,null,null,null,null,null,null,null,null,null,null,null,null,null,null,null,null,null,null,null,null,null,null,null,null,null,null,null,null,null,null,null,null,null,null,null,null,null,null,null,null,null,null,null,null,null,null,null,null,null,null,null,null,null,null,null,null,null,null,null,null,null,null,null,null,null,null,null,null,null,null,null,null,null,null,null,null,null,null,null,null,null,null,null,null,null,null,null,null,null,null,null,"",null,null,null,null,null,null,null,null,"",null,"",null,null,null,null,null,null,null,null,null,null,"",null,null,null,null,null,null,null,null,null,null,"",null,null,null,null,null,null,null,null,"","","","","",1,"",1,1,"","","","","","","","","","","","","","","","","","","","","","","","","","","","","","","",""]
[104,null,null,"",null,null,null,null,null,null,null,null,null,null,null,null,null,null,null,null,null,null,null,null,null,null,null,null,null,null,null,null,null,null,null,null,null,null,null,null,null,null,null,null,null,null,null,null,null,"",null,null,null,null,null,null,null,null,null,null,null,null,null,null,null,null,null,null,null,null,null,null,null,null,null,null,null,null,null,null,null,null,null,null,null,null,null,null,null,null,null,null,null,null,null,null,null,null,null,null,null,null,null,null,null,null,null,null,null,null,null,null,null,null,null,null,null,null,null,null,null,null,null,null,null,null,null,null,null,null,null,null,null,null,null,null,null,null,null,null,null,null,null,null,null,null,null,null,null,null,"",null,null,null,null,null,null,null,null,"",null,"",null,null,null,null,null,null,null,null,null,null,"",null,null,null,null,null,null,null,null,null,null,"",null,null,null,null,null,null,null,null,"","","","","",1,"",1,1,"","","","","","","","","","","","","","","","","","","","","","","","","","","","","","","",""]
[105,null,null,"",null,null,null,null,null,null,null,null,null,null,null,null,null,null,null,null,null,null,null,null,null,null,null,null,null,null,null,null,null,null,null,null,null,null,null,null,null,null,null,null,null,null,null,null,null,"",null,null,null,null,null,null,null,null,null,null,null,null,null,null,null,null,null,null,null,null,null,null,null,null,null,null,null,null,null,null,null,null,null,null,null,null,null,null,null,null,null,null,null,null,null,null,null,null,null,null,null,null,null,null,null,null,null,null,null,null,null,null,null,null,null,null,null,null,null,null,null,null,null,null,null,null,null,null,null,null,null,null,null,null,null,null,null,null,null,null,null,null,null,null,null,null,null,null,null,null,"",null,null,null,null,null,null,null,null,"",null,"",null,null,null,null,null,null,null,null,null,null,"",null,null,null,null,null,null,null,null,null,null,"",null,null,null,null,null,null,null,null,"","","","","",1,"",1,1,"","","","","","","","","","","","","","","","","","","","","","","","","","","","","","","",""]
[106,null,null,"",null,null,null,null,null,null,null,null,null,null,null,null,null,null,null,null,null,null,null,null,null,null,null,null,null,null,null,null,null,null,null,null,null,null,null,null,null,null,null,null,null,null,null,null,null,"",null,null,null,null,null,null,null,null,null,null,null,null,null,null,null,null,null,null,null,null,null,null,null,null,null,null,null,null,null,null,null,null,null,null,null,null,null,null,null,null,null,null,null,null,null,null,null,null,null,null,null,null,null,null,null,null,null,null,null,null,null,null,null,null,null,null,null,null,null,null,null,null,null,null,null,null,null,null,null,null,null,null,null,null,null,null,null,null,null,null,null,null,null,null,null,null,null,null,null,null,"",null,null,null,null,null,null,null,null,"",null,"",null,null,null,null,null,null,null,null,null,null,"",null,null,null,null,null,null,null,null,null,null,"",null,null,null,null,null,null,null,null,"","","","","",1,"",1,1,"","","","","","","","","","","","","","","","","","","","","","","","","","","","","","","",""]
[107,null,null,"",null,null,null,null,null,null,null,null,null,null,null,null,null,null,null,null,null,null,null,null,null,null,null,null,null,null,null,null,null,null,null,null,null,null,null,null,null,null,null,null,null,null,null,null,null,"",null,null,null,null,null,null,null,null,null,null,null,null,null,null,null,null,null,null,null,null,null,null,null,null,null,null,null,null,null,null,null,null,null,null,null,null,null,null,null,null,null,null,null,null,null,null,null,null,null,null,null,null,null,null,null,null,null,null,null,null,null,null,null,null,null,null,null,null,null,null,null,null,null,null,null,null,null,null,null,null,null,null,null,null,null,null,null,null,null,null,null,null,null,null,null,null,null,null,null,null,"",null,null,null,null,null,null,null,null,"",null,"",null,null,null,null,null,null,null,null,null,null,"",null,null,null,null,null,null,null,null,null,null,"",null,null,null,null,null,null,null,null,"","","","","",1,"",1,1,"","","","","","","","","","","","","","","","","","","","","","","","","","","","","","","",""]
[108,null,null,"",null,null,null,null,null,null,null,null,null,null,null,null,null,null,null,null,null,null,null,null,null,null,null,null,null,null,null,null,null,null,null,null,null,null,null,null,null,null,null,null,null,null,null,null,null,"",null,null,null,null,null,null,null,null,null,null,null,null,null,null,null,null,null,null,null,null,null,null,null,null,null,null,null,null,null,null,null,null,null,null,null,null,null,null,null,null,null,null,null,null,null,null,null,null,null,null,null,null,null,null,null,null,null,null,null,null,null,null,null,null,null,null,null,null,null,null,null,null,null,null,null,null,null,null,null,null,null,null,null,null,null,null,null,null,null,null,null,null,null,null,null,null,null,null,null,null,"",null,null,null,null,null,null,null,null,"",null,"",null,null,null,null,null,null,null,null,null,null,"",null,null,null,null,null,null,null,null,null,null,"",null,null,null,null,null,null,null,null,"","","","","",1,"",1,1,"","","","","","","","","","","","","","","","","","","","","","","","","","","","","","","",""]
[109,null,null,"",null,null,null,null,null,null,null,null,null,null,null,null,null,null,null,null,null,null,null,null,null,null,null,null,null,null,null,null,null,null,null,null,null,null,null,null,null,null,null,null,null,null,null,null,null,"",null,null,null,null,null,null,null,null,null,null,null,null,null,null,null,null,null,null,null,null,null,null,null,null,null,null,null,null,null,null,null,null,null,null,null,null,null,null,null,null,null,null,null,null,null,null,null,null,null,null,null,null,null,null,null,null,null,null,null,null,null,null,null,null,null,null,null,null,null,null,null,null,null,null,null,null,null,null,null,null,null,null,null,null,null,null,null,null,null,null,null,null,null,null,null,null,null,null,null,null,"",null,null,null,null,null,null,null,null,"",null,"",null,null,null,null,null,null,null,null,null,null,"",null,null,null,null,null,null,null,null,null,null,"",null,null,null,null,null,null,null,null,"","","","","",1,"",1,1,"","","","","","","","","","","","","","","","","","","","","","","","","","","","","","","",""]
[110,null,null,"",null,null,null,null,null,null,null,null,null,null,null,null,null,null,null,null,null,null,null,null,null,null,null,null,null,null,null,null,null,null,null,null,null,null,null,null,null,null,null,null,null,null,null,null,null,"",null,null,null,null,null,null,null,null,null,null,null,null,null,null,null,null,null,null,null,null,null,null,null,null,null,null,null,null,null,null,null,null,null,null,null,null,null,null,null,null,null,null,null,null,null,null,null,null,null,null,null,null,null,null,null,null,null,null,null,null,null,null,null,null,null,null,null,null,null,null,null,null,null,null,null,null,null,null,null,null,null,null,null,null,null,null,null,null,null,null,null,null,null,null,null,null,null,null,null,null,"",null,null,null,null,null,null,null,null,"",null,"",null,null,null,null,null,null,null,null,null,null,"",null,null,null,null,null,null,null,null,null,null,"",null,null,null,null,null,null,null,null,"","","","","",1,"",1,1,"","","","","","","","","","","","","","","","","","","","","","","","","","","","","","","",""]
[111,null,null,"",null,null,null,null,null,null,null,null,null,null,null,null,null,null,null,null,null,null,null,null,null,null,null,null,null,null,null,null,null,null,null,null,null,null,null,null,null,null,null,null,null,null,null,null,null,"",null,null,null,null,null,null,null,null,null,null,null,null,null,null,null,null,null,null,null,null,null,null,null,null,null,null,null,null,null,null,null,null,null,null,null,null,null,null,null,null,null,null,null,null,null,null,null,null,null,null,null,null,null,null,null,null,null,null,null,null,null,null,null,null,null,null,null,null,null,null,null,null,null,null,null,null,null,null,null,null,null,null,null,null,null,null,null,null,null,null,null,null,null,null,null,null,null,null,null,null,"",null,null,null,null,null,null,null,null,"",null,"",null,null,null,null,null,null,null,null,null,null,"",null,null,null,null,null,null,null,null,null,null,"",null,null,null,null,null,null,null,null,"","","","","",1,"",1,1,"","","","","","","","","","","","","","","","","","","","","","","","","","","","","","","",""]
[112,null,null,"",null,null,null,null,null,null,null,null,null,null,null,null,null,null,null,null,null,null,null,null,null,null,null,null,null,null,null,null,null,null,null,null,null,null,null,null,null,null,null,null,null,null,null,null,null,"",null,null,null,null,null,null,null,null,null,null,null,null,null,null,null,null,null,null,null,null,null,null,null,null,null,null,null,null,null,null,null,null,null,null,null,null,null,null,null,null,null,null,null,null,null,null,null,null,null,null,null,null,null,null,null,null,null,null,null,null,null,null,null,null,null,null,null,null,null,null,null,null,null,null,null,null,null,null,null,null,null,null,null,null,null,null,null,null,null,null,null,null,null,null,null,null,null,null,null,null,"",null,null,null,null,null,null,null,null,"",null,"",null,null,null,null,null,null,null,null,null,null,"",null,null,null,null,null,null,null,null,null,null,"",null,null,null,null,null,null,null,null,"","","","","",1,"",1,1,"","","","","","","","","","","","","","","","","","","","","","","","","","","","","","","",""]
[113,null,null,"",null,null,null,null,null,null,null,null,null,null,null,null,null,null,null,null,null,null,null,null,null,null,null,null,null,null,null,null,null,null,null,null,null,null,null,null,null,null,null,null,null,null,null,null,null,"",null,null,null,null,null,null,null,null,null,null,null,null,null,null,null,null,null,null,null,null,null,null,null,null,null,null,null,null,null,null,null,null,null,null,null,null,null,null,null,null,null,null,null,null,null,null,null,null,null,null,null,null,null,null,null,null,null,null,null,null,null,null,null,null,null,null,null,null,null,null,null,null,null,null,null,null,null,null,null,null,null,null,null,null,null,null,null,null,null,null,null,null,null,null,null,null,null,null,null,null,"",null,null,null,null,null,null,null,null,"",null,"",null,null,null,null,null,null,null,null,null,null,"",null,null,null,null,null,null,null,null,null,null,"",null,null,null,null,null,null,null,null,"","","","","",1,"",1,1,"","","","","","","","","","","","","","","","","","","","","","","","","","","","","","","",""]
[114,null,null,"",null,null,null,null,null,null,null,null,null,null,null,null,null,null,null,null,null,null,null,null,null,null,null,null,null,null,null,null,null,null,null,null,null,null,null,null,null,null,null,null,null,null,null,null,null,"",null,null,null,null,null,null,null,null,null,null,null,null,null,null,null,null,null,null,null,null,null,null,null,null,null,null,null,null,null,null,null,null,null,null,null,null,null,null,null,null,null,null,null,null,null,null,null,null,null,null,null,null,null,null,null,null,null,null,null,null,null,null,null,null,null,null,null,null,null,null,null,null,null,null,null,null,null,null,null,null,null,null,null,null,null,null,null,null,null,null,null,null,null,null,null,null,null,null,null,null,"",null,null,null,null,null,null,null,null,"",null,"",null,null,null,null,null,null,null,null,null,null,"",null,null,null,null,null,null,null,null,null,null,"",null,null,null,null,null,null,null,null,"","","","","",1,"",1,1,"","","","","","","","","","","","","","","","","","","","","","","","","","","","","","","",""]
[115,null,null,{"$f":"IF(B149=\"\",\"\",B149)","v":""},null,null,null,null,null,null,null,null,null,null,null,null,null,null,null,null,null,null,null,null,null,null,null,null,null,null,null,null,null,null,null,null,null,null,null,null,null,null,null,null,null,null,null,null,null,"",null,null,null,null,null,null,null,null,null,null,null,null,null,null,null,null,null,null,null,null,null,null,null,null,null,null,null,null,null,null,null,null,null,null,null,null,null,null,null,null,null,null,null,null,null,null,null,null,null,null,null,null,null,null,null,null,null,null,null,null,null,null,null,null,null,null,null,null,null,null,null,null,null,null,null,null,null,null,null,null,null,null,null,null,null,null,null,null,null,null,null,null,null,null,null,null,null,null,null,null,"",null,null,null,null,null,null,null,null,{"$f":"IF(HU149=\"\",\"\",HU149)","v":""},null,"",null,null,null,null,null,null,null,null,null,null,"",null,null,null,null,null,null,null,null,null,null,"",null,null,null,null,null,null,null,null,"","","","","",1,"",1,1,{"$f":"IF(OR(CL149=\"○\",CM149=\"○\",CN149=\"○\",CO149=1,CO149=2,CO149=3,CP149=1,CP149=2,CP149=3),1,\"\")","v":""},{"$f":"IF(OR(CQ149=\"○\",CR149=\"○\",CW149=\"○\",CX149=\"○\",DA149=\"○\",DB149=\"○\",DE149=\"○\",DF149=\"○\"),1,\"\")","v":""},{"$f":"IF(DH149=\"\",\"\",1)","v":""},{"$f":"IF(OR(DI149<>\"\",DJ149<>\"\",DK149<>\"\",DL149<>\"\",DM149<>\"\"),1,\"\")","v":""},{"$f":"IF(OR(GY149=1,GZ149=1,HA149=1,HB149=1,HC149=1,HD149=1,HE149=1,HF149=1),\"○\",\"\")","v":""},{"$f":"IF(OR(DR149=\"\",DR149=0),\"\",1)","v":""},{"$f":"IF(OR(DS149=\"\",DS149=0),\"\",1)","v":""},{"$f":"IF(OR(DT149=\"\",DT149=0),\"\",1)","v":""},{"$f":"IF(OR(DU149=\"\",DU149=0),\"\",1)","v":""},{"$f":"IF(OR(DV149=\"\",DV149=0),\"\",1)","v":""},{"$f":"IF(OR(DW149=\"\",DW149=0),\"\",1)","v":""},{"$f":"IF(OR(DX149=\"\",DX149=0),\"\",1)","v":""},{"$f":"IF(OR(DY149=\"\",DY149=0),\"\",1)","v":""},{"$f":"IF(OR(HH149=1,HI149=1,HJ149=1,HK149=1,HM149=1,HL149=1,HN149=1,HO149=1),\"○\",\"\")","v":""},{"$f":"IF(OR(ED149=\"\",ED149=0),\"\",1)","v":""},{"$f":"IF(OR(EE149=\"\",EE149=0),\"\",1)","v":""},{"$f":"IF(OR(EF149=\"\",EF149=0),\"\",1)","v":""},{"$f":"IF(OR(EG149=\"\",EG149=0),\"\",1)","v":""},{"$f":"IF(OR(EH149=\"\",EH149=0),\"\",1)","v":""},{"$f":"IF(OR(EI149=\"\",EI149=0),\"\",1)","v":""},{"$f":"IF(OR(EJ149=\"\",EJ149=0),\"\",1)","v":""},{"$f":"IF(OR(EK149=\"\",EK149=0),\"\",1)","v":""},{"$f":"IF(OR(EL149=4,EL149=3,EL149=2,EL149=1),\"○\",\"\")","v":""},{"$f":"IF(OR(EM149=1,EM149=2,EM149=3),\"○\",IF(OR(EN149=1,EN149=2,EN149=3),\"○\",IF(OR(EO149=1,EO149=2,EO149=3),\"○\",IF(OR(EP149=1,EP149=2,EP149=3),\"○\",\"\"))))","v":""},{"$f":"IF(EQ149=\"\",\"\",1)","v":""},{"$f":"IF(OR(ER149=\"\"),\"\",1)","v":""},{"$f":"IF(OR(HV149=1,HW149=1,HX149=1,HY149=1),1,\"\")","v":""},{"$f":"IF(AND(FE149=\"\",FF149=\"\",FG149=\"\",FI149=\"\",FK149=\"\",FM149=\"\"),\"\",\"×\")","v":""},{"$f":"IF(AND(OR(EV149=\"\",EV149=\"無し\"),OR(FG149=\"\",FG149=\"無し\")),\"\",1)","v":""},{"$f":"IF(AND(OR(EX149=\"\",EX149=\"無し\"),OR(FI149=\"\",FI149=\"無し\")),\"\",1)","v":""},{"$f":"IF(OR(FK149=\"\",FK149=\"無し\"),\"\",1)","v":""},{"$f":"IF(AND(OR(FB149=\"\",FB149=\"無し\"),OR(FM149=\"\",FM149=\"無し\")),\"\",1)","v":""}]
[116,null,null,"",null,null,null,null,null,null,null,null,null,null,null,null,null,null,null,null,null,null,null,null,null,null,null,null,null,null,null,null,null,null,null,null,null,null,null,null,null,null,null,null,null,null,null,null,null,"",null,null,null,null,null,null,null,null,null,null,null,null,null,null,null,null,null,null,null,null,null,null,null,null,null,null,null,null,null,null,null,null,null,null,null,null,null,null,null,null,null,null,null,null,null,null,null,null,null,null,null,null,null,null,null,null,null,null,null,null,null,null,null,null,null,null,null,null,null,null,null,null,null,null,null,null,null,null,null,null,null,null,null,null,null,null,null,null,null,null,null,null,null,null,null,null,null,null,null,null,"",null,null,null,null,null,null,null,null,"",null,"",null,null,null,null,null,null,null,null,null,null,"",null,null,null,null,null,null,null,null,null,null,"",null,null,null,null,null,null,null,null,"","","","","",1,"",1,1,"","","","","","","","","","","","","","","","","","","","","","","","","","","","","","","",""]
[117,null,null,"",null,null,null,null,null,null,null,null,null,null,null,null,null,null,null,null,null,null,null,null,null,null,null,null,null,null,null,null,null,null,null,null,null,null,null,null,null,null,null,null,null,null,null,null,null,"",null,null,null,null,null,null,null,null,null,null,null,null,null,null,null,null,null,null,null,null,null,null,null,null,null,null,null,null,null,null,null,null,null,null,null,null,null,null,null,null,null,null,null,null,null,null,null,null,null,null,null,null,null,null,null,null,null,null,null,null,null,null,null,null,null,null,null,null,null,null,null,null,null,null,null,null,null,null,null,null,null,null,null,null,null,null,null,null,null,null,null,null,null,null,null,null,null,null,null,null,"",null,null,null,null,null,null,null,null,"",null,"",null,null,null,null,null,null,null,null,null,null,"",null,null,null,null,null,null,null,null,null,null,"",null,null,null,null,null,null,null,null,"","","","","",1,"",1,1,"","","","","","","","","","","","","","","","","","","","","","","","","","","","","","","",""]
[118,null,null,"",null,null,null,null,null,null,null,null,null,null,null,null,null,null,null,null,null,null,null,null,null,null,null,null,null,null,null,null,null,null,null,null,null,null,null,null,null,null,null,null,null,null,null,null,null,"",null,null,null,null,null,null,null,null,null,null,null,null,null,null,null,null,null,null,null,null,null,null,null,null,null,null,null,null,null,null,null,null,null,null,null,null,null,null,null,null,null,null,null,null,null,null,null,null,null,null,null,null,null,null,null,null,null,null,null,null,null,null,null,null,null,null,null,null,null,null,null,null,null,null,null,null,null,null,null,null,null,null,null,null,null,null,null,null,null,null,null,null,null,null,null,null,null,null,null,null,"",null,null,null,null,null,null,null,null,"",null,"",null,null,null,null,null,null,null,null,null,null,"",null,null,null,null,null,null,null,null,null,null,"",null,null,null,null,null,null,null,null,"","","","","",1,"",1,1,"","","","","","","","","","","","","","","","","","","","","","","","","","","","","","","",""]
[119,null,null,"",null,null,null,null,null,null,null,null,null,null,null,null,null,null,null,null,null,null,null,null,null,null,null,null,null,null,null,null,null,null,null,null,null,null,null,null,null,null,null,null,null,null,null,null,null,"",null,null,null,null,null,null,null,null,null,null,null,null,null,null,null,null,null,null,null,null,null,null,null,null,null,null,null,null,null,null,null,null,null,null,null,null,null,null,null,null,null,null,null,null,null,null,null,null,null,null,null,null,null,null,null,null,null,null,null,null,null,null,null,null,null,null,null,null,null,null,null,null,null,null,null,null,null,null,null,null,null,null,null,null,null,null,null,null,null,null,null,null,null,null,null,null,null,null,null,null,"",null,null,null,null,null,null,null,null,"",null,"",null,null,null,null,null,null,null,null,null,null,"",null,null,null,null,null,null,null,null,null,null,"",null,null,null,null,null,null,null,null,"","","","","",1,"",1,1,"","","","","","","","","","","","","","","","","","","","","","","","","","","","","","","",""]
[120,null,null,"",null,null,null,null,null,null,null,null,null,null,null,null,null,null,null,null,null,null,null,null,null,null,null,null,null,null,null,null,null,null,null,null,null,null,null,null,null,null,null,null,null,null,null,null,null,"",null,null,null,null,null,null,null,null,null,null,null,null,null,null,null,null,null,null,null,null,null,null,null,null,null,null,null,null,null,null,null,null,null,null,null,null,null,null,null,null,null,null,null,null,null,null,null,null,null,null,null,null,null,null,null,null,null,null,null,null,null,null,null,null,null,null,null,null,null,null,null,null,null,null,null,null,null,null,null,null,null,null,null,null,null,null,null,null,null,null,null,null,null,null,null,null,null,null,null,null,"",null,null,null,null,null,null,null,null,"",null,"",null,null,null,null,null,null,null,null,null,null,"",null,null,null,null,null,null,null,null,null,null,"",null,null,null,null,null,null,null,null,"","","","","",1,"",1,1,"","","","","","","","","","","","","","","","","","","","","","","","","","","","","","","",""]
[121,null,null,"",null,null,null,null,null,null,null,null,null,null,null,null,null,null,null,null,null,null,null,null,null,null,null,null,null,null,null,null,null,null,null,null,null,null,null,null,null,null,null,null,null,null,null,null,null,"",null,null,null,null,null,null,null,null,null,null,null,null,null,null,null,null,null,null,null,null,null,null,null,null,null,null,null,null,null,null,null,null,null,null,null,null,null,null,null,null,null,null,null,null,null,null,null,null,null,null,null,null,null,null,null,null,null,null,null,null,null,null,null,null,null,null,null,null,null,null,null,null,null,null,null,null,null,null,null,null,null,null,null,null,null,null,null,null,null,null,null,null,null,null,null,null,null,null,null,null,"",null,null,null,null,null,null,null,null,"",null,"",null,null,null,null,null,null,null,null,null,null,"",null,null,null,null,null,null,null,null,null,null,"",null,null,null,null,null,null,null,null,"","","","","",1,"",1,1,"","","","","","","","","","","","","","","","","","","","","","","","","","","","","","","",""]
[122,null,null,"",null,null,null,null,null,null,null,null,null,null,null,null,null,null,null,null,null,null,null,null,null,null,null,null,null,null,null,null,null,null,null,null,null,null,null,null,null,null,null,null,null,null,null,null,null,"",null,null,null,null,null,null,null,null,null,null,null,null,null,null,null,null,null,null,null,null,null,null,null,null,null,null,null,null,null,null,null,null,null,null,null,null,null,null,null,null,null,null,null,null,null,null,null,null,null,null,null,null,null,null,null,null,null,null,null,null,null,null,null,null,null,null,null,null,null,null,null,null,null,null,null,null,null,null,null,null,null,null,null,null,null,null,null,null,null,null,null,null,null,null,null,null,null,null,null,null,"",null,null,null,null,null,null,null,null,"",null,"",null,null,null,null,null,null,null,null,null,null,"",null,null,null,null,null,null,null,null,null,null,"",null,null,null,null,null,null,null,null,"","","","","",1,"",1,1,"","","","","","","","","","","","","","","","","","","","","","","","","","","","","","","",""]
[123,null,null,"",null,null,null,null,null,null,null,null,null,null,null,null,null,null,null,null,null,null,null,null,null,null,null,null,null,null,null,null,null,null,null,null,null,null,null,null,null,null,null,null,null,null,null,null,null,"",null,null,null,null,null,null,null,null,null,null,null,null,null,null,null,null,null,null,null,null,null,null,null,null,null,null,null,null,null,null,null,null,null,null,null,null,null,null,null,null,null,null,null,null,null,null,null,null,null,null,null,null,null,null,null,null,null,null,null,null,null,null,null,null,null,null,null,null,null,null,null,null,null,null,null,null,null,null,null,null,null,null,null,null,null,null,null,null,null,null,null,null,null,null,null,null,null,null,null,null,"",null,null,null,null,null,null,null,null,"",null,"",null,null,null,null,null,null,null,null,null,null,"",null,null,null,null,null,null,null,null,null,null,"",null,null,null,null,null,null,null,null,"","","","","",1,"",1,1,"","","","","","","","","","","","","","","","","","","","","","","","","","","","","","","",""]
[124,null,null,"",null,null,null,null,null,null,null,null,null,null,null,null,null,null,null,null,null,null,null,null,null,null,null,null,null,null,null,null,null,null,null,null,null,null,null,null,null,null,null,null,null,null,null,null,null,"",null,null,null,null,null,null,null,null,null,null,null,null,null,null,null,null,null,null,null,null,null,null,null,null,null,null,null,null,null,null,null,null,null,null,null,null,null,null,null,null,null,null,null,null,null,null,null,null,null,null,null,null,null,null,null,null,null,null,null,null,null,null,null,null,null,null,null,null,null,null,null,null,null,null,null,null,null,null,null,null,null,null,null,null,null,null,null,null,null,null,null,null,null,null,null,null,null,null,null,null,"",null,null,null,null,null,null,null,null,"",null,"",null,null,null,null,null,null,null,null,null,null,"",null,null,null,null,null,null,null,null,null,null,"",null,null,null,null,null,null,null,null,"","","","","",1,"",1,1,"","","","","","","","","","","","","","","","","","","","","","","","","","","","","","","",""]
[125,null,null,"",null,null,null,null,null,null,null,null,null,null,null,null,null,null,null,null,null,null,null,null,null,null,null,null,null,null,null,null,null,null,null,null,null,null,null,null,null,null,null,null,null,null,null,null,null,"",null,null,null,null,null,null,null,null,null,null,null,null,null,null,null,null,null,null,null,null,null,null,null,null,null,null,null,null,null,null,null,null,null,null,null,null,null,null,null,null,null,null,null,null,null,null,null,null,null,null,null,null,null,null,null,null,null,null,null,null,null,null,null,null,null,null,null,null,null,null,null,null,null,null,null,null,null,null,null,null,null,null,null,null,null,null,null,null,null,null,null,null,null,null,null,null,null,null,null,null,"",null,null,null,null,null,null,null,null,"",null,"",null,null,null,null,null,null,null,null,null,null,"",null,null,null,null,null,null,null,null,null,null,"",null,null,null,null,null,null,null,null,"","","","","",1,"",1,1,"","","","","","","","","","","","","","","","","","","","","","","","","","","","","","","",""]
[126,null,null,"",null,null,null,null,null,null,null,null,null,null,null,null,null,null,null,null,null,null,null,null,null,null,null,null,null,null,null,null,null,null,null,null,null,null,null,null,null,null,null,null,null,null,null,null,null,"",null,null,null,null,null,null,null,null,null,null,null,null,null,null,null,null,null,null,null,null,null,null,null,null,null,null,null,null,null,null,null,null,null,null,null,null,null,null,null,null,null,null,null,null,null,null,null,null,null,null,null,null,null,null,null,null,null,null,null,null,null,null,null,null,null,null,null,null,null,null,null,null,null,null,null,null,null,null,null,null,null,null,null,null,null,null,null,null,null,null,null,null,null,null,null,null,null,null,null,null,"",null,null,null,null,null,null,null,null,"",null,"",null,null,null,null,null,null,null,null,null,null,"",null,null,null,null,null,null,null,null,null,null,"",null,null,null,null,null,null,null,null,"","","","","",1,"",1,1,"","","","","","","","","","","","","","","","","","","","","","","","","","","","","","","",""]
[127,null,null,"",null,null,null,null,null,null,null,null,null,null,null,null,null,null,null,null,null,null,null,null,null,null,null,null,null,null,null,null,null,null,null,null,null,null,null,null,null,null,null,null,null,null,null,null,null,"",null,null,null,null,null,null,null,null,null,null,null,null,null,null,null,null,null,null,null,null,null,null,null,null,null,null,null,null,null,null,null,null,null,null,null,null,null,null,null,null,null,null,null,null,null,null,null,null,null,null,null,null,null,null,null,null,null,null,null,null,null,null,null,null,null,null,null,null,null,null,null,null,null,null,null,null,null,null,null,null,null,null,null,null,null,null,null,null,null,null,null,null,null,null,null,null,null,null,null,null,"",null,null,null,null,null,null,null,null,"",null,"",null,null,null,null,null,null,null,null,null,null,"",null,null,null,null,null,null,null,null,null,null,"",null,null,null,null,null,null,null,null,"","","","","",1,"",1,1,"","","","","","","","","","","","","","","","","","","","","","","","","","","","","","","",""]
[{"$f":" ROW(A162) - ROW(_row) + 1","v":128},null,null,"",null,null,null,null,null,null,null,null,null,null,null,null,null,null,null,null,null,null,null,null,null,null,null,null,null,null,null,null,null,null,null,null,null,null,null,null,null,null,null,null,null,null,null,null,null,{"$f":"IF(GQ162=1,IF(F162=\"\",\"\",F162),\"\")","v":""},null,null,null,null,null,null,null,null,null,null,null,null,null,null,null,null,null,null,null,null,null,null,null,null,null,null,null,null,null,null,null,null,null,null,null,null,null,null,null,null,null,null,null,null,null,null,null,null,null,null,null,null,null,null,null,null,null,null,null,null,null,null,null,null,null,null,null,null,null,null,null,null,null,null,null,null,null,null,null,null,null,null,null,null,null,null,null,null,null,null,null,null,null,null,null,null,null,null,null,null,{"$f":"IF(F162=\"\",\"\",F162)","v":""},null,null,null,null,null,null,null,null,"",null,{"$f":"IF(OR(IF(OR(FG162=\"\",FG162=\"無し\"),\"\",1)=1,IF(OR(FI162=\"\",FI162=\"無し\"),\"\",1)=1,IF(OR(FK162=\"\",FK162=\"無し\"),\"\",1)=1,IF(OR(FM162=\"\",FM162=\"無し\"),\"\",1)=1),IF(F162=\"\",\"\",F162),\"\")","v":""},null,null,null,null,null,null,null,null,null,null,{"$f":"IF(OR(IF(OR(FR162=\"\",FR162=\"無し\"),\"\",1)=1,IF(OR(FT162=\"\",FT162=\"無し\"),\"\",1)=1,IF(OR(FV162=\"\",FV162=\"無し\"),\"\",1)=1,IF(OR(FX162=\"\",FX162=\"無し\"),\"\",1)=1),IF(F162=\"\",\"\",F162),\"\")","v":""},null,null,null,null,null,null,null,null,null,null,{"$f":"IF(OR(IF(OR(GC162=\"\",GC162=\"無し\"),\"\",1)=1,IF(OR(GE162=\"\",GE162=\"無し\"),\"\",1)=1,IF(OR(GG162=\"\",GG162=\"無し\"),\"\",1)=1,IF(OR(GI162=\"\",GI162=\"無し\"),\"\",1)=1),IF(F162=\"\",\"\",F162),\"\")","v":""},null,null,null,null,null,null,null,null,{"$f":"IF(Y162<>\"\",1,\"\")","v":""},{"$f":"IF(Z162<>\"\",1,\"\")","v":""},{"$f":"IF(OR(AA162=\"○\",AB162<>\"\",AG162<>\"\",AJ162<>\"\"),1,\"\")","v":""},{"$f":"IF(OR(AK162=\"○\",AL162=\"○\",AM162=\"○\",AN162=\"○\",AQ162=\"○\"),1,\"\")","v":""},{"$f":"IF(AT162<>\"\",1,\"\")","v":""},1,{"$f":"IF(OR(AV162=\"○\",AY162<>\"\",BA162=\"はり\",BA162=\"傾斜屋根\",BA162=\"その他\",BD162<>\"\"),1,\"\")","v":""},1,1,"","","","","","","","","","","","","","","","","","","","","","","","","","","","","","","",""]
[129,null,null,"",null,null,null,null,null,null,null,null,null,null,null,null,null,null,null,null,null,null,null,null,null,null,null,null,null,null,null,null,null,null,null,null,null,null,null,null,null,null,null,null,null,null,null,null,null,"",null,null,null,null,null,null,null,null,null,null,null,null,null,null,null,null,null,null,null,null,null,null,null,null,null,null,null,null,null,null,null,null,null,null,null,null,null,null,null,null,null,null,null,null,null,null,null,null,null,null,null,null,null,null,null,null,null,null,null,null,null,null,null,null,null,null,null,null,null,null,null,null,null,null,null,null,null,null,null,null,null,null,null,null,null,null,null,null,null,null,null,null,null,null,null,null,null,null,null,null,"",null,null,null,null,null,null,null,null,"",null,"",null,null,null,null,null,null,null,null,null,null,"",null,null,null,null,null,null,null,null,null,null,"",null,null,null,null,null,null,null,null,"","","","","",1,"",1,1,"","","","","","","","","","","","","","","","","","","","","","","","","","","","","","","",""]
[130,null,null,"",null,null,null,null,null,null,null,null,null,null,null,null,null,null,null,null,null,null,null,null,null,null,null,null,null,null,null,null,null,null,null,null,null,null,null,null,null,null,null,null,null,null,null,null,null,"",null,null,null,null,null,null,null,null,null,null,null,null,null,null,null,null,null,null,null,null,null,null,null,null,null,null,null,null,null,null,null,null,null,null,null,null,null,null,null,null,null,null,null,null,null,null,null,null,null,null,null,null,null,null,null,null,null,null,null,null,null,null,null,null,null,null,null,null,null,null,null,null,null,null,null,null,null,null,null,null,null,null,null,null,null,null,null,null,null,null,null,null,null,null,null,null,null,null,null,null,"",null,null,null,null,null,null,null,null,"",null,"",null,null,null,null,null,null,null,null,null,null,"",null,null,null,null,null,null,null,null,null,null,"",null,null,null,null,null,null,null,null,"","","","","",1,"",1,1,"","","","","","","","","","","","","","","","","","","","","","","","","","","","","","","",""]
[131,null,null,"",null,null,null,null,null,null,null,null,null,null,null,null,null,null,null,null,null,null,null,null,null,null,null,null,null,null,null,null,null,null,null,null,null,null,null,null,null,null,null,null,null,null,null,null,null,"",null,null,null,null,null,null,null,null,null,null,null,null,null,null,null,null,null,null,null,null,null,null,null,null,null,null,null,null,null,null,null,null,null,null,null,null,null,null,null,null,null,null,null,null,null,null,null,null,null,null,null,null,null,null,null,null,null,null,null,null,null,null,null,null,null,null,null,null,null,null,null,null,null,null,null,null,null,null,null,null,null,null,null,null,null,null,null,null,null,null,null,null,null,null,null,null,null,null,null,null,"",null,null,null,null,null,null,null,null,"",null,"",null,null,null,null,null,null,null,null,null,null,"",null,null,null,null,null,null,null,null,null,null,"",null,null,null,null,null,null,null,null,"","","","","",1,"",1,1,"","","","","","","","","","","","","","","","","","","","","","","","","","","","","","","",""]
[132,null,null,"",null,null,null,null,null,null,null,null,null,null,null,null,null,null,null,null,null,null,null,null,null,null,null,null,null,null,null,null,null,null,null,null,null,null,null,null,null,null,null,null,null,null,null,null,null,"",null,null,null,null,null,null,null,null,null,null,null,null,null,null,null,null,null,null,null,null,null,null,null,null,null,null,null,null,null,null,null,null,null,null,null,null,null,null,null,null,null,null,null,null,null,null,null,null,null,null,null,null,null,null,null,null,null,null,null,null,null,null,null,null,null,null,null,null,null,null,null,null,null,null,null,null,null,null,null,null,null,null,null,null,null,null,null,null,null,null,null,null,null,null,null,null,null,null,null,null,"",null,null,null,null,null,null,null,null,"",null,"",null,null,null,null,null,null,null,null,null,null,"",null,null,null,null,null,null,null,null,null,null,"",null,null,null,null,null,null,null,null,"","","","","",1,"",1,1,"","","","","","","","","","","","","","","","","","","","","","","","","","","","","","","",""]
[133,null,null,"",null,null,null,null,null,null,null,null,null,null,null,null,null,null,null,null,null,null,null,null,null,null,null,null,null,null,null,null,null,null,null,null,null,null,null,null,null,null,null,null,null,null,null,null,null,"",null,null,null,null,null,null,null,null,null,null,null,null,null,null,null,null,null,null,null,null,null,null,null,null,null,null,null,null,null,null,null,null,null,null,null,null,null,null,null,null,null,null,null,null,null,null,null,null,null,null,null,null,null,null,null,null,null,null,null,null,null,null,null,null,null,null,null,null,null,null,null,null,null,null,null,null,null,null,null,null,null,null,null,null,null,null,null,null,null,null,null,null,null,null,null,null,null,null,null,null,"",null,null,null,null,null,null,null,null,"",null,"",null,null,null,null,null,null,null,null,null,null,"",null,null,null,null,null,null,null,null,null,null,"",null,null,null,null,null,null,null,null,"","","","","",1,"",1,1,"","","","","","","","","","","","","","","","","","","","","","","","","","","","","","","",""]
[134,null,null,"",null,null,null,null,null,null,null,null,null,null,null,null,null,null,null,null,null,null,null,null,null,null,null,null,null,null,null,null,null,null,null,null,null,null,null,null,null,null,null,null,null,null,null,null,null,"",null,null,null,null,null,null,null,null,null,null,null,null,null,null,null,null,null,null,null,null,null,null,null,null,null,null,null,null,null,null,null,null,null,null,null,null,null,null,null,null,null,null,null,null,null,null,null,null,null,null,null,null,null,null,null,null,null,null,null,null,null,null,null,null,null,null,null,null,null,null,null,null,null,null,null,null,null,null,null,null,null,null,null,null,null,null,null,null,null,null,null,null,null,null,null,null,null,null,null,null,"",null,null,null,null,null,null,null,null,"",null,"",null,null,null,null,null,null,null,null,null,null,"",null,null,null,null,null,null,null,null,null,null,"",null,null,null,null,null,null,null,null,"","","","","",1,"",1,1,"","","","","","","","","","","","","","","","","","","","","","","","","","","","","","","",""]
[135,null,null,"",null,null,null,null,null,null,null,null,null,null,null,null,null,null,null,null,null,null,null,null,null,null,null,null,null,null,null,null,null,null,null,null,null,null,null,null,null,null,null,null,null,null,null,null,null,"",null,null,null,null,null,null,null,null,null,null,null,null,null,null,null,null,null,null,null,null,null,null,null,null,null,null,null,null,null,null,null,null,null,null,null,null,null,null,null,null,null,null,null,null,null,null,null,null,null,null,null,null,null,null,null,null,null,null,null,null,null,null,null,null,null,null,null,null,null,null,null,null,null,null,null,null,null,null,null,null,null,null,null,null,null,null,null,null,null,null,null,null,null,null,null,null,null,null,null,null,"",null,null,null,null,null,null,null,null,"",null,"",null,null,null,null,null,null,null,null,null,null,"",null,null,null,null,null,null,null,null,null,null,"",null,null,null,null,null,null,null,null,"","","","","",1,"",1,1,"","","","","","","","","","","","","","","","","","","","","","","","","","","","","","","",""]
[136,null,null,"",null,null,null,null,null,null,null,null,null,null,null,null,null,null,null,null,null,null,null,null,null,null,null,null,null,null,null,null,null,null,null,null,null,null,null,null,null,null,null,null,null,null,null,null,null,"",null,null,null,null,null,null,null,null,null,null,null,null,null,null,null,null,null,null,null,null,null,null,null,null,null,null,null,null,null,null,null,null,null,null,null,null,null,null,null,null,null,null,null,null,null,null,null,null,null,null,null,null,null,null,null,null,null,null,null,null,null,null,null,null,null,null,null,null,null,null,null,null,null,null,null,null,null,null,null,null,null,null,null,null,null,null,null,null,null,null,null,null,null,null,null,null,null,null,null,null,"",null,null,null,null,null,null,null,null,"",null,"",null,null,null,null,null,null,null,null,null,null,"",null,null,null,null,null,null,null,null,null,null,"",null,null,null,null,null,null,null,null,"","","","","",1,"",1,1,"","","","","","","","","","","","","","","","","","","","","","","","","","","","","","","",""]
[137,null,null,"",null,null,null,null,null,null,null,null,null,null,null,null,null,null,null,null,null,null,null,null,null,null,null,null,null,null,null,null,null,null,null,null,null,null,null,null,null,null,null,null,null,null,null,null,null,"",null,null,null,null,null,null,null,null,null,null,null,null,null,null,null,null,null,null,null,null,null,null,null,null,null,null,null,null,null,null,null,null,null,null,null,null,null,null,null,null,null,null,null,null,null,null,null,null,null,null,null,null,null,null,null,null,null,null,null,null,null,null,null,null,null,null,null,null,null,null,null,null,null,null,null,null,null,null,null,null,null,null,null,null,null,null,null,null,null,null,null,null,null,null,null,null,null,null,null,null,"",null,null,null,null,null,null,null,null,"",null,"",null,null,null,null,null,null,null,null,null,null,"",null,null,null,null,null,null,null,null,null,null,"",null,null,null,null,null,null,null,null,"","","","","",1,"",1,1,"","","","","","","","","","","","","","","","","","","","","","","","","","","","","","","",""]
[138,null,null,"",null,null,null,null,null,null,null,null,null,null,null,null,null,null,null,null,null,null,null,null,null,null,null,null,null,null,null,null,null,null,null,null,null,null,null,null,null,null,null,null,null,null,null,null,null,"",null,null,null,null,null,null,null,null,null,null,null,null,null,null,null,null,null,null,null,null,null,null,null,null,null,null,null,null,null,null,null,null,null,null,null,null,null,null,null,null,null,null,null,null,null,null,null,null,null,null,null,null,null,null,null,null,null,null,null,null,null,null,null,null,null,null,null,null,null,null,null,null,null,null,null,null,null,null,null,null,null,null,null,null,null,null,null,null,null,null,null,null,null,null,null,null,null,null,null,null,"",null,null,null,null,null,null,null,null,"",null,"",null,null,null,null,null,null,null,null,null,null,"",null,null,null,null,null,null,null,null,null,null,"",null,null,null,null,null,null,null,null,"","","","","",1,"",1,1,"","","","","","","","","","","","","","","","","","","","","","","","","","","","","","","",""]
[139,null,null,"",null,null,null,null,null,null,null,null,null,null,null,null,null,null,null,null,null,null,null,null,null,null,null,null,null,null,null,null,null,null,null,null,null,null,null,null,null,null,null,null,null,null,null,null,null,"",null,null,null,null,null,null,null,null,null,null,null,null,null,null,null,null,null,null,null,null,null,null,null,null,null,null,null,null,null,null,null,null,null,null,null,null,null,null,null,null,null,null,null,null,null,null,null,null,null,null,null,null,null,null,null,null,null,null,null,null,null,null,null,null,null,null,null,null,null,null,null,null,null,null,null,null,null,null,null,null,null,null,null,null,null,null,null,null,null,null,null,null,null,null,null,null,null,null,null,null,"",null,null,null,null,null,null,null,null,"",null,"",null,null,null,null,null,null,null,null,null,null,"",null,null,null,null,null,null,null,null,null,null,"",null,null,null,null,null,null,null,null,"","","","","",1,"",1,1,"","","","","","","","","","","","","","","","","","","","","","","","","","","","","","","",""]
[140,null,null,"",null,null,null,null,null,null,null,null,null,null,null,null,null,null,null,null,null,null,null,null,null,null,null,null,null,null,null,null,null,null,null,null,null,null,null,null,null,null,null,null,null,null,null,null,null,"",null,null,null,null,null,null,null,null,null,null,null,null,null,null,null,null,null,null,null,null,null,null,null,null,null,null,null,null,null,null,null,null,null,null,null,null,null,null,null,null,null,null,null,null,null,null,null,null,null,null,null,null,null,null,null,null,null,null,null,null,null,null,null,null,null,null,null,null,null,null,null,null,null,null,null,null,null,null,null,null,null,null,null,null,null,null,null,null,null,null,null,null,null,null,null,null,null,null,null,null,"",null,null,null,null,null,null,null,null,"",null,"",null,null,null,null,null,null,null,null,null,null,"",null,null,null,null,null,null,null,null,null,null,"",null,null,null,null,null,null,null,null,"","","","","",1,"",1,1,"","","","","","","","","","","","","","","","","","","","","","","","","","","","","","","",""]
[141,null,null,"",null,null,null,null,null,null,null,null,null,null,null,null,null,null,null,null,null,null,null,null,null,null,null,null,null,null,null,null,null,null,null,null,null,null,null,null,null,null,null,null,null,null,null,null,null,"",null,null,null,null,null,null,null,null,null,null,null,null,null,null,null,null,null,null,null,null,null,null,null,null,null,null,null,null,null,null,null,null,null,null,null,null,null,null,null,null,null,null,null,null,null,null,null,null,null,null,null,null,null,null,null,null,null,null,null,null,null,null,null,null,null,null,null,null,null,null,null,null,null,null,null,null,null,null,null,null,null,null,null,null,null,null,null,null,null,null,null,null,null,null,null,null,null,null,null,null,"",null,null,null,null,null,null,null,null,"",null,"",null,null,null,null,null,null,null,null,null,null,"",null,null,null,null,null,null,null,null,null,null,"",null,null,null,null,null,null,null,null,"","","","","",1,"",1,1,"","","","","","","","","","","","","","","","","","","","","","","","","","","","","","","",""]
[142,null,null,"",null,null,null,null,null,null,null,null,null,null,null,null,null,null,null,null,null,null,null,null,null,null,null,null,null,null,null,null,null,null,null,null,null,null,null,null,null,null,null,null,null,null,null,null,null,"",null,null,null,null,null,null,null,null,null,null,null,null,null,null,null,null,null,null,null,null,null,null,null,null,null,null,null,null,null,null,null,null,null,null,null,null,null,null,null,null,null,null,null,null,null,null,null,null,null,null,null,null,null,null,null,null,null,null,null,null,null,null,null,null,null,null,null,null,null,null,null,null,null,null,null,null,null,null,null,null,null,null,null,null,null,null,null,null,null,null,null,null,null,null,null,null,null,null,null,null,"",null,null,null,null,null,null,null,null,"",null,"",null,null,null,null,null,null,null,null,null,null,"",null,null,null,null,null,null,null,null,null,null,"",null,null,null,null,null,null,null,null,"","","","","",1,"",1,1,"","","","","","","","","","","","","","","","","","","","","","","","","","","","","","","",""]
[143,null,null,"",null,null,null,null,null,null,null,null,null,null,null,null,null,null,null,null,null,null,null,null,null,null,null,null,null,null,null,null,null,null,null,null,null,null,null,null,null,null,null,null,null,null,null,null,null,"",null,null,null,null,null,null,null,null,null,null,null,null,null,null,null,null,null,null,null,null,null,null,null,null,null,null,null,null,null,null,null,null,null,null,null,null,null,null,null,null,null,null,null,null,null,null,null,null,null,null,null,null,null,null,null,null,null,null,null,null,null,null,null,null,null,null,null,null,null,null,null,null,null,null,null,null,null,null,null,null,null,null,null,null,null,null,null,null,null,null,null,null,null,null,null,null,null,null,null,null,"",null,null,null,null,null,null,null,null,"",null,"",null,null,null,null,null,null,null,null,null,null,"",null,null,null,null,null,null,null,null,null,null,"",null,null,null,null,null,null,null,null,"","","","","",1,"",1,1,"","","","","","","","","","","","","","","","","","","","","","","","","","","","","","","",""]
[144,null,null,"",null,null,null,null,null,null,null,null,null,null,null,null,null,null,null,null,null,null,null,null,null,null,null,null,null,null,null,null,null,null,null,null,null,null,null,null,null,null,null,null,null,null,null,null,null,"",null,null,null,null,null,null,null,null,null,null,null,null,null,null,null,null,null,null,null,null,null,null,null,null,null,null,null,null,null,null,null,null,null,null,null,null,null,null,null,null,null,null,null,null,null,null,null,null,null,null,null,null,null,null,null,null,null,null,null,null,null,null,null,null,null,null,null,null,null,null,null,null,null,null,null,null,null,null,null,null,null,null,null,null,null,null,null,null,null,null,null,null,null,null,null,null,null,null,null,null,"",null,null,null,null,null,null,null,null,"",null,"",null,null,null,null,null,null,null,null,null,null,"",null,null,null,null,null,null,null,null,null,null,"",null,null,null,null,null,null,null,null,"","","","","",1,"",1,1,"","","","","","","","","","","","","","","","","","","","","","","","","","","","","","","",""]
[145,null,null,"",null,null,null,null,null,null,null,null,null,null,null,null,null,null,null,null,null,null,null,null,null,null,null,null,null,null,null,null,null,null,null,null,null,null,null,null,null,null,null,null,null,null,null,null,null,"",null,null,null,null,null,null,null,null,null,null,null,null,null,null,null,null,null,null,null,null,null,null,null,null,null,null,null,null,null,null,null,null,null,null,null,null,null,null,null,null,null,null,null,null,null,null,null,null,null,null,null,null,null,null,null,null,null,null,null,null,null,null,null,null,null,null,null,null,null,null,null,null,null,null,null,null,null,null,null,null,null,null,null,null,null,null,null,null,null,null,null,null,null,null,null,null,null,null,null,null,"",null,null,null,null,null,null,null,null,"",null,"",null,null,null,null,null,null,null,null,null,null,"",null,null,null,null,null,null,null,null,null,null,"",null,null,null,null,null,null,null,null,"","","","","",1,"",1,1,"","","","","","","","","","","","","","","","","","","","","","","","","","","","","","","",""]
[146,null,null,"",null,null,null,null,null,null,null,null,null,null,null,null,null,null,null,null,null,null,null,null,null,null,null,null,null,null,null,null,null,null,null,null,null,null,null,null,null,null,null,null,null,null,null,null,null,"",null,null,null,null,null,null,null,null,null,null,null,null,null,null,null,null,null,null,null,null,null,null,null,null,null,null,null,null,null,null,null,null,null,null,null,null,null,null,null,null,null,null,null,null,null,null,null,null,null,null,null,null,null,null,null,null,null,null,null,null,null,null,null,null,null,null,null,null,null,null,null,null,null,null,null,null,null,null,null,null,null,null,null,null,null,null,null,null,null,null,null,null,null,null,null,null,null,null,null,null,"",null,null,null,null,null,null,null,null,"",null,"",null,null,null,null,null,null,null,null,null,null,"",null,null,null,null,null,null,null,null,null,null,"",null,null,null,null,null,null,null,null,"","","","","",1,"",1,1,"","","","","","","","","","","","","","","","","","","","","","","","","","","","","","","",""]
[147,null,null,"",null,null,null,null,null,null,null,null,null,null,null,null,null,null,null,null,null,null,null,null,null,null,null,null,null,null,null,null,null,null,null,null,null,null,null,null,null,null,null,null,null,null,null,null,null,"",null,null,null,null,null,null,null,null,null,null,null,null,null,null,null,null,null,null,null,null,null,null,null,null,null,null,null,null,null,null,null,null,null,null,null,null,null,null,null,null,null,null,null,null,null,null,null,null,null,null,null,null,null,null,null,null,null,null,null,null,null,null,null,null,null,null,null,null,null,null,null,null,null,null,null,null,null,null,null,null,null,null,null,null,null,null,null,null,null,null,null,null,null,null,null,null,null,null,null,null,"",null,null,null,null,null,null,null,null,"",null,"",null,null,null,null,null,null,null,null,null,null,"",null,null,null,null,null,null,null,null,null,null,"",null,null,null,null,null,null,null,null,"","","","","",1,"",1,1,"","","","","","","","","","","","","","","","","","","","","","","","","","","","","","","",""]
[148,null,null,"",null,null,null,null,null,null,null,null,null,null,null,null,null,null,null,null,null,null,null,null,null,null,null,null,null,null,null,null,null,null,null,null,null,null,null,null,null,null,null,null,null,null,null,null,null,"",null,null,null,null,null,null,null,null,null,null,null,null,null,null,null,null,null,null,null,null,null,null,null,null,null,null,null,null,null,null,null,null,null,null,null,null,null,null,null,null,null,null,null,null,null,null,null,null,null,null,null,null,null,null,null,null,null,null,null,null,null,null,null,null,null,null,null,null,null,null,null,null,null,null,null,null,null,null,null,null,null,null,null,null,null,null,null,null,null,null,null,null,null,null,null,null,null,null,null,null,"",null,null,null,null,null,null,null,null,"",null,"",null,null,null,null,null,null,null,null,null,null,"",null,null,null,null,null,null,null,null,null,null,"",null,null,null,null,null,null,null,null,"","","","","",1,"",1,1,"","","","","","","","","","","","","","","","","","","","","","","","","","","","","","","",""]
[149,null,null,"",null,null,null,null,null,null,null,null,null,null,null,null,null,null,null,null,null,null,null,null,null,null,null,null,null,null,null,null,null,null,null,null,null,null,null,null,null,null,null,null,null,null,null,null,null,"",null,null,null,null,null,null,null,null,null,null,null,null,null,null,null,null,null,null,null,null,null,null,null,null,null,null,null,null,null,null,null,null,null,null,null,null,null,null,null,null,null,null,null,null,null,null,null,null,null,null,null,null,null,null,null,null,null,null,null,null,null,null,null,null,null,null,null,null,null,null,null,null,null,null,null,null,null,null,null,null,null,null,null,null,null,null,null,null,null,null,null,null,null,null,null,null,null,null,null,null,"",null,null,null,null,null,null,null,null,"",null,"",null,null,null,null,null,null,null,null,null,null,"",null,null,null,null,null,null,null,null,null,null,"",null,null,null,null,null,null,null,null,"","","","","",1,"",1,1,"","","","","","","","","","","","","","","","","","","","","","","","","","","","","","","",""]
[150,null,null,"",null,null,null,null,null,null,null,null,null,null,null,null,null,null,null,null,null,null,null,null,null,null,null,null,null,null,null,null,null,null,null,null,null,null,null,null,null,null,null,null,null,null,null,null,null,"",null,null,null,null,null,null,null,null,null,null,null,null,null,null,null,null,null,null,null,null,null,null,null,null,null,null,null,null,null,null,null,null,null,null,null,null,null,null,null,null,null,null,null,null,null,null,null,null,null,null,null,null,null,null,null,null,null,null,null,null,null,null,null,null,null,null,null,null,null,null,null,null,null,null,null,null,null,null,null,null,null,null,null,null,null,null,null,null,null,null,null,null,null,null,null,null,null,null,null,null,"",null,null,null,null,null,null,null,null,"",null,"",null,null,null,null,null,null,null,null,null,null,"",null,null,null,null,null,null,null,null,null,null,"",null,null,null,null,null,null,null,null,"","","","","",1,"",1,1,"","","","","","","","","","","","","","","","","","","","","","","","","","","","","","","",""]
[151,null,null,"",null,null,null,null,null,null,null,null,null,null,null,null,null,null,null,null,null,null,null,null,null,null,null,null,null,null,null,null,null,null,null,null,null,null,null,null,null,null,null,null,null,null,null,null,null,"",null,null,null,null,null,null,null,null,null,null,null,null,null,null,null,null,null,null,null,null,null,null,null,null,null,null,null,null,null,null,null,null,null,null,null,null,null,null,null,null,null,null,null,null,null,null,null,null,null,null,null,null,null,null,null,null,null,null,null,null,null,null,null,null,null,null,null,null,null,null,null,null,null,null,null,null,null,null,null,null,null,null,null,null,null,null,null,null,null,null,null,null,null,null,null,null,null,null,null,null,"",null,null,null,null,null,null,null,null,"",null,"",null,null,null,null,null,null,null,null,null,null,"",null,null,null,null,null,null,null,null,null,null,"",null,null,null,null,null,null,null,null,"","","","","",1,"",1,1,"","","","","","","","","","","","","","","","","","","","","","","","","","","","","","","",""]
[152,null,null,"",null,null,null,null,null,null,null,null,null,null,null,null,null,null,null,null,null,null,null,null,null,null,null,null,null,null,null,null,null,null,null,null,null,null,null,null,null,null,null,null,null,null,null,null,null,"",null,null,null,null,null,null,null,null,null,null,null,null,null,null,null,null,null,null,null,null,null,null,null,null,null,null,null,null,null,null,null,null,null,null,null,null,null,null,null,null,null,null,null,null,null,null,null,null,null,null,null,null,null,null,null,null,null,null,null,null,null,null,null,null,null,null,null,null,null,null,null,null,null,null,null,null,null,null,null,null,null,null,null,null,null,null,null,null,null,null,null,null,null,null,null,null,null,null,null,null,"",null,null,null,null,null,null,null,null,"",null,"",null,null,null,null,null,null,null,null,null,null,"",null,null,null,null,null,null,null,null,null,null,"",null,null,null,null,null,null,null,null,"","","","","",1,"",1,1,"","","","","","","","","","","","","","","","","","","","","","","","","","","","","","","",""]
[153,null,null,"",null,null,null,null,null,null,null,null,null,null,null,null,null,null,null,null,null,null,null,null,null,null,null,null,null,null,null,null,null,null,null,null,null,null,null,null,null,null,null,null,null,null,null,null,null,"",null,null,null,null,null,null,null,null,null,null,null,null,null,null,null,null,null,null,null,null,null,null,null,null,null,null,null,null,null,null,null,null,null,null,null,null,null,null,null,null,null,null,null,null,null,null,null,null,null,null,null,null,null,null,null,null,null,null,null,null,null,null,null,null,null,null,null,null,null,null,null,null,null,null,null,null,null,null,null,null,null,null,null,null,null,null,null,null,null,null,null,null,null,null,null,null,null,null,null,null,"",null,null,null,null,null,null,null,null,"",null,"",null,null,null,null,null,null,null,null,null,null,"",null,null,null,null,null,null,null,null,null,null,"",null,null,null,null,null,null,null,null,"","","","","",1,"",1,1,"","","","","","","","","","","","","","","","","","","","","","","","","","","","","","","",""]
[154,null,null,"",null,null,null,null,null,null,null,null,null,null,null,null,null,null,null,null,null,null,null,null,null,null,null,null,null,null,null,null,null,null,null,null,null,null,null,null,null,null,null,null,null,null,null,null,null,"",null,null,null,null,null,null,null,null,null,null,null,null,null,null,null,null,null,null,null,null,null,null,null,null,null,null,null,null,null,null,null,null,null,null,null,null,null,null,null,null,null,null,null,null,null,null,null,null,null,null,null,null,null,null,null,null,null,null,null,null,null,null,null,null,null,null,null,null,null,null,null,null,null,null,null,null,null,null,null,null,null,null,null,null,null,null,null,null,null,null,null,null,null,null,null,null,null,null,null,null,"",null,null,null,null,null,null,null,null,"",null,"",null,null,null,null,null,null,null,null,null,null,"",null,null,null,null,null,null,null,null,null,null,"",null,null,null,null,null,null,null,null,"","","","","",1,"",1,1,"","","","","","","","","","","","","","","","","","","","","","","","","","","","","","","",""]
[155,null,null,"",null,null,null,null,null,null,null,null,null,null,null,null,null,null,null,null,null,null,null,null,null,null,null,null,null,null,null,null,null,null,null,null,null,null,null,null,null,null,null,null,null,null,null,null,null,"",null,null,null,null,null,null,null,null,null,null,null,null,null,null,null,null,null,null,null,null,null,null,null,null,null,null,null,null,null,null,null,null,null,null,null,null,null,null,null,null,null,null,null,null,null,null,null,null,null,null,null,null,null,null,null,null,null,null,null,null,null,null,null,null,null,null,null,null,null,null,null,null,null,null,null,null,null,null,null,null,null,null,null,null,null,null,null,null,null,null,null,null,null,null,null,null,null,null,null,null,"",null,null,null,null,null,null,null,null,"",null,"",null,null,null,null,null,null,null,null,null,null,"",null,null,null,null,null,null,null,null,null,null,"",null,null,null,null,null,null,null,null,"","","","","",1,"",1,1,"","","","","","","","","","","","","","","","","","","","","","","","","","","","","","","",""]
[156,null,null,"",null,null,null,null,null,null,null,null,null,null,null,null,null,null,null,null,null,null,null,null,null,null,null,null,null,null,null,null,null,null,null,null,null,null,null,null,null,null,null,null,null,null,null,null,null,"",null,null,null,null,null,null,null,null,null,null,null,null,null,null,null,null,null,null,null,null,null,null,null,null,null,null,null,null,null,null,null,null,null,null,null,null,null,null,null,null,null,null,null,null,null,null,null,null,null,null,null,null,null,null,null,null,null,null,null,null,null,null,null,null,null,null,null,null,null,null,null,null,null,null,null,null,null,null,null,null,null,null,null,null,null,null,null,null,null,null,null,null,null,null,null,null,null,null,null,null,"",null,null,null,null,null,null,null,null,"",null,"",null,null,null,null,null,null,null,null,null,null,"",null,null,null,null,null,null,null,null,null,null,"",null,null,null,null,null,null,null,null,"","","","","",1,"",1,1,"","","","","","","","","","","","","","","","","","","","","","","","","","","","","","","",""]
[157,null,null,"",null,null,null,null,null,null,null,null,null,null,null,null,null,null,null,null,null,null,null,null,null,null,null,null,null,null,null,null,null,null,null,null,null,null,null,null,null,null,null,null,null,null,null,null,null,"",null,null,null,null,null,null,null,null,null,null,null,null,null,null,null,null,null,null,null,null,null,null,null,null,null,null,null,null,null,null,null,null,null,null,null,null,null,null,null,null,null,null,null,null,null,null,null,null,null,null,null,null,null,null,null,null,null,null,null,null,null,null,null,null,null,null,null,null,null,null,null,null,null,null,null,null,null,null,null,null,null,null,null,null,null,null,null,null,null,null,null,null,null,null,null,null,null,null,null,null,"",null,null,null,null,null,null,null,null,"",null,"",null,null,null,null,null,null,null,null,null,null,"",null,null,null,null,null,null,null,null,null,null,"",null,null,null,null,null,null,null,null,"","","","","",1,"",1,1,"","","","","","","","","","","","","","","","","","","","","","","","","","","","","","","",""]
[158,null,null,"",null,null,null,null,null,null,null,null,null,null,null,null,null,null,null,null,null,null,null,null,null,null,null,null,null,null,null,null,null,null,null,null,null,null,null,null,null,null,null,null,null,null,null,null,null,"",null,null,null,null,null,null,null,null,null,null,null,null,null,null,null,null,null,null,null,null,null,null,null,null,null,null,null,null,null,null,null,null,null,null,null,null,null,null,null,null,null,null,null,null,null,null,null,null,null,null,null,null,null,null,null,null,null,null,null,null,null,null,null,null,null,null,null,null,null,null,null,null,null,null,null,null,null,null,null,null,null,null,null,null,null,null,null,null,null,null,null,null,null,null,null,null,null,null,null,null,"",null,null,null,null,null,null,null,null,"",null,"",null,null,null,null,null,null,null,null,null,null,"",null,null,null,null,null,null,null,null,null,null,"",null,null,null,null,null,null,null,null,"","","","","",1,"",1,1,"","","","","","","","","","","","","","","","","","","","","","","","","","","","","","","",""]
[159,null,null,"",null,null,null,null,null,null,null,null,null,null,null,null,null,null,null,null,null,null,null,null,null,null,null,null,null,null,null,null,null,null,null,null,null,null,null,null,null,null,null,null,null,null,null,null,null,"",null,null,null,null,null,null,null,null,null,null,null,null,null,null,null,null,null,null,null,null,null,null,null,null,null,null,null,null,null,null,null,null,null,null,null,null,null,null,null,null,null,null,null,null,null,null,null,null,null,null,null,null,null,null,null,null,null,null,null,null,null,null,null,null,null,null,null,null,null,null,null,null,null,null,null,null,null,null,null,null,null,null,null,null,null,null,null,null,null,null,null,null,null,null,null,null,null,null,null,null,"",null,null,null,null,null,null,null,null,"",null,"",null,null,null,null,null,null,null,null,null,null,"",null,null,null,null,null,null,null,null,null,null,"",null,null,null,null,null,null,null,null,"","","","","",1,"",1,1,"","","","","","","","","","","","","","","","","","","","","","","","","","","","","","","",""]
[160,null,null,"",null,null,null,null,null,null,null,null,null,null,null,null,null,null,null,null,null,null,null,null,null,null,null,null,null,null,null,null,null,null,null,null,null,null,null,null,null,null,null,null,null,null,null,null,null,"",null,null,null,null,null,null,null,null,null,null,null,null,null,null,null,null,null,null,null,null,null,null,null,null,null,null,null,null,null,null,null,null,null,null,null,null,null,null,null,null,null,null,null,null,null,null,null,null,null,null,null,null,null,null,null,null,null,null,null,null,null,null,null,null,null,null,null,null,null,null,null,null,null,null,null,null,null,null,null,null,null,null,null,null,null,null,null,null,null,null,null,null,null,null,null,null,null,null,null,null,"",null,null,null,null,null,null,null,null,"",null,"",null,null,null,null,null,null,null,null,null,null,"",null,null,null,null,null,null,null,null,null,null,"",null,null,null,null,null,null,null,null,"","","","","",1,"",1,1,"","","","","","","","","","","","","","","","","","","","","","","","","","","","","","","",""]
[161,null,null,"",null,null,null,null,null,null,null,null,null,null,null,null,null,null,null,null,null,null,null,null,null,null,null,null,null,null,null,null,null,null,null,null,null,null,null,null,null,null,null,null,null,null,null,null,null,"",null,null,null,null,null,null,null,null,null,null,null,null,null,null,null,null,null,null,null,null,null,null,null,null,null,null,null,null,null,null,null,null,null,null,null,null,null,null,null,null,null,null,null,null,null,null,null,null,null,null,null,null,null,null,null,null,null,null,null,null,null,null,null,null,null,null,null,null,null,null,null,null,null,null,null,null,null,null,null,null,null,null,null,null,null,null,null,null,null,null,null,null,null,null,null,null,null,null,null,null,"",null,null,null,null,null,null,null,null,"",null,"",null,null,null,null,null,null,null,null,null,null,"",null,null,null,null,null,null,null,null,null,null,"",null,null,null,null,null,null,null,null,"","","","","",1,"",1,1,"","","","","","","","","","","","","","","","","","","","","","","","","","","","","","","",""]
[162,null,null,"",null,null,null,null,null,null,null,null,null,null,null,null,null,null,null,null,null,null,null,null,null,null,null,null,null,null,null,null,null,null,null,null,null,null,null,null,null,null,null,null,null,null,null,null,null,"",null,null,null,null,null,null,null,null,null,null,null,null,null,null,null,null,null,null,null,null,null,null,null,null,null,null,null,null,null,null,null,null,null,null,null,null,null,null,null,null,null,null,null,null,null,null,null,null,null,null,null,null,null,null,null,null,null,null,null,null,null,null,null,null,null,null,null,null,null,null,null,null,null,null,null,null,null,null,null,null,null,null,null,null,null,null,null,null,null,null,null,null,null,null,null,null,null,null,null,null,"",null,null,null,null,null,null,null,null,"",null,"",null,null,null,null,null,null,null,null,null,null,"",null,null,null,null,null,null,null,null,null,null,"",null,null,null,null,null,null,null,null,"","","","","",1,"",1,1,"","","","","","","","","","","","","","","","","","","","","","","","","","","","","","","",""]
[163,null,null,"",null,null,null,null,null,null,null,null,null,null,null,null,null,null,null,null,null,null,null,null,null,null,null,null,null,null,null,null,null,null,null,null,null,null,null,null,null,null,null,null,null,null,null,null,null,"",null,null,null,null,null,null,null,null,null,null,null,null,null,null,null,null,null,null,null,null,null,null,null,null,null,null,null,null,null,null,null,null,null,null,null,null,null,null,null,null,null,null,null,null,null,null,null,null,null,null,null,null,null,null,null,null,null,null,null,null,null,null,null,null,null,null,null,null,null,null,null,null,null,null,null,null,null,null,null,null,null,null,null,null,null,null,null,null,null,null,null,null,null,null,null,null,null,null,null,null,"",null,null,null,null,null,null,null,null,"",null,"",null,null,null,null,null,null,null,null,null,null,"",null,null,null,null,null,null,null,null,null,null,"",null,null,null,null,null,null,null,null,"","","","","",1,"",1,1,"","","","","","","","","","","","","","","","","","","","","","","","","","","","","","","",""]
[164,null,null,"",null,null,null,null,null,null,null,null,null,null,null,null,null,null,null,null,null,null,null,null,null,null,null,null,null,null,null,null,null,null,null,null,null,null,null,null,null,null,null,null,null,null,null,null,null,"",null,null,null,null,null,null,null,null,null,null,null,null,null,null,null,null,null,null,null,null,null,null,null,null,null,null,null,null,null,null,null,null,null,null,null,null,null,null,null,null,null,null,null,null,null,null,null,null,null,null,null,null,null,null,null,null,null,null,null,null,null,null,null,null,null,null,null,null,null,null,null,null,null,null,null,null,null,null,null,null,null,null,null,null,null,null,null,null,null,null,null,null,null,null,null,null,null,null,null,null,"",null,null,null,null,null,null,null,null,"",null,"",null,null,null,null,null,null,null,null,null,null,"",null,null,null,null,null,null,null,null,null,null,"",null,null,null,null,null,null,null,null,"","","","","",1,"",1,1,"","","","","","","","","","","","","","","","","","","","","","","","","","","","","","","",""]
[165,null,null,"",null,null,null,null,null,null,null,null,null,null,null,null,null,null,null,null,null,null,null,null,null,null,null,null,null,null,null,null,null,null,null,null,null,null,null,null,null,null,null,null,null,null,null,null,null,"",null,null,null,null,null,null,null,null,null,null,null,null,null,null,null,null,null,null,null,null,null,null,null,null,null,null,null,null,null,null,null,null,null,null,null,null,null,null,null,null,null,null,null,null,null,null,null,null,null,null,null,null,null,null,null,null,null,null,null,null,null,null,null,null,null,null,null,null,null,null,null,null,null,null,null,null,null,null,null,null,null,null,null,null,null,null,null,null,null,null,null,null,null,null,null,null,null,null,null,null,"",null,null,null,null,null,null,null,null,"",null,"",null,null,null,null,null,null,null,null,null,null,"",null,null,null,null,null,null,null,null,null,null,"",null,null,null,null,null,null,null,null,"","","","","",1,"",1,1,"","","","","","","","","","","","","","","","","","","","","","","","","","","","","","","",""]
[166,null,null,"",null,null,null,null,null,null,null,null,null,null,null,null,null,null,null,null,null,null,null,null,null,null,null,null,null,null,null,null,null,null,null,null,null,null,null,null,null,null,null,null,null,null,null,null,null,"",null,null,null,null,null,null,null,null,null,null,null,null,null,null,null,null,null,null,null,null,null,null,null,null,null,null,null,null,null,null,null,null,null,null,null,null,null,null,null,null,null,null,null,null,null,null,null,null,null,null,null,null,null,null,null,null,null,null,null,null,null,null,null,null,null,null,null,null,null,null,null,null,null,null,null,null,null,null,null,null,null,null,null,null,null,null,null,null,null,null,null,null,null,null,null,null,null,null,null,null,"",null,null,null,null,null,null,null,null,"",null,"",null,null,null,null,null,null,null,null,null,null,"",null,null,null,null,null,null,null,null,null,null,"",null,null,null,null,null,null,null,null,"","","","","",1,"",1,1,"","","","","","","","","","","","","","","","","","","","","","","","","","","","","","","",""]
[167,null,null,"",null,null,null,null,null,null,null,null,null,null,null,null,null,null,null,null,null,null,null,null,null,null,null,null,null,null,null,null,null,null,null,null,null,null,null,null,null,null,null,null,null,null,null,null,null,"",null,null,null,null,null,null,null,null,null,null,null,null,null,null,null,null,null,null,null,null,null,null,null,null,null,null,null,null,null,null,null,null,null,null,null,null,null,null,null,null,null,null,null,null,null,null,null,null,null,null,null,null,null,null,null,null,null,null,null,null,null,null,null,null,null,null,null,null,null,null,null,null,null,null,null,null,null,null,null,null,null,null,null,null,null,null,null,null,null,null,null,null,null,null,null,null,null,null,null,null,"",null,null,null,null,null,null,null,null,"",null,"",null,null,null,null,null,null,null,null,null,null,"",null,null,null,null,null,null,null,null,null,null,"",null,null,null,null,null,null,null,null,"","","","","",1,"",1,1,"","","","","","","","","","","","","","","","","","","","","","","","","","","","","","","",""]
[168,null,null,"",null,null,null,null,null,null,null,null,null,null,null,null,null,null,null,null,null,null,null,null,null,null,null,null,null,null,null,null,null,null,null,null,null,null,null,null,null,null,null,null,null,null,null,null,null,"",null,null,null,null,null,null,null,null,null,null,null,null,null,null,null,null,null,null,null,null,null,null,null,null,null,null,null,null,null,null,null,null,null,null,null,null,null,null,null,null,null,null,null,null,null,null,null,null,null,null,null,null,null,null,null,null,null,null,null,null,null,null,null,null,null,null,null,null,null,null,null,null,null,null,null,null,null,null,null,null,null,null,null,null,null,null,null,null,null,null,null,null,null,null,null,null,null,null,null,null,"",null,null,null,null,null,null,null,null,"",null,"",null,null,null,null,null,null,null,null,null,null,"",null,null,null,null,null,null,null,null,null,null,"",null,null,null,null,null,null,null,null,"","","","","",1,"",1,1,"","","","","","","","","","","","","","","","","","","","","","","","","","","","","","","",""]
[169,null,null,"",null,null,null,null,null,null,null,null,null,null,null,null,null,null,null,null,null,null,null,null,null,null,null,null,null,null,null,null,null,null,null,null,null,null,null,null,null,null,null,null,null,null,null,null,null,"",null,null,null,null,null,null,null,null,null,null,null,null,null,null,null,null,null,null,null,null,null,null,null,null,null,null,null,null,null,null,null,null,null,null,null,null,null,null,null,null,null,null,null,null,null,null,null,null,null,null,null,null,null,null,null,null,null,null,null,null,null,null,null,null,null,null,null,null,null,null,null,null,null,null,null,null,null,null,null,null,null,null,null,null,null,null,null,null,null,null,null,null,null,null,null,null,null,null,null,null,"",null,null,null,null,null,null,null,null,"",null,"",null,null,null,null,null,null,null,null,null,null,"",null,null,null,null,null,null,null,null,null,null,"",null,null,null,null,null,null,null,null,"","","","","",1,"",1,1,"","","","","","","","","","","","","","","","","","","","","","","","","","","","","","","",""]
[170,null,null,"",null,null,null,null,null,null,null,null,null,null,null,null,null,null,null,null,null,null,null,null,null,null,null,null,null,null,null,null,null,null,null,null,null,null,null,null,null,null,null,null,null,null,null,null,null,"",null,null,null,null,null,null,null,null,null,null,null,null,null,null,null,null,null,null,null,null,null,null,null,null,null,null,null,null,null,null,null,null,null,null,null,null,null,null,null,null,null,null,null,null,null,null,null,null,null,null,null,null,null,null,null,null,null,null,null,null,null,null,null,null,null,null,null,null,null,null,null,null,null,null,null,null,null,null,null,null,null,null,null,null,null,null,null,null,null,null,null,null,null,null,null,null,null,null,null,null,"",null,null,null,null,null,null,null,null,"",null,"",null,null,null,null,null,null,null,null,null,null,"",null,null,null,null,null,null,null,null,null,null,"",null,null,null,null,null,null,null,null,"","","","","",1,"",1,1,"","","","","","","","","","","","","","","","","","","","","","","","","","","","","","","",""]
[171,null,null,"",null,null,null,null,null,null,null,null,null,null,null,null,null,null,null,null,null,null,null,null,null,null,null,null,null,null,null,null,null,null,null,null,null,null,null,null,null,null,null,null,null,null,null,null,null,"",null,null,null,null,null,null,null,null,null,null,null,null,null,null,null,null,null,null,null,null,null,null,null,null,null,null,null,null,null,null,null,null,null,null,null,null,null,null,null,null,null,null,null,null,null,null,null,null,null,null,null,null,null,null,null,null,null,null,null,null,null,null,null,null,null,null,null,null,null,null,null,null,null,null,null,null,null,null,null,null,null,null,null,null,null,null,null,null,null,null,null,null,null,null,null,null,null,null,null,null,"",null,null,null,null,null,null,null,null,"",null,"",null,null,null,null,null,null,null,null,null,null,"",null,null,null,null,null,null,null,null,null,null,"",null,null,null,null,null,null,null,null,"","","","","",1,"",1,1,"","","","","","","","","","","","","","","","","","","","","","","","","","","","","","","",""]
[172,null,null,"",null,null,null,null,null,null,null,null,null,null,null,null,null,null,null,null,null,null,null,null,null,null,null,null,null,null,null,null,null,null,null,null,null,null,null,null,null,null,null,null,null,null,null,null,null,"",null,null,null,null,null,null,null,null,null,null,null,null,null,null,null,null,null,null,null,null,null,null,null,null,null,null,null,null,null,null,null,null,null,null,null,null,null,null,null,null,null,null,null,null,null,null,null,null,null,null,null,null,null,null,null,null,null,null,null,null,null,null,null,null,null,null,null,null,null,null,null,null,null,null,null,null,null,null,null,null,null,null,null,null,null,null,null,null,null,null,null,null,null,null,null,null,null,null,null,null,"",null,null,null,null,null,null,null,null,"",null,"",null,null,null,null,null,null,null,null,null,null,"",null,null,null,null,null,null,null,null,null,null,"",null,null,null,null,null,null,null,null,"","","","","",1,"",1,1,"","","","","","","","","","","","","","","","","","","","","","","","","","","","","","","",""]
[173,null,null,"",null,null,null,null,null,null,null,null,null,null,null,null,null,null,null,null,null,null,null,null,null,null,null,null,null,null,null,null,null,null,null,null,null,null,null,null,null,null,null,null,null,null,null,null,null,"",null,null,null,null,null,null,null,null,null,null,null,null,null,null,null,null,null,null,null,null,null,null,null,null,null,null,null,null,null,null,null,null,null,null,null,null,null,null,null,null,null,null,null,null,null,null,null,null,null,null,null,null,null,null,null,null,null,null,null,null,null,null,null,null,null,null,null,null,null,null,null,null,null,null,null,null,null,null,null,null,null,null,null,null,null,null,null,null,null,null,null,null,null,null,null,null,null,null,null,null,"",null,null,null,null,null,null,null,null,"",null,"",null,null,null,null,null,null,null,null,null,null,"",null,null,null,null,null,null,null,null,null,null,"",null,null,null,null,null,null,null,null,"","","","","",1,"",1,1,"","","","","","","","","","","","","","","","","","","","","","","","","","","","","","","",""]
[174,null,null,"",null,null,null,null,null,null,null,null,null,null,null,null,null,null,null,null,null,null,null,null,null,null,null,null,null,null,null,null,null,null,null,null,null,null,null,null,null,null,null,null,null,null,null,null,null,"",null,null,null,null,null,null,null,null,null,null,null,null,null,null,null,null,null,null,null,null,null,null,null,null,null,null,null,null,null,null,null,null,null,null,null,null,null,null,null,null,null,null,null,null,null,null,null,null,null,null,null,null,null,null,null,null,null,null,null,null,null,null,null,null,null,null,null,null,null,null,null,null,null,null,null,null,null,null,null,null,null,null,null,null,null,null,null,null,null,null,null,null,null,null,null,null,null,null,null,null,"",null,null,null,null,null,null,null,null,"",null,"",null,null,null,null,null,null,null,null,null,null,"",null,null,null,null,null,null,null,null,null,null,"",null,null,null,null,null,null,null,null,"","","","","",1,"",1,1,"","","","","","","","","","","","","","","","","","","","","","","","","","","","","","","",""]
[175,null,null,"",null,null,null,null,null,null,null,null,null,null,null,null,null,null,null,null,null,null,null,null,null,null,null,null,null,null,null,null,null,null,null,null,null,null,null,null,null,null,null,null,null,null,null,null,null,"",null,null,null,null,null,null,null,null,null,null,null,null,null,null,null,null,null,null,null,null,null,null,null,null,null,null,null,null,null,null,null,null,null,null,null,null,null,null,null,null,null,null,null,null,null,null,null,null,null,null,null,null,null,null,null,null,null,null,null,null,null,null,null,null,null,null,null,null,null,null,null,null,null,null,null,null,null,null,null,null,null,null,null,null,null,null,null,null,null,null,null,null,null,null,null,null,null,null,null,null,"",null,null,null,null,null,null,null,null,"",null,"",null,null,null,null,null,null,null,null,null,null,"",null,null,null,null,null,null,null,null,null,null,"",null,null,null,null,null,null,null,null,"","","","","",1,"",1,1,"","","","","","","","","","","","","","","","","","","","","","","","","","","","","","","",""]
[176,null,null,"",null,null,null,null,null,null,null,null,null,null,null,null,null,null,null,null,null,null,null,null,null,null,null,null,null,null,null,null,null,null,null,null,null,null,null,null,null,null,null,null,null,null,null,null,null,"",null,null,null,null,null,null,null,null,null,null,null,null,null,null,null,null,null,null,null,null,null,null,null,null,null,null,null,null,null,null,null,null,null,null,null,null,null,null,null,null,null,null,null,null,null,null,null,null,null,null,null,null,null,null,null,null,null,null,null,null,null,null,null,null,null,null,null,null,null,null,null,null,null,null,null,null,null,null,null,null,null,null,null,null,null,null,null,null,null,null,null,null,null,null,null,null,null,null,null,null,"",null,null,null,null,null,null,null,null,"",null,"",null,null,null,null,null,null,null,null,null,null,"",null,null,null,null,null,null,null,null,null,null,"",null,null,null,null,null,null,null,null,"","","","","",1,"",1,1,"","","","","","","","","","","","","","","","","","","","","","","","","","","","","","","",""]
[177,null,null,"",null,null,null,null,null,null,null,null,null,null,null,null,null,null,null,null,null,null,null,null,null,null,null,null,null,null,null,null,null,null,null,null,null,null,null,null,null,null,null,null,null,null,null,null,null,"",null,null,null,null,null,null,null,null,null,null,null,null,null,null,null,null,null,null,null,null,null,null,null,null,null,null,null,null,null,null,null,null,null,null,null,null,null,null,null,null,null,null,null,null,null,null,null,null,null,null,null,null,null,null,null,null,null,null,null,null,null,null,null,null,null,null,null,null,null,null,null,null,null,null,null,null,null,null,null,null,null,null,null,null,null,null,null,null,null,null,null,null,null,null,null,null,null,null,null,null,"",null,null,null,null,null,null,null,null,"",null,"",null,null,null,null,null,null,null,null,null,null,"",null,null,null,null,null,null,null,null,null,null,"",null,null,null,null,null,null,null,null,"","","","","",1,"",1,1,"","","","","","","","","","","","","","","","","","","","","","","","","","","","","","","",""]
[178,null,null,"",null,null,null,null,null,null,null,null,null,null,null,null,null,null,null,null,null,null,null,null,null,null,null,null,null,null,null,null,null,null,null,null,null,null,null,null,null,null,null,null,null,null,null,null,null,"",null,null,null,null,null,null,null,null,null,null,null,null,null,null,null,null,null,null,null,null,null,null,null,null,null,null,null,null,null,null,null,null,null,null,null,null,null,null,null,null,null,null,null,null,null,null,null,null,null,null,null,null,null,null,null,null,null,null,null,null,null,null,null,null,null,null,null,null,null,null,null,null,null,null,null,null,null,null,null,null,null,null,null,null,null,null,null,null,null,null,null,null,null,null,null,null,null,null,null,null,"",null,null,null,null,null,null,null,null,"",null,"",null,null,null,null,null,null,null,null,null,null,"",null,null,null,null,null,null,null,null,null,null,"",null,null,null,null,null,null,null,null,"","","","","",1,"",1,1,"","","","","","","","","","","","","","","","","","","","","","","","","","","","","","","",""]
[179,null,null,{"$f":"IF(B213=\"\",\"\",B213)","v":""},null,null,null,null,null,null,null,null,null,null,null,null,null,null,null,null,null,null,null,null,null,null,null,null,null,null,null,null,null,null,null,null,null,null,null,null,null,null,null,null,null,null,null,null,null,"",null,null,null,null,null,null,null,null,null,null,null,null,null,null,null,null,null,null,null,null,null,null,null,null,null,null,null,null,null,null,null,null,null,null,null,null,null,null,null,null,null,null,null,null,null,null,null,null,null,null,null,null,null,null,null,null,null,null,null,null,null,null,null,null,null,null,null,null,null,null,null,null,null,null,null,null,null,null,null,null,null,null,null,null,null,null,null,null,null,null,null,null,null,null,null,null,null,null,null,null,"",null,null,null,null,null,null,null,null,{"$f":"IF(HU213=\"\",\"\",HU213)","v":""},null,"",null,null,null,null,null,null,null,null,null,null,"",null,null,null,null,null,null,null,null,null,null,"",null,null,null,null,null,null,null,null,"","","","","",1,"",1,1,{"$f":"IF(OR(CL213=\"○\",CM213=\"○\",CN213=\"○\",CO213=1,CO213=2,CO213=3,CP213=1,CP213=2,CP213=3),1,\"\")","v":""},{"$f":"IF(OR(CQ213=\"○\",CR213=\"○\",CW213=\"○\",CX213=\"○\",DA213=\"○\",DB213=\"○\",DE213=\"○\",DF213=\"○\"),1,\"\")","v":""},{"$f":"IF(DH213=\"\",\"\",1)","v":""},{"$f":"IF(OR(DI213<>\"\",DJ213<>\"\",DK213<>\"\",DL213<>\"\",DM213<>\"\"),1,\"\")","v":""},{"$f":"IF(OR(GY213=1,GZ213=1,HA213=1,HB213=1,HC213=1,HD213=1,HE213=1,HF213=1),\"○\",\"\")","v":""},{"$f":"IF(OR(DR213=\"\",DR213=0),\"\",1)","v":""},{"$f":"IF(OR(DS213=\"\",DS213=0),\"\",1)","v":""},{"$f":"IF(OR(DT213=\"\",DT213=0),\"\",1)","v":""},{"$f":"IF(OR(DU213=\"\",DU213=0),\"\",1)","v":""},{"$f":"IF(OR(DV213=\"\",DV213=0),\"\",1)","v":""},{"$f":"IF(OR(DW213=\"\",DW213=0),\"\",1)","v":""},{"$f":"IF(OR(DX213=\"\",DX213=0),\"\",1)","v":""},{"$f":"IF(OR(DY213=\"\",DY213=0),\"\",1)","v":""},{"$f":"IF(OR(HH213=1,HI213=1,HJ213=1,HK213=1,HM213=1,HL213=1,HN213=1,HO213=1),\"○\",\"\")","v":""},{"$f":"IF(OR(ED213=\"\",ED213=0),\"\",1)","v":""},{"$f":"IF(OR(EE213=\"\",EE213=0),\"\",1)","v":""},{"$f":"IF(OR(EF213=\"\",EF213=0),\"\",1)","v":""},{"$f":"IF(OR(EG213=\"\",EG213=0),\"\",1)","v":""},{"$f":"IF(OR(EH213=\"\",EH213=0),\"\",1)","v":""},{"$f":"IF(OR(EI213=\"\",EI213=0),\"\",1)","v":""},{"$f":"IF(OR(EJ213=\"\",EJ213=0),\"\",1)","v":""},{"$f":"IF(OR(EK213=\"\",EK213=0),\"\",1)","v":""},{"$f":"IF(OR(EL213=4,EL213=3,EL213=2,EL213=1),\"○\",\"\")","v":""},{"$f":"IF(OR(EM213=1,EM213=2,EM213=3),\"○\",IF(OR(EN213=1,EN213=2,EN213=3),\"○\",IF(OR(EO213=1,EO213=2,EO213=3),\"○\",IF(OR(EP213=1,EP213=2,EP213=3),\"○\",\"\"))))","v":""},{"$f":"IF(EQ213=\"\",\"\",1)","v":""},{"$f":"IF(OR(ER213=\"\"),\"\",1)","v":""},{"$f":"IF(OR(HV213=1,HW213=1,HX213=1,HY213=1),1,\"\")","v":""},{"$f":"IF(AND(FE213=\"\",FF213=\"\",FG213=\"\",FI213=\"\",FK213=\"\",FM213=\"\"),\"\",\"×\")","v":""},{"$f":"IF(AND(OR(EV213=\"\",EV213=\"無し\"),OR(FG213=\"\",FG213=\"無し\")),\"\",1)","v":""},{"$f":"IF(AND(OR(EX213=\"\",EX213=\"無し\"),OR(FI213=\"\",FI213=\"無し\")),\"\",1)","v":""},{"$f":"IF(OR(FK213=\"\",FK213=\"無し\"),\"\",1)","v":""},{"$f":"IF(AND(OR(FB213=\"\",FB213=\"無し\"),OR(FM213=\"\",FM213=\"無し\")),\"\",1)","v":""}]
[180,null,null,"",null,null,null,null,null,null,null,null,null,null,null,null,null,null,null,null,null,null,null,null,null,null,null,null,null,null,null,null,null,null,null,null,null,null,null,null,null,null,null,null,null,null,null,null,null,"",null,null,null,null,null,null,null,null,null,null,null,null,null,null,null,null,null,null,null,null,null,null,null,null,null,null,null,null,null,null,null,null,null,null,null,null,null,null,null,null,null,null,null,null,null,null,null,null,null,null,null,null,null,null,null,null,null,null,null,null,null,null,null,null,null,null,null,null,null,null,null,null,null,null,null,null,null,null,null,null,null,null,null,null,null,null,null,null,null,null,null,null,null,null,null,null,null,null,null,null,"",null,null,null,null,null,null,null,null,"",null,"",null,null,null,null,null,null,null,null,null,null,"",null,null,null,null,null,null,null,null,null,null,"",null,null,null,null,null,null,null,null,"","","","","",1,"",1,1,"","","","","","","","","","","","","","","","","","","","","","","","","","","","","","","",""]
[181,null,null,"",null,null,null,null,null,null,null,null,null,null,null,null,null,null,null,null,null,null,null,null,null,null,null,null,null,null,null,null,null,null,null,null,null,null,null,null,null,null,null,null,null,null,null,null,null,"",null,null,null,null,null,null,null,null,null,null,null,null,null,null,null,null,null,null,null,null,null,null,null,null,null,null,null,null,null,null,null,null,null,null,null,null,null,null,null,null,null,null,null,null,null,null,null,null,null,null,null,null,null,null,null,null,null,null,null,null,null,null,null,null,null,null,null,null,null,null,null,null,null,null,null,null,null,null,null,null,null,null,null,null,null,null,null,null,null,null,null,null,null,null,null,null,null,null,null,null,"",null,null,null,null,null,null,null,null,"",null,"",null,null,null,null,null,null,null,null,null,null,"",null,null,null,null,null,null,null,null,null,null,"",null,null,null,null,null,null,null,null,"","","","","",1,"",1,1,"","","","","","","","","","","","","","","","","","","","","","","","","","","","","","","",""]
[182,null,null,"",null,null,null,null,null,null,null,null,null,null,null,null,null,null,null,null,null,null,null,null,null,null,null,null,null,null,null,null,null,null,null,null,null,null,null,null,null,null,null,null,null,null,null,null,null,"",null,null,null,null,null,null,null,null,null,null,null,null,null,null,null,null,null,null,null,null,null,null,null,null,null,null,null,null,null,null,null,null,null,null,null,null,null,null,null,null,null,null,null,null,null,null,null,null,null,null,null,null,null,null,null,null,null,null,null,null,null,null,null,null,null,null,null,null,null,null,null,null,null,null,null,null,null,null,null,null,null,null,null,null,null,null,null,null,null,null,null,null,null,null,null,null,null,null,null,null,"",null,null,null,null,null,null,null,null,"",null,"",null,null,null,null,null,null,null,null,null,null,"",null,null,null,null,null,null,null,null,null,null,"",null,null,null,null,null,null,null,null,"","","","","",1,"",1,1,"","","","","","","","","","","","","","","","","","","","","","","","","","","","","","","",""]
[183,null,null,"",null,null,null,null,null,null,null,null,null,null,null,null,null,null,null,null,null,null,null,null,null,null,null,null,null,null,null,null,null,null,null,null,null,null,null,null,null,null,null,null,null,null,null,null,null,"",null,null,null,null,null,null,null,null,null,null,null,null,null,null,null,null,null,null,null,null,null,null,null,null,null,null,null,null,null,null,null,null,null,null,null,null,null,null,null,null,null,null,null,null,null,null,null,null,null,null,null,null,null,null,null,null,null,null,null,null,null,null,null,null,null,null,null,null,null,null,null,null,null,null,null,null,null,null,null,null,null,null,null,null,null,null,null,null,null,null,null,null,null,null,null,null,null,null,null,null,"",null,null,null,null,null,null,null,null,"",null,"",null,null,null,null,null,null,null,null,null,null,"",null,null,null,null,null,null,null,null,null,null,"",null,null,null,null,null,null,null,null,"","","","","",1,"",1,1,"","","","","","","","","","","","","","","","","","","","","","","","","","","","","","","",""]
[184,null,null,"",null,null,null,null,null,null,null,null,null,null,null,null,null,null,null,null,null,null,null,null,null,null,null,null,null,null,null,null,null,null,null,null,null,null,null,null,null,null,null,null,null,null,null,null,null,"",null,null,null,null,null,null,null,null,null,null,null,null,null,null,null,null,null,null,null,null,null,null,null,null,null,null,null,null,null,null,null,null,null,null,null,null,null,null,null,null,null,null,null,null,null,null,null,null,null,null,null,null,null,null,null,null,null,null,null,null,null,null,null,null,null,null,null,null,null,null,null,null,null,null,null,null,null,null,null,null,null,null,null,null,null,null,null,null,null,null,null,null,null,null,null,null,null,null,null,null,"",null,null,null,null,null,null,null,null,"",null,"",null,null,null,null,null,null,null,null,null,null,"",null,null,null,null,null,null,null,null,null,null,"",null,null,null,null,null,null,null,null,"","","","","",1,"",1,1,"","","","","","","","","","","","","","","","","","","","","","","","","","","","","","","",""]
[185,null,null,"",null,null,null,null,null,null,null,null,null,null,null,null,null,null,null,null,null,null,null,null,null,null,null,null,null,null,null,null,null,null,null,null,null,null,null,null,null,null,null,null,null,null,null,null,null,"",null,null,null,null,null,null,null,null,null,null,null,null,null,null,null,null,null,null,null,null,null,null,null,null,null,null,null,null,null,null,null,null,null,null,null,null,null,null,null,null,null,null,null,null,null,null,null,null,null,null,null,null,null,null,null,null,null,null,null,null,null,null,null,null,null,null,null,null,null,null,null,null,null,null,null,null,null,null,null,null,null,null,null,null,null,null,null,null,null,null,null,null,null,null,null,null,null,null,null,null,"",null,null,null,null,null,null,null,null,"",null,"",null,null,null,null,null,null,null,null,null,null,"",null,null,null,null,null,null,null,null,null,null,"",null,null,null,null,null,null,null,null,"","","","","",1,"",1,1,"","","","","","","","","","","","","","","","","","","","","","","","","","","","","","","",""]
[186,null,null,"",null,null,null,null,null,null,null,null,null,null,null,null,null,null,null,null,null,null,null,null,null,null,null,null,null,null,null,null,null,null,null,null,null,null,null,null,null,null,null,null,null,null,null,null,null,"",null,null,null,null,null,null,null,null,null,null,null,null,null,null,null,null,null,null,null,null,null,null,null,null,null,null,null,null,null,null,null,null,null,null,null,null,null,null,null,null,null,null,null,null,null,null,null,null,null,null,null,null,null,null,null,null,null,null,null,null,null,null,null,null,null,null,null,null,null,null,null,null,null,null,null,null,null,null,null,null,null,null,null,null,null,null,null,null,null,null,null,null,null,null,null,null,null,null,null,null,"",null,null,null,null,null,null,null,null,"",null,"",null,null,null,null,null,null,null,null,null,null,"",null,null,null,null,null,null,null,null,null,null,"",null,null,null,null,null,null,null,null,"","","","","",1,"",1,1,"","","","","","","","","","","","","","","","","","","","","","","","","","","","","","","",""]
[187,null,null,"",null,null,null,null,null,null,null,null,null,null,null,null,null,null,null,null,null,null,null,null,null,null,null,null,null,null,null,null,null,null,null,null,null,null,null,null,null,null,null,null,null,null,null,null,null,"",null,null,null,null,null,null,null,null,null,null,null,null,null,null,null,null,null,null,null,null,null,null,null,null,null,null,null,null,null,null,null,null,null,null,null,null,null,null,null,null,null,null,null,null,null,null,null,null,null,null,null,null,null,null,null,null,null,null,null,null,null,null,null,null,null,null,null,null,null,null,null,null,null,null,null,null,null,null,null,null,null,null,null,null,null,null,null,null,null,null,null,null,null,null,null,null,null,null,null,null,"",null,null,null,null,null,null,null,null,"",null,"",null,null,null,null,null,null,null,null,null,null,"",null,null,null,null,null,null,null,null,null,null,"",null,null,null,null,null,null,null,null,"","","","","",1,"",1,1,"","","","","","","","","","","","","","","","","","","","","","","","","","","","","","","",""]
[188,null,null,"",null,null,null,null,null,null,null,null,null,null,null,null,null,null,null,null,null,null,null,null,null,null,null,null,null,null,null,null,null,null,null,null,null,null,null,null,null,null,null,null,null,null,null,null,null,"",null,null,null,null,null,null,null,null,null,null,null,null,null,null,null,null,null,null,null,null,null,null,null,null,null,null,null,null,null,null,null,null,null,null,null,null,null,null,null,null,null,null,null,null,null,null,null,null,null,null,null,null,null,null,null,null,null,null,null,null,null,null,null,null,null,null,null,null,null,null,null,null,null,null,null,null,null,null,null,null,null,null,null,null,null,null,null,null,null,null,null,null,null,null,null,null,null,null,null,null,"",null,null,null,null,null,null,null,null,"",null,"",null,null,null,null,null,null,null,null,null,null,"",null,null,null,null,null,null,null,null,null,null,"",null,null,null,null,null,null,null,null,"","","","","",1,"",1,1,"","","","","","","","","","","","","","","","","","","","","","","","","","","","","","","",""]
[189,null,null,"",null,null,null,null,null,null,null,null,null,null,null,null,null,null,null,null,null,null,null,null,null,null,null,null,null,null,null,null,null,null,null,null,null,null,null,null,null,null,null,null,null,null,null,null,null,"",null,null,null,null,null,null,null,null,null,null,null,null,null,null,null,null,null,null,null,null,null,null,null,null,null,null,null,null,null,null,null,null,null,null,null,null,null,null,null,null,null,null,null,null,null,null,null,null,null,null,null,null,null,null,null,null,null,null,null,null,null,null,null,null,null,null,null,null,null,null,null,null,null,null,null,null,null,null,null,null,null,null,null,null,null,null,null,null,null,null,null,null,null,null,null,null,null,null,null,null,"",null,null,null,null,null,null,null,null,"",null,"",null,null,null,null,null,null,null,null,null,null,"",null,null,null,null,null,null,null,null,null,null,"",null,null,null,null,null,null,null,null,"","","","","",1,"",1,1,"","","","","","","","","","","","","","","","","","","","","","","","","","","","","","","",""]
[190,null,null,"",null,null,null,null,null,null,null,null,null,null,null,null,null,null,null,null,null,null,null,null,null,null,null,null,null,null,null,null,null,null,null,null,null,null,null,null,null,null,null,null,null,null,null,null,null,"",null,null,null,null,null,null,null,null,null,null,null,null,null,null,null,null,null,null,null,null,null,null,null,null,null,null,null,null,null,null,null,null,null,null,null,null,null,null,null,null,null,null,null,null,null,null,null,null,null,null,null,null,null,null,null,null,null,null,null,null,null,null,null,null,null,null,null,null,null,null,null,null,null,null,null,null,null,null,null,null,null,null,null,null,null,null,null,null,null,null,null,null,null,null,null,null,null,null,null,null,"",null,null,null,null,null,null,null,null,"",null,"",null,null,null,null,null,null,null,null,null,null,"",null,null,null,null,null,null,null,null,null,null,"",null,null,null,null,null,null,null,null,"","","","","",1,"",1,1,"","","","","","","","","","","","","","","","","","","","","","","","","","","","","","","",""]
[191,null,null,"",null,null,null,null,null,null,null,null,null,null,null,null,null,null,null,null,null,null,null,null,null,null,null,null,null,null,null,null,null,null,null,null,null,null,null,null,null,null,null,null,null,null,null,null,null,"",null,null,null,null,null,null,null,null,null,null,null,null,null,null,null,null,null,null,null,null,null,null,null,null,null,null,null,null,null,null,null,null,null,null,null,null,null,null,null,null,null,null,null,null,null,null,null,null,null,null,null,null,null,null,null,null,null,null,null,null,null,null,null,null,null,null,null,null,null,null,null,null,null,null,null,null,null,null,null,null,null,null,null,null,null,null,null,null,null,null,null,null,null,null,null,null,null,null,null,null,"",null,null,null,null,null,null,null,null,"",null,"",null,null,null,null,null,null,null,null,null,null,"",null,null,null,null,null,null,null,null,null,null,"",null,null,null,null,null,null,null,null,"","","","","",1,"",1,1,"","","","","","","","","","","","","","","","","","","","","","","","","","","","","","","",""]
[{"$f":" ROW(A226) - ROW(_row) + 1","v":192},null,null,"",null,null,null,null,null,null,null,null,null,null,null,null,null,null,null,null,null,null,null,null,null,null,null,null,null,null,null,null,null,null,null,null,null,null,null,null,null,null,null,null,null,null,null,null,null,{"$f":"IF(GQ226=1,IF(F226=\"\",\"\",F226),\"\")","v":""},null,null,null,null,null,null,null,null,null,null,null,null,null,null,null,null,null,null,null,null,null,null,null,null,null,null,null,null,null,null,null,null,null,null,null,null,null,null,null,null,null,null,null,null,null,null,null,null,null,null,null,null,null,null,null,null,null,null,null,null,null,null,null,null,null,null,null,null,null,null,null,null,null,null,null,null,null,null,null,null,null,null,null,null,null,null,null,null,null,null,null,null,null,null,null,null,null,null,null,null,{"$f":"IF(F226=\"\",\"\",F226)","v":""},null,null,null,null,null,null,null,null,"",null,{"$f":"IF(OR(IF(OR(FG226=\"\",FG226=\"無し\"),\"\",1)=1,IF(OR(FI226=\"\",FI226=\"無し\"),\"\",1)=1,IF(OR(FK226=\"\",FK226=\"無し\"),\"\",1)=1,IF(OR(FM226=\"\",FM226=\"無し\"),\"\",1)=1),IF(F226=\"\",\"\",F226),\"\")","v":""},null,null,null,null,null,null,null,null,null,null,{"$f":"IF(OR(IF(OR(FR226=\"\",FR226=\"無し\"),\"\",1)=1,IF(OR(FT226=\"\",FT226=\"無し\"),\"\",1)=1,IF(OR(FV226=\"\",FV226=\"無し\"),\"\",1)=1,IF(OR(FX226=\"\",FX226=\"無し\"),\"\",1)=1),IF(F226=\"\",\"\",F226),\"\")","v":""},null,null,null,null,null,null,null,null,null,null,{"$f":"IF(OR(IF(OR(GC226=\"\",GC226=\"無し\"),\"\",1)=1,IF(OR(GE226=\"\",GE226=\"無し\"),\"\",1)=1,IF(OR(GG226=\"\",GG226=\"無し\"),\"\",1)=1,IF(OR(GI226=\"\",GI226=\"無し\"),\"\",1)=1),IF(F226=\"\",\"\",F226),\"\")","v":""},null,null,null,null,null,null,null,null,{"$f":"IF(Y226<>\"\",1,\"\")","v":""},{"$f":"IF(Z226<>\"\",1,\"\")","v":""},{"$f":"IF(OR(AA226=\"○\",AB226<>\"\",AG226<>\"\",AJ226<>\"\"),1,\"\")","v":""},{"$f":"IF(OR(AK226=\"○\",AL226=\"○\",AM226=\"○\",AN226=\"○\",AQ226=\"○\"),1,\"\")","v":""},{"$f":"IF(AT226<>\"\",1,\"\")","v":""},1,{"$f":"IF(OR(AV226=\"○\",AY226<>\"\",BA226=\"はり\",BA226=\"傾斜屋根\",BA226=\"その他\",BD226<>\"\"),1,\"\")","v":""},1,1,"","","","","","","","","","","","","","","","","","","","","","","","","","","","","","","",""]
[193,null,null,"",null,null,null,null,null,null,null,null,null,null,null,null,null,null,null,null,null,null,null,null,null,null,null,null,null,null,null,null,null,null,null,null,null,null,null,null,null,null,null,null,null,null,null,null,null,"",null,null,null,null,null,null,null,null,null,null,null,null,null,null,null,null,null,null,null,null,null,null,null,null,null,null,null,null,null,null,null,null,null,null,null,null,null,null,null,null,null,null,null,null,null,null,null,null,null,null,null,null,null,null,null,null,null,null,null,null,null,null,null,null,null,null,null,null,null,null,null,null,null,null,null,null,null,null,null,null,null,null,null,null,null,null,null,null,null,null,null,null,null,null,null,null,null,null,null,null,"",null,null,null,null,null,null,null,null,"",null,"",null,null,null,null,null,null,null,null,null,null,"",null,null,null,null,null,null,null,null,null,null,"",null,null,null,null,null,null,null,null,"","","","","",1,"",1,1,"","","","","","","","","","","","","","","","","","","","","","","","","","","","","","","",""]
[194,null,null,"",null,null,null,null,null,null,null,null,null,null,null,null,null,null,null,null,null,null,null,null,null,null,null,null,null,null,null,null,null,null,null,null,null,null,null,null,null,null,null,null,null,null,null,null,null,"",null,null,null,null,null,null,null,null,null,null,null,null,null,null,null,null,null,null,null,null,null,null,null,null,null,null,null,null,null,null,null,null,null,null,null,null,null,null,null,null,null,null,null,null,null,null,null,null,null,null,null,null,null,null,null,null,null,null,null,null,null,null,null,null,null,null,null,null,null,null,null,null,null,null,null,null,null,null,null,null,null,null,null,null,null,null,null,null,null,null,null,null,null,null,null,null,null,null,null,null,"",null,null,null,null,null,null,null,null,"",null,"",null,null,null,null,null,null,null,null,null,null,"",null,null,null,null,null,null,null,null,null,null,"",null,null,null,null,null,null,null,null,"","","","","",1,"",1,1,"","","","","","","","","","","","","","","","","","","","","","","","","","","","","","","",""]
[195,null,null,"",null,null,null,null,null,null,null,null,null,null,null,null,null,null,null,null,null,null,null,null,null,null,null,null,null,null,null,null,null,null,null,null,null,null,null,null,null,null,null,null,null,null,null,null,null,"",null,null,null,null,null,null,null,null,null,null,null,null,null,null,null,null,null,null,null,null,null,null,null,null,null,null,null,null,null,null,null,null,null,null,null,null,null,null,null,null,null,null,null,null,null,null,null,null,null,null,null,null,null,null,null,null,null,null,null,null,null,null,null,null,null,null,null,null,null,null,null,null,null,null,null,null,null,null,null,null,null,null,null,null,null,null,null,null,null,null,null,null,null,null,null,null,null,null,null,null,"",null,null,null,null,null,null,null,null,"",null,"",null,null,null,null,null,null,null,null,null,null,"",null,null,null,null,null,null,null,null,null,null,"",null,null,null,null,null,null,null,null,"","","","","",1,"",1,1,"","","","","","","","","","","","","","","","","","","","","","","","","","","","","","","",""]
[196,null,null,"",null,null,null,null,null,null,null,null,null,null,null,null,null,null,null,null,null,null,null,null,null,null,null,null,null,null,null,null,null,null,null,null,null,null,null,null,null,null,null,null,null,null,null,null,null,"",null,null,null,null,null,null,null,null,null,null,null,null,null,null,null,null,null,null,null,null,null,null,null,null,null,null,null,null,null,null,null,null,null,null,null,null,null,null,null,null,null,null,null,null,null,null,null,null,null,null,null,null,null,null,null,null,null,null,null,null,null,null,null,null,null,null,null,null,null,null,null,null,null,null,null,null,null,null,null,null,null,null,null,null,null,null,null,null,null,null,null,null,null,null,null,null,null,null,null,null,"",null,null,null,null,null,null,null,null,"",null,"",null,null,null,null,null,null,null,null,null,null,"",null,null,null,null,null,null,null,null,null,null,"",null,null,null,null,null,null,null,null,"","","","","",1,"",1,1,"","","","","","","","","","","","","","","","","","","","","","","","","","","","","","","",""]
[197,null,null,"",null,null,null,null,null,null,null,null,null,null,null,null,null,null,null,null,null,null,null,null,null,null,null,null,null,null,null,null,null,null,null,null,null,null,null,null,null,null,null,null,null,null,null,null,null,"",null,null,null,null,null,null,null,null,null,null,null,null,null,null,null,null,null,null,null,null,null,null,null,null,null,null,null,null,null,null,null,null,null,null,null,null,null,null,null,null,null,null,null,null,null,null,null,null,null,null,null,null,null,null,null,null,null,null,null,null,null,null,null,null,null,null,null,null,null,null,null,null,null,null,null,null,null,null,null,null,null,null,null,null,null,null,null,null,null,null,null,null,null,null,null,null,null,null,null,null,"",null,null,null,null,null,null,null,null,"",null,"",null,null,null,null,null,null,null,null,null,null,"",null,null,null,null,null,null,null,null,null,null,"",null,null,null,null,null,null,null,null,"","","","","",1,"",1,1,"","","","","","","","","","","","","","","","","","","","","","","","","","","","","","","",""]
[198,null,null,"",null,null,null,null,null,null,null,null,null,null,null,null,null,null,null,null,null,null,null,null,null,null,null,null,null,null,null,null,null,null,null,null,null,null,null,null,null,null,null,null,null,null,null,null,null,"",null,null,null,null,null,null,null,null,null,null,null,null,null,null,null,null,null,null,null,null,null,null,null,null,null,null,null,null,null,null,null,null,null,null,null,null,null,null,null,null,null,null,null,null,null,null,null,null,null,null,null,null,null,null,null,null,null,null,null,null,null,null,null,null,null,null,null,null,null,null,null,null,null,null,null,null,null,null,null,null,null,null,null,null,null,null,null,null,null,null,null,null,null,null,null,null,null,null,null,null,"",null,null,null,null,null,null,null,null,"",null,"",null,null,null,null,null,null,null,null,null,null,"",null,null,null,null,null,null,null,null,null,null,"",null,null,null,null,null,null,null,null,"","","","","",1,"",1,1,"","","","","","","","","","","","","","","","","","","","","","","","","","","","","","","",""]
[199,null,null,"",null,null,null,null,null,null,null,null,null,null,null,null,null,null,null,null,null,null,null,null,null,null,null,null,null,null,null,null,null,null,null,null,null,null,null,null,null,null,null,null,null,null,null,null,null,"",null,null,null,null,null,null,null,null,null,null,null,null,null,null,null,null,null,null,null,null,null,null,null,null,null,null,null,null,null,null,null,null,null,null,null,null,null,null,null,null,null,null,null,null,null,null,null,null,null,null,null,null,null,null,null,null,null,null,null,null,null,null,null,null,null,null,null,null,null,null,null,null,null,null,null,null,null,null,null,null,null,null,null,null,null,null,null,null,null,null,null,null,null,null,null,null,null,null,null,null,"",null,null,null,null,null,null,null,null,"",null,"",null,null,null,null,null,null,null,null,null,null,"",null,null,null,null,null,null,null,null,null,null,"",null,null,null,null,null,null,null,null,"","","","","",1,"",1,1,"","","","","","","","","","","","","","","","","","","","","","","","","","","","","","","",""]
[200,null,null,"",null,null,null,null,null,null,null,null,null,null,null,null,null,null,null,null,null,null,null,null,null,null,null,null,null,null,null,null,null,null,null,null,null,null,null,null,null,null,null,null,null,null,null,null,null,"",null,null,null,null,null,null,null,null,null,null,null,null,null,null,null,null,null,null,null,null,null,null,null,null,null,null,null,null,null,null,null,null,null,null,null,null,null,null,null,null,null,null,null,null,null,null,null,null,null,null,null,null,null,null,null,null,null,null,null,null,null,null,null,null,null,null,null,null,null,null,null,null,null,null,null,null,null,null,null,null,null,null,null,null,null,null,null,null,null,null,null,null,null,null,null,null,null,null,null,null,"",null,null,null,null,null,null,null,null,"",null,"",null,null,null,null,null,null,null,null,null,null,"",null,null,null,null,null,null,null,null,null,null,"",null,null,null,null,null,null,null,null,"","","","","",1,"",1,1,"","","","","","","","","","","","","","","","","","","","","","","","","","","","","","","",""]

{"sheet":"マスターシート","index":2,"n_rows":19,"n_cols":37,"rows_kept":19,"cut":false,"hidden":true,"merged":[]}
[]
[null,"チェックＢＯＸ","免震構造物","共用排水","地盤調査方法","直接基礎_構造方法","直接基礎_形式","杭種","選択","選択○×","界床","避難器具種類","躯体天井","異なる天井","変更障害","地域区分","開口部住戸位置","出入口","排煙形式","平面形状","等級0_2","等級0_3","等級0_4","等級0_5",null,"等級1_2","等級1_3","等級1_4","等級1_5","等級_320","等級1_8","スラブ厚","温熱環境に関すること","等級5_1","等級5_2","重量床衝撃音対策","軽量床衝撃音対策"]
[null,"□"]
[null,"■","免震建築物","共用廊下に面する共用部分","動的貫入試験","鉄筋コンクリート造","ベタ基礎","支持杭","○","○","なし","避難はしご","地上","該当なし","なし","Ⅰ","地下","有効","a.開放型廊下","a.２方向避難",2,3,4,5,null,2,3,4,5,3,8,0,"熱損失係数",7,8,"対策等級","対策等級"]
[null,null,"その他","外壁面、吹き抜け等の住戸外周部","スクリューウエイト貫入試験","直接基礎","独立基礎","摩擦杭",null,"×","上階","滑り棒","地下","はり","壁","Ⅱ","地上","シャッター","b.自然排煙","b.直通階段",1,2,3,4,null,1,2,3,4,2,7,"a","熱貫流率",6,7,"相当スラブ厚","レベル低減量"]
[null,null,null,"バルコニー","スウェーデン式サウンディング試験","SB工法","布基礎",null,null,null,"下階","避難ロープ","その他","傾斜屋根","柱","Ⅲ","屋上","その他","c.機械排煙(一般)","c.その他",0,1,2,3,null,null,1,2,3,0,6,"b",null,5,6]
[null,null,null,"住戸専用部","平板載荷試験",null,null,null,null,null,"上階及び下階","避難用タラップ",null,"その他","壁柱","Ⅳ","中間階","無し","d.機械排煙(加圧式)",null,null,0,1,2,null,null,null,1,2,null,5,"c",null,4,5]
[null,null,null,"その他","表面波探査法 ",null,null,null,null,null,null,"滑り台",null,null,null,"Ⅴ","その他",null,"e.その他",null,null,null,0,1,null,null,null,null,1,null,4,"d",null,3,4,"ｲ：対策等級","ｲ：対策等級"]
[null,null,null,null,null,null,null,null,null,null,null,"緩降機",null,null,null,"Ⅵ",null,null,null,null,null,null,null,0,null,null,null,null,null,null,3,"e",null,2,1,"ﾛ：相当スラブ厚","ﾛ：レベル低減量"]
[null,null,null,null,null,null,null,null,null,null,null,"避難橋",null,null,null,null,null,null,null,null,null,null,null,null,null,null,null,null,null,null,2,null,null,1]
[null,null,null,null,null,null,null,null,null,null,null,"救助袋",null,null,null,null,null,null,null,null,null,null,null,null,null,null,null,null,null,null,1]
[]
["自己評価書で不要になって移動したセル名："]
[]
["work_tower_N01_6_JIBAN_TYOUSA_2"]
[]
["work_tower_N01_6_JIBAN_TYOUSA_3"]
[]
["work_tower_N01_6_JIBAN_TYOUSA_4"]